Body Name,Date Paid,Transaction Number,Amount,Supplier Name,Supplier Type,Expense Area,Cost Centre Description,Expense Type
Cambridgeshire County Council,18-Jan-22,51301707877,"-635,896.60",Thalia WB SPV Limited,TRADE SUPPLIER,Waste Disposal incl PFI,Waste PFI,Landfill Tax
Cambridgeshire County Council,17-Jan-22,51301701379,"-169,583.39",WSP UK LTD T/A WSP INTEGRATED BUILDING SERVICES,TRADE SUPPLIER,GCP-Eastern Access,GCP - Eastern Access,Construction - External Professional Fees
Cambridgeshire County Council,13-Jan-22,51301705542,"-61,364.26",Key Living Project,CARE ESTABLISHMENT,LAC Placements,Placements - residential homes,Agency Placements - Out of  County
Cambridgeshire County Council,17-Jan-22,51301701284,"-41,350.44",WSP UK LTD T/A WSP INTEGRATED BUILDING SERVICES,TRADE SUPPLIER,GCP-Eastern Access,GCP - Eastern Access,Construction - External Professional Fees
Cambridgeshire County Council,17-Jan-22,51301643319,"-20,920.67",MOOR HOUSE SCHOOL,EDUCATION,SEN Placements,Placements - Education,Independent School Placements
Cambridgeshire County Council,02-Jan-22,65300016976,"-20,482.00",Esland Care (Esland North Ltd),EDUCATION,SEN Placements,Placements - Education,Independent School Placements
Cambridgeshire County Council,10-Jan-22,51301693269,"-17,320.89",TOTALENERGIES GAS AND POWER LTD,TRADE SUPPLIER,Street Lighting,Parish & District Council costs,Street Light Energy
Cambridgeshire County Council,10-Jan-22,51301692903,"-15,906.22",TOTALENERGIES GAS AND POWER LTD,TRADE SUPPLIER,Street Lighting,Parish & District Council costs,Street Light Energy
Cambridgeshire County Council,14-Jan-22,51301706150,"-15,800.00",Keys PCE Ltd,CARE ESTABLISHMENT,LAC Placements,Placements - residential homes,Agency Placements - In County
Cambridgeshire County Council,20-Jan-22,51301712527,"-15,137.49",GLENHOLME HEALTHCARE LTD,CARE ESTABLISHMENT,LD - Hunts Locality - Cost of Care,LD - Huntingdonshire - Care,Residential Care
Cambridgeshire County Council,21-Jan-22,51301714086,"-13,648.20",PRIMROSE HEALTHCARE,CARE ESTABLISHMENT,OP - City & South Blocks,City and South - Long term blocks,Residential Care
Cambridgeshire County Council,21-Jan-22,51301714086,"-13,648.20",PRIMROSE HEALTHCARE,CARE ESTABLISHMENT,OP - City & South Blocks,City and South - Long term blocks,Residential Care
Cambridgeshire County Council,21-Jan-22,51301714085,"-9,892.80",RHEOLA HEALTHCARE,CARE ESTABLISHMENT,OP - Hunts Blocks,Hunts - Long term blocks,Residential Care
Cambridgeshire County Council,21-Jan-22,51301714085,"-9,892.80",RHEOLA HEALTHCARE,CARE ESTABLISHMENT,OP - Hunts Blocks,Hunts - Long term blocks,Residential Care
Cambridgeshire County Council,21-Jan-22,51301714085,"-9,892.80",RHEOLA HEALTHCARE,CARE ESTABLISHMENT,OP - Hunts Blocks,Hunts - Long term blocks,Residential Care
Cambridgeshire County Council,21-Jan-22,51301714085,"-9,892.80",RHEOLA HEALTHCARE,CARE ESTABLISHMENT,OP - Hunts Blocks,Hunts - Long term blocks,Residential Care
Cambridgeshire County Council,21-Jan-22,51301714085,"-9,892.80",RHEOLA HEALTHCARE,CARE ESTABLISHMENT,OP - Hunts Blocks,Hunts - Long term blocks,Residential Care
Cambridgeshire County Council,21-Jan-22,51301714085,"-9,892.80",RHEOLA HEALTHCARE,CARE ESTABLISHMENT,OP - Hunts Blocks,Hunts - Long term blocks,Residential Care
Cambridgeshire County Council,21-Jan-22,51301714085,"-9,892.80",RHEOLA HEALTHCARE,CARE ESTABLISHMENT,OP - Hunts Blocks,Hunts - Long term blocks,Residential Care
Cambridgeshire County Council,21-Jan-22,51301714085,"-9,892.80",RHEOLA HEALTHCARE,CARE ESTABLISHMENT,OP - Hunts Blocks,Hunts - Long term blocks,Residential Care
Cambridgeshire County Council,21-Jan-22,51301714085,"-9,892.80",RHEOLA HEALTHCARE,CARE ESTABLISHMENT,OP - Hunts Blocks,Hunts - Long term blocks,Residential Care
Cambridgeshire County Council,21-Jan-22,51301714085,"-9,892.80",RHEOLA HEALTHCARE,CARE ESTABLISHMENT,OP - Hunts Blocks,Hunts - Long term blocks,Residential Care
Cambridgeshire County Council,21-Jan-22,51301714085,"-9,892.80",RHEOLA HEALTHCARE,CARE ESTABLISHMENT,OP - Hunts Blocks,Hunts - Long term blocks,Residential Care
Cambridgeshire County Council,21-Jan-22,51301714085,"-9,892.80",RHEOLA HEALTHCARE,CARE ESTABLISHMENT,OP - Hunts Blocks,Hunts - Long term blocks,Residential Care
Cambridgeshire County Council,21-Jan-22,51301714085,"-9,892.80",RHEOLA HEALTHCARE,CARE ESTABLISHMENT,OP - Hunts Blocks,Hunts - Long term blocks,Residential Care
Cambridgeshire County Council,21-Jan-22,51301714085,"-9,892.80",RHEOLA HEALTHCARE,CARE ESTABLISHMENT,OP - Hunts Blocks,Hunts - Long term blocks,Residential Care
Cambridgeshire County Council,21-Jan-22,51301714085,"-9,892.80",RHEOLA HEALTHCARE,CARE ESTABLISHMENT,OP - Hunts Blocks,Hunts - Long term blocks,Residential Care
Cambridgeshire County Council,21-Jan-22,51301714085,"-9,892.80",RHEOLA HEALTHCARE,CARE ESTABLISHMENT,OP - Hunts Blocks,Hunts - Long term blocks,Residential Care
Cambridgeshire County Council,21-Jan-22,51301714085,"-9,892.80",RHEOLA HEALTHCARE,CARE ESTABLISHMENT,OP - Hunts Blocks,Hunts - Long term blocks,Residential Care
Cambridgeshire County Council,21-Jan-22,51301714086,"-9,748.71",PRIMROSE HEALTHCARE,CARE ESTABLISHMENT,OP - City & South Blocks,City and South - Long term blocks,Residential Care
Cambridgeshire County Council,07-Jan-22,51301703148,"-9,592.86",Keys PCE Ltd,CARE ESTABLISHMENT,LAC Placements,Placements - residential homes,Agency Placements - Out of  County
Cambridgeshire County Council,07-Jan-22,51301703158,"-9,592.85",Keys PCE Ltd,CARE ESTABLISHMENT,LAC Placements,Placements - residential homes,Agency Placements - Out of  County
Cambridgeshire County Council,21-Jan-22,51301714085,"-8,656.20",RHEOLA HEALTHCARE,CARE ESTABLISHMENT,OP - Hunts Blocks,Hunts - Long term blocks,Residential Care
Cambridgeshire County Council,21-Jan-22,51301714085,"-8,656.20",RHEOLA HEALTHCARE,CARE ESTABLISHMENT,OP - Hunts Blocks,Hunts - Long term blocks,Residential Care
Cambridgeshire County Council,21-Jan-22,51301714085,"-8,037.90",RHEOLA HEALTHCARE,CARE ESTABLISHMENT,OP - Hunts Blocks,Hunts - Long term blocks,Residential Care
Cambridgeshire County Council,08-Jan-22,65300016977,"-7,622.31",Vuzion UK Ltd,COMPANY,ICT Service,ICT Service Technical Support,Computer software - purchase
Cambridgeshire County Council,21-Jan-22,51301714085,"-7,419.60",RHEOLA HEALTHCARE,CARE ESTABLISHMENT,OP - Hunts Blocks,Hunts - Long term blocks,Residential Care
Cambridgeshire County Council,20-Jan-22,51301705891,"-7,338.60",Pathfinder Legal Services Limited,TRADE SUPPLIER,Home to School Transport - Mainstream,Home to School Transport Mainstream - Central Costs,External Legal Fees
Cambridgeshire County Council,21-Jan-22,51301714085,"-6,398.90",RHEOLA HEALTHCARE,CARE ESTABLISHMENT,OP - Hunts Blocks,Hunts - Long term blocks,Residential Care
Cambridgeshire County Council,21-Jan-22,51301714085,"-6,398.90",RHEOLA HEALTHCARE,CARE ESTABLISHMENT,OP - Hunts Blocks,Hunts - Long term blocks,Residential Care
Cambridgeshire County Council,21-Jan-22,51301714085,"-6,398.90",RHEOLA HEALTHCARE,CARE ESTABLISHMENT,OP - Hunts Blocks,Hunts - Long term blocks,Residential Care
Cambridgeshire County Council,21-Jan-22,51301714085,"-6,398.90",RHEOLA HEALTHCARE,CARE ESTABLISHMENT,OP - Hunts Blocks,Hunts - Long term blocks,Residential Care
Cambridgeshire County Council,21-Jan-22,51301714085,"-6,398.90",RHEOLA HEALTHCARE,CARE ESTABLISHMENT,OP - Hunts Blocks,Hunts - Long term blocks,Residential Care
Cambridgeshire County Council,21-Jan-22,51301714085,"-6,398.90",RHEOLA HEALTHCARE,CARE ESTABLISHMENT,OP - Hunts Blocks,Hunts - Long term blocks,Residential Care
Cambridgeshire County Council,21-Jan-22,51301714085,"-6,398.90",RHEOLA HEALTHCARE,CARE ESTABLISHMENT,OP - Hunts Blocks,Hunts - Long term blocks,Residential Care
Cambridgeshire County Council,21-Jan-22,51301714085,"-6,398.90",RHEOLA HEALTHCARE,CARE ESTABLISHMENT,OP - Hunts Blocks,Hunts - Long term blocks,Residential Care
Cambridgeshire County Council,21-Jan-22,51301714085,"-6,398.90",RHEOLA HEALTHCARE,CARE ESTABLISHMENT,OP - Hunts Blocks,Hunts - Long term blocks,Residential Care
Cambridgeshire County Council,21-Jan-22,51301714085,"-6,398.90",RHEOLA HEALTHCARE,CARE ESTABLISHMENT,OP - Hunts Blocks,Hunts - Long term blocks,Residential Care
Cambridgeshire County Council,21-Jan-22,51301714085,"-6,398.90",RHEOLA HEALTHCARE,CARE ESTABLISHMENT,OP - Hunts Blocks,Hunts - Long term blocks,Residential Care
Cambridgeshire County Council,21-Jan-22,51301714085,"-6,398.90",RHEOLA HEALTHCARE,CARE ESTABLISHMENT,OP - Hunts Blocks,Hunts - Long term blocks,Residential Care
Cambridgeshire County Council,21-Jan-22,51301714085,"-6,398.90",RHEOLA HEALTHCARE,CARE ESTABLISHMENT,OP - Hunts Blocks,Hunts - Long term blocks,Residential Care
Cambridgeshire County Council,21-Jan-22,51301714085,"-6,398.90",RHEOLA HEALTHCARE,CARE ESTABLISHMENT,OP - Hunts Blocks,Hunts - Long term blocks,Residential Care
Cambridgeshire County Council,21-Jan-22,51301714085,"-6,398.90",RHEOLA HEALTHCARE,CARE ESTABLISHMENT,OP - Hunts Blocks,Hunts - Long term blocks,Residential Care
Cambridgeshire County Council,21-Jan-22,51301714085,"-6,398.90",RHEOLA HEALTHCARE,CARE ESTABLISHMENT,OP - Hunts Blocks,Hunts - Long term blocks,Residential Care
Cambridgeshire County Council,21-Jan-22,51301714085,"-6,398.90",RHEOLA HEALTHCARE,CARE ESTABLISHMENT,OP - Hunts Blocks,Hunts - Long term blocks,Residential Care
Cambridgeshire County Council,21-Jan-22,51301714085,"-6,398.90",RHEOLA HEALTHCARE,CARE ESTABLISHMENT,OP - Hunts Blocks,Hunts - Long term blocks,Residential Care
Cambridgeshire County Council,21-Jan-22,51301714085,"-6,398.90",RHEOLA HEALTHCARE,CARE ESTABLISHMENT,OP - Hunts Blocks,Hunts - Long term blocks,Residential Care
Cambridgeshire County Council,21-Jan-22,51301714085,"-6,398.90",RHEOLA HEALTHCARE,CARE ESTABLISHMENT,OP - Hunts Blocks,Hunts - Long term blocks,Residential Care
Cambridgeshire County Council,21-Jan-22,51301714085,"-6,398.90",RHEOLA HEALTHCARE,CARE ESTABLISHMENT,OP - Hunts Blocks,Hunts - Long term blocks,Residential Care
Cambridgeshire County Council,21-Jan-22,51301714085,"-6,398.90",RHEOLA HEALTHCARE,CARE ESTABLISHMENT,OP - Hunts Blocks,Hunts - Long term blocks,Residential Care
Cambridgeshire County Council,07-Jan-22,51301703186,"-6,390.52",Grove Social Care Ltd,CARE ESTABLISHMENT,LAC Placements,Placements - supported accommodation,Agency Placements - In County
Cambridgeshire County Council,21-Jan-22,51301713463,"-6,293.07",HUNTERS HEALTHCARE (HUNTERS DOWN),CARE ESTABLISHMENT,OP - Hunts Blocks,Hunts - Short term blocks,Nursing Care
Cambridgeshire County Council,21-Jan-22,51301713463,"-6,293.07",HUNTERS HEALTHCARE (HUNTERS DOWN),CARE ESTABLISHMENT,OP - Hunts Blocks,Hunts - Short term blocks,Nursing Care
Cambridgeshire County Council,21-Jan-22,51301713463,"-6,293.07",HUNTERS HEALTHCARE (HUNTERS DOWN),CARE ESTABLISHMENT,OP - Hunts Blocks,Hunts - Short term blocks,Nursing Care
Cambridgeshire County Council,21-Jan-22,51301713463,"-6,293.07",HUNTERS HEALTHCARE (HUNTERS DOWN),CARE ESTABLISHMENT,OP - Hunts Blocks,Hunts - Short term blocks,Nursing Care
Cambridgeshire County Council,21-Jan-22,51301713463,"-6,293.07",HUNTERS HEALTHCARE (HUNTERS DOWN),CARE ESTABLISHMENT,OP - Hunts Blocks,Hunts - Short term blocks,Nursing Care
Cambridgeshire County Council,21-Jan-22,51301713463,"-6,293.07",HUNTERS HEALTHCARE (HUNTERS DOWN),CARE ESTABLISHMENT,OP - Hunts Blocks,Hunts - Short term blocks,Nursing Care
Cambridgeshire County Council,21-Jan-22,51301713463,"-6,293.07",HUNTERS HEALTHCARE (HUNTERS DOWN),CARE ESTABLISHMENT,OP - Hunts Blocks,Hunts - Short term blocks,Nursing Care
Cambridgeshire County Council,21-Jan-22,51301713463,"-6,293.07",HUNTERS HEALTHCARE (HUNTERS DOWN),CARE ESTABLISHMENT,OP - Hunts Blocks,Hunts - Short term blocks,Nursing Care
Cambridgeshire County Council,21-Jan-22,51301713463,"-6,293.07",HUNTERS HEALTHCARE (HUNTERS DOWN),CARE ESTABLISHMENT,OP - Hunts Blocks,Hunts - Short term blocks,Nursing Care
Cambridgeshire County Council,21-Jan-22,51301713463,"-6,293.07",HUNTERS HEALTHCARE (HUNTERS DOWN),CARE ESTABLISHMENT,OP - Hunts Blocks,Hunts - Short term blocks,Nursing Care
Cambridgeshire County Council,21-Jan-22,51301713463,"-6,293.07",HUNTERS HEALTHCARE (HUNTERS DOWN),CARE ESTABLISHMENT,OP - Hunts Blocks,Hunts - Short term blocks,Nursing Care
Cambridgeshire County Council,21-Jan-22,51301713463,"-6,293.07",HUNTERS HEALTHCARE (HUNTERS DOWN),CARE ESTABLISHMENT,OP - Hunts Blocks,Hunts - Short term blocks,Nursing Care
Cambridgeshire County Council,21-Jan-22,51301714076,"-6,100.00",RHEOLA HEALTHCARE,CARE ESTABLISHMENT,OP - Hunts Blocks,Hunts - Long term blocks,Residential Care
Cambridgeshire County Council,21-Jan-22,51301714076,"-6,100.00",RHEOLA HEALTHCARE,CARE ESTABLISHMENT,OP - Hunts Blocks,Hunts - Long term blocks,Residential Care
Cambridgeshire County Council,21-Jan-22,51301714076,"-6,100.00",RHEOLA HEALTHCARE,CARE ESTABLISHMENT,OP - Hunts Blocks,Hunts - Long term blocks,Residential Care
Cambridgeshire County Council,06-Jan-22,51301702300,"-6,078.55",HAMPTON COLLEGE,EDUCATION,Recoupment,Procurement - Out-County Mainstream,Independent School Placements
Cambridgeshire County Council,21-Jan-22,51301713228,"-5,152.50",RADIS COMMUNITY CARE,CARE ESTABLISHMENT,OP - East Cambs Locality - Cost of Care,East Cambs - O P Team - Care,Supported Living
Cambridgeshire County Council,13-Jan-22,51301705635,"-5,140.94",G L Profiles Ltd,TRADE SUPPLIER,Swaffham Prior Energy Project,Swaffham Prior Energy Project,Construction - External Professional Fees
Cambridgeshire County Council,21-Jan-22,51301714121,"-4,950.00",THE CAMBRIDGE NURSING CENTRE,CARE ESTABLISHMENT,OP - City & South Locality - Cost of Care,Older People - City & South - Care,Nursing Care
Cambridgeshire County Council,21-Jan-22,51301714121,"-4,950.00",THE CAMBRIDGE NURSING CENTRE,CARE ESTABLISHMENT,OP - City & South Locality - Cost of Care,Older People - City & South - Care,Nursing Care
Cambridgeshire County Council,21-Jan-22,51301714121,"-4,950.00",THE CAMBRIDGE NURSING CENTRE,CARE ESTABLISHMENT,OP - City & South Locality - Cost of Care,Older People - City & South - Care,Nursing Care
Cambridgeshire County Council,21-Jan-22,51301714121,"-4,950.00",THE CAMBRIDGE NURSING CENTRE,CARE ESTABLISHMENT,OP - City & South Locality - Cost of Care,Older People - City & South - Care,Nursing Care
Cambridgeshire County Council,21-Jan-22,51301714102,"-4,749.76",RADIS COMMUNITY CARE,CARE ESTABLISHMENT,OP - Hunts Locality - Cost of Care,Hunts OP Team - Care,Supported Living
Cambridgeshire County Council,21-Jan-22,51301714102,"-4,749.76",RADIS COMMUNITY CARE,CARE ESTABLISHMENT,OP - Hunts Locality - Cost of Care,Hunts OP Team - Care,Supported Living
Cambridgeshire County Council,21-Jan-22,51301714102,"-4,749.76",RADIS COMMUNITY CARE,CARE ESTABLISHMENT,OP - Hunts Locality - Cost of Care,Hunts OP Team - Care,Supported Living
Cambridgeshire County Council,21-Jan-22,51301714102,"-4,749.76",RADIS COMMUNITY CARE,CARE ESTABLISHMENT,OP - Hunts Locality - Cost of Care,Hunts OP Team - Care,Supported Living
Cambridgeshire County Council,21-Jan-22,51301714102,"-4,749.76",RADIS COMMUNITY CARE,CARE ESTABLISHMENT,OP - Hunts Locality - Cost of Care,Hunts OP Team - Care,Supported Living
Cambridgeshire County Council,21-Jan-22,51301714102,"-4,749.76",RADIS COMMUNITY CARE,CARE ESTABLISHMENT,OP - Hunts Locality - Cost of Care,Hunts OP Team - Care,Supported Living
Cambridgeshire County Council,21-Jan-22,51301714102,"-4,749.76",RADIS COMMUNITY CARE,CARE ESTABLISHMENT,OP - Hunts Locality - Cost of Care,Hunts OP Team - Care,Supported Living
Cambridgeshire County Council,21-Jan-22,51301714102,"-4,749.76",RADIS COMMUNITY CARE,CARE ESTABLISHMENT,OP - Hunts Locality - Cost of Care,Hunts OP Team - Care,Supported Living
Cambridgeshire County Council,21-Jan-22,51301714102,"-4,749.76",RADIS COMMUNITY CARE,CARE ESTABLISHMENT,OP - Hunts Locality - Cost of Care,Hunts OP Team - Care,Supported Living
Cambridgeshire County Council,21-Jan-22,51301714102,"-4,749.76",RADIS COMMUNITY CARE,CARE ESTABLISHMENT,OP - Hunts Locality - Cost of Care,Hunts OP Team - Care,Supported Living
Cambridgeshire County Council,21-Jan-22,51301714102,"-4,749.76",RADIS COMMUNITY CARE,CARE ESTABLISHMENT,OP - Hunts Locality - Cost of Care,Hunts OP Team - Care,Supported Living
Cambridgeshire County Council,21-Jan-22,51301714102,"-4,749.76",RADIS COMMUNITY CARE,CARE ESTABLISHMENT,OP - Hunts Locality - Cost of Care,Hunts OP Team - Care,Supported Living
Cambridgeshire County Council,21-Jan-22,51301714102,"-4,749.76",RADIS COMMUNITY CARE,CARE ESTABLISHMENT,OP - Hunts Locality - Cost of Care,Hunts OP Team - Care,Supported Living
Cambridgeshire County Council,21-Jan-22,51301714084,"-4,613.00",FORD HOUSE CARE HOME,CARE ESTABLISHMENT,OP - Hunts Locality - Cost of Care,Hunts OP Team - Care,Nursing Care
Cambridgeshire County Council,21-Jan-22,51301713229,"-4,450.50",RADIS COMMUNITY CARE,CARE ESTABLISHMENT,OP - Hunts Locality - Cost of Care,Hunts OP Team - Care,Supported Living
Cambridgeshire County Council,21-Jan-22,51301714076,"-4,357.14",RHEOLA HEALTHCARE,CARE ESTABLISHMENT,OP - Hunts Blocks,Hunts - Long term blocks,Residential Care
Cambridgeshire County Council,21-Jan-22,51301714094,"-4,170.00",HC-ONE,CARE ESTABLISHMENT,OP - Hunts Locality - Cost of Care,Hunts OP Team - Care,Nursing Care
Cambridgeshire County Council,21-Jan-22,51301714094,"-4,170.00",HC-ONE,CARE ESTABLISHMENT,OP - Hunts Locality - Cost of Care,Hunts OP Team - Care,Nursing Care
Cambridgeshire County Council,21-Jan-22,51301714094,"-4,170.00",HC-ONE,CARE ESTABLISHMENT,OP - Hunts Locality - Cost of Care,Hunts OP Team - Care,Nursing Care
Cambridgeshire County Council,21-Jan-22,51301714094,"-4,170.00",HC-ONE,CARE ESTABLISHMENT,OP - Hunts Locality - Cost of Care,Hunts OP Team - Care,Nursing Care
Cambridgeshire County Council,21-Jan-22,51301714094,"-4,170.00",HC-ONE,CARE ESTABLISHMENT,OP - Hunts Locality - Cost of Care,Hunts OP Team - Care,Nursing Care
Cambridgeshire County Council,17-Jan-22,51301706590,"-4,078.80",TRANSITION CARE PETERBOROUGH LTD,CARE ESTABLISHMENT,LAC Placements,Placements - supported accommodation,Agency Placements - In County
Cambridgeshire County Council,21-Jan-22,51301714102,"-4,071.22",RADIS COMMUNITY CARE,CARE ESTABLISHMENT,OP - Hunts Locality - Cost of Care,Hunts OP Team - Care,Supported Living
Cambridgeshire County Council,21-Jan-22,51301714084,"-3,954.00",FORD HOUSE CARE HOME,CARE ESTABLISHMENT,OP - Hunts Locality - Cost of Care,Hunts OP Team - Care,Nursing Care
Cambridgeshire County Council,21-Jan-22,51301714085,"-3,709.80",RHEOLA HEALTHCARE,CARE ESTABLISHMENT,OP - Hunts Blocks,Hunts - Long term blocks,Residential Care
Cambridgeshire County Council,21-Jan-22,51301714121,"-3,700.00",THE CAMBRIDGE NURSING CENTRE,CARE ESTABLISHMENT,OP - City & South Locality - Cost of Care,Older People - City & South - Care,Nursing Care
Cambridgeshire County Council,21-Jan-22,51301714121,"-3,700.00",THE CAMBRIDGE NURSING CENTRE,CARE ESTABLISHMENT,OP - City & South Locality - Cost of Care,Older People - City & South - Care,Nursing Care
Cambridgeshire County Council,21-Jan-22,51301714121,"-3,700.00",THE CAMBRIDGE NURSING CENTRE,CARE ESTABLISHMENT,OP - City & South Locality - Cost of Care,Older People - City & South - Care,Nursing Care
Cambridgeshire County Council,21-Jan-22,51301714121,"-3,700.00",THE CAMBRIDGE NURSING CENTRE,CARE ESTABLISHMENT,OP - City & South Locality - Cost of Care,Older People - City & South - Care,Nursing Care
Cambridgeshire County Council,21-Jan-22,51301714125,"-3,603.42",THE FIRS (Barrels Care),CARE ESTABLISHMENT,OP - East Cambs Blocks,East Cambs � Long term Blocks,Residential Care
Cambridgeshire County Council,07-Jan-22,51301703150,"-3,600.00",Keys PCE Ltd,CARE ESTABLISHMENT,LAC Placements,Placements - residential homes,Agency Placements - Out of  County
Cambridgeshire County Council,21-Jan-22,51301714091,"-3,510.00",SWAN HOUSE NURSING & RESIDENTIAL HOME,CARE ESTABLISHMENT,OP - Fenland Blocks,Fenland - Long term blocks,Nursing Care
Cambridgeshire County Council,21-Jan-22,51301714091,"-3,510.00",SWAN HOUSE NURSING & RESIDENTIAL HOME,CARE ESTABLISHMENT,OP - Fenland Blocks,Fenland - Long term blocks,Nursing Care
Cambridgeshire County Council,21-Jan-22,51301714091,"-3,510.00",SWAN HOUSE NURSING & RESIDENTIAL HOME,CARE ESTABLISHMENT,OP - Fenland Blocks,Fenland - Long term blocks,Nursing Care
Cambridgeshire County Council,07-Jan-22,51301703212,"-3,454.29",To The Moon and Back Foster Care Limited,CARE ESTABLISHMENT,LAC Placements,Placements - independent fostering,Agency Placements - In County
Cambridgeshire County Council,07-Jan-22,51301703214,"-3,454.29",To The Moon and Back Foster Care Limited,CARE ESTABLISHMENT,LAC Placements,Placements - independent fostering,Agency Placements - In County
Cambridgeshire County Council,07-Jan-22,51301703218,"-3,454.29",To The Moon and Back Foster Care Limited,CARE ESTABLISHMENT,LAC Placements,Placements - independent fostering,Agency Placements - In County
Cambridgeshire County Council,07-Jan-22,51301703234,"-3,454.29",To The Moon and Back Foster Care Limited,CARE ESTABLISHMENT,LAC Placements,Placements - independent fostering,Agency Placements - In County
Cambridgeshire County Council,07-Jan-22,51301703237,"-3,454.29",To The Moon and Back Foster Care Limited,CARE ESTABLISHMENT,LAC Placements,Placements - independent fostering,Agency Placements - In County
Cambridgeshire County Council,07-Jan-22,51301703243,"-3,454.29",To The Moon and Back Foster Care Limited,CARE ESTABLISHMENT,LAC Placements,Placements - independent fostering,Agency Placements - In County
Cambridgeshire County Council,07-Jan-22,51301703107,"-3,454.29",To The Moon and Back Foster Care Limited,CARE ESTABLISHMENT,LAC Placements,Placements - independent fostering,Agency Placements - Out of  County
Cambridgeshire County Council,07-Jan-22,51301703117,"-3,454.29",To The Moon and Back Foster Care Limited,CARE ESTABLISHMENT,LAC Placements,Placements - independent fostering,Agency Placements - Out of  County
Cambridgeshire County Council,07-Jan-22,51301703129,"-3,454.29",To The Moon and Back Foster Care Limited,CARE ESTABLISHMENT,LAC Placements,Placements - independent fostering,Agency Placements - Out of  County
Cambridgeshire County Council,07-Jan-22,51301703120,"-3,342.86",To The Moon and Back Foster Care Limited,CARE ESTABLISHMENT,LAC Placements,Placements - independent fostering,Agency Placements - Out of  County
Cambridgeshire County Council,07-Jan-22,51301703109,"-3,342.86",To The Moon and Back Foster Care Limited,CARE ESTABLISHMENT,LAC Placements,Placements - independent fostering,Agency Placements - Out of  County
Cambridgeshire County Council,07-Jan-22,51301703240,"-3,342.86",To The Moon and Back Foster Care Limited,CARE ESTABLISHMENT,LAC Placements,Placements - independent fostering,Agency Placements - In County
Cambridgeshire County Council,07-Jan-22,51301703231,"-3,342.86",To The Moon and Back Foster Care Limited,CARE ESTABLISHMENT,LAC Placements,Placements - independent fostering,Agency Placements - In County
Cambridgeshire County Council,07-Jan-22,51301703216,"-3,342.86",To The Moon and Back Foster Care Limited,CARE ESTABLISHMENT,LAC Placements,Placements - independent fostering,Agency Placements - In County
Cambridgeshire County Council,07-Jan-22,51301703210,"-3,342.86",To The Moon and Back Foster Care Limited,CARE ESTABLISHMENT,LAC Placements,Placements - independent fostering,Agency Placements - In County
Cambridgeshire County Council,07-Jan-22,51301703132,"-3,342.86",To The Moon and Back Foster Care Limited,CARE ESTABLISHMENT,LAC Placements,Placements - independent fostering,Agency Placements - Out of  County
Cambridgeshire County Council,21-Jan-22,51301714121,"-3,285.00",THE CAMBRIDGE NURSING CENTRE,CARE ESTABLISHMENT,OP - City & South Locality - Cost of Care,Older People - City & South - Care,Nursing Care
Cambridgeshire County Council,21-Jan-22,51301714121,"-3,285.00",THE CAMBRIDGE NURSING CENTRE,CARE ESTABLISHMENT,OP - City & South Locality - Cost of Care,Older People - City & South - Care,Nursing Care
Cambridgeshire County Council,21-Jan-22,51301714121,"-3,285.00",THE CAMBRIDGE NURSING CENTRE,CARE ESTABLISHMENT,OP - City & South Locality - Cost of Care,Older People - City & South - Care,Nursing Care
Cambridgeshire County Council,21-Jan-22,51301714121,"-3,285.00",THE CAMBRIDGE NURSING CENTRE,CARE ESTABLISHMENT,OP - City & South Locality - Cost of Care,Older People - City & South - Care,Nursing Care
Cambridgeshire County Council,07-Jan-22,51301703174,"-3,160.80",Grove Social Care Ltd,CARE ESTABLISHMENT,LAC Placements,Placements - supported accommodation,Agency Placements - In County
Cambridgeshire County Council,07-Jan-22,51301702960,"-3,118.80",MLL Telecom Limited,TRADE SUPPLIER,ICT Service,ICT Service Sales,Materials for resale
Cambridgeshire County Council,07-Jan-22,51301703208,"-3,008.57",To The Moon and Back Foster Care Limited,CARE ESTABLISHMENT,LAC Placements,Placements - independent fostering,Agency Placements - In County
Cambridgeshire County Council,07-Jan-22,51301703228,"-3,008.57",To The Moon and Back Foster Care Limited,CARE ESTABLISHMENT,LAC Placements,Placements - independent fostering,Agency Placements - In County
Cambridgeshire County Council,21-Jan-22,51301714121,"-2,828.57",THE CAMBRIDGE NURSING CENTRE,CARE ESTABLISHMENT,OP - City & South Locality - Cost of Care,Older People - City & South - Care,Nursing Care
Cambridgeshire County Council,21-Jan-22,51301714085,"-2,826.51",RHEOLA HEALTHCARE,CARE ESTABLISHMENT,OP - Hunts Blocks,Hunts - Long term blocks,Residential Care
Cambridgeshire County Council,14-Jan-22,51301705940,"-2,792.21",ALDERWOOD LLA LTD,CARE ESTABLISHMENT,LD - Hunts Locality - Cost of Care,LD - Huntingdonshire - Care,Residential Care
Cambridgeshire County Council,14-Jan-22,51301705940,"-2,792.21",ALDERWOOD LLA LTD,CARE ESTABLISHMENT,LD - Hunts Locality - Cost of Care,LD - Huntingdonshire - Care,Residential Care
Cambridgeshire County Council,14-Jan-22,51301705940,"-2,792.21",ALDERWOOD LLA LTD,CARE ESTABLISHMENT,LD - Hunts Locality - Cost of Care,LD - Huntingdonshire - Care,Residential Care
Cambridgeshire County Council,14-Jan-22,51301705940,"-2,792.21",ALDERWOOD LLA LTD,CARE ESTABLISHMENT,LD - Hunts Locality - Cost of Care,LD - Huntingdonshire - Care,Residential Care
Cambridgeshire County Council,14-Jan-22,51301705940,"-2,792.21",ALDERWOOD LLA LTD,CARE ESTABLISHMENT,LD - Hunts Locality - Cost of Care,LD - Huntingdonshire - Care,Residential Care
Cambridgeshire County Council,14-Jan-22,51301705940,"-2,792.21",ALDERWOOD LLA LTD,CARE ESTABLISHMENT,LD - Hunts Locality - Cost of Care,LD - Huntingdonshire - Care,Residential Care
Cambridgeshire County Council,14-Jan-22,51301705940,"-2,792.21",ALDERWOOD LLA LTD,CARE ESTABLISHMENT,LD - Hunts Locality - Cost of Care,LD - Huntingdonshire - Care,Residential Care
Cambridgeshire County Council,14-Jan-22,51301705940,"-2,792.21",ALDERWOOD LLA LTD,CARE ESTABLISHMENT,LD - Hunts Locality - Cost of Care,LD - Huntingdonshire - Care,Residential Care
Cambridgeshire County Council,14-Jan-22,51301705940,"-2,792.21",ALDERWOOD LLA LTD,CARE ESTABLISHMENT,LD - Hunts Locality - Cost of Care,LD - Huntingdonshire - Care,Residential Care
Cambridgeshire County Council,14-Jan-22,51301705940,"-2,792.21",ALDERWOOD LLA LTD,CARE ESTABLISHMENT,LD - Hunts Locality - Cost of Care,LD - Huntingdonshire - Care,Residential Care
Cambridgeshire County Council,14-Jan-22,51301705940,"-2,792.21",ALDERWOOD LLA LTD,CARE ESTABLISHMENT,LD - Hunts Locality - Cost of Care,LD - Huntingdonshire - Care,Residential Care
Cambridgeshire County Council,14-Jan-22,51301705940,"-2,792.21",ALDERWOOD LLA LTD,CARE ESTABLISHMENT,LD - Hunts Locality - Cost of Care,LD - Huntingdonshire - Care,Residential Care
Cambridgeshire County Council,14-Jan-22,51301705940,"-2,792.21",ALDERWOOD LLA LTD,CARE ESTABLISHMENT,LD - Hunts Locality - Cost of Care,LD - Huntingdonshire - Care,Residential Care
Cambridgeshire County Council,14-Jan-22,51301705940,"-2,792.21",ALDERWOOD LLA LTD,CARE ESTABLISHMENT,LD - Hunts Locality - Cost of Care,LD - Huntingdonshire - Care,Residential Care
Cambridgeshire County Council,14-Jan-22,51301705940,"-2,792.21",ALDERWOOD LLA LTD,CARE ESTABLISHMENT,LD - Hunts Locality - Cost of Care,LD - Huntingdonshire - Care,Residential Care
Cambridgeshire County Council,14-Jan-22,51301705940,"-2,792.21",ALDERWOOD LLA LTD,CARE ESTABLISHMENT,LD - Hunts Locality - Cost of Care,LD - Huntingdonshire - Care,Residential Care
Cambridgeshire County Council,14-Jan-22,51301705940,"-2,792.21",ALDERWOOD LLA LTD,CARE ESTABLISHMENT,LD - Hunts Locality - Cost of Care,LD - Huntingdonshire - Care,Residential Care
Cambridgeshire County Council,14-Jan-22,51301705940,"-2,792.21",ALDERWOOD LLA LTD,CARE ESTABLISHMENT,LD - Hunts Locality - Cost of Care,LD - Huntingdonshire - Care,Residential Care
Cambridgeshire County Council,14-Jan-22,51301705940,"-2,792.21",ALDERWOOD LLA LTD,CARE ESTABLISHMENT,LD - Hunts Locality - Cost of Care,LD - Huntingdonshire - Care,Residential Care
Cambridgeshire County Council,14-Jan-22,51301705940,"-2,792.21",ALDERWOOD LLA LTD,CARE ESTABLISHMENT,LD - Hunts Locality - Cost of Care,LD - Huntingdonshire - Care,Residential Care
Cambridgeshire County Council,14-Jan-22,51301705940,"-2,792.21",ALDERWOOD LLA LTD,CARE ESTABLISHMENT,LD - Hunts Locality - Cost of Care,LD - Huntingdonshire - Care,Residential Care
Cambridgeshire County Council,14-Jan-22,51301705940,"-2,792.21",ALDERWOOD LLA LTD,CARE ESTABLISHMENT,LD - Hunts Locality - Cost of Care,LD - Huntingdonshire - Care,Residential Care
Cambridgeshire County Council,14-Jan-22,51301705940,"-2,792.21",ALDERWOOD LLA LTD,CARE ESTABLISHMENT,LD - Hunts Locality - Cost of Care,LD - Huntingdonshire - Care,Residential Care
Cambridgeshire County Council,14-Jan-22,51301705940,"-2,792.21",ALDERWOOD LLA LTD,CARE ESTABLISHMENT,LD - Hunts Locality - Cost of Care,LD - Huntingdonshire - Care,Residential Care
Cambridgeshire County Council,14-Jan-22,51301705940,"-2,792.21",ALDERWOOD LLA LTD,CARE ESTABLISHMENT,LD - Hunts Locality - Cost of Care,LD - Huntingdonshire - Care,Residential Care
Cambridgeshire County Council,14-Jan-22,51301705940,"-2,792.21",ALDERWOOD LLA LTD,CARE ESTABLISHMENT,LD - Hunts Locality - Cost of Care,LD - Huntingdonshire - Care,Residential Care
Cambridgeshire County Council,14-Jan-22,51301705940,"-2,792.21",ALDERWOOD LLA LTD,CARE ESTABLISHMENT,LD - Hunts Locality - Cost of Care,LD - Huntingdonshire - Care,Residential Care
Cambridgeshire County Council,14-Jan-22,51301705940,"-2,792.21",ALDERWOOD LLA LTD,CARE ESTABLISHMENT,LD - Hunts Locality - Cost of Care,LD - Huntingdonshire - Care,Residential Care
Cambridgeshire County Council,14-Jan-22,51301705940,"-2,792.21",ALDERWOOD LLA LTD,CARE ESTABLISHMENT,LD - Hunts Locality - Cost of Care,LD - Huntingdonshire - Care,Residential Care
Cambridgeshire County Council,14-Jan-22,51301705940,"-2,792.21",ALDERWOOD LLA LTD,CARE ESTABLISHMENT,LD - Hunts Locality - Cost of Care,LD - Huntingdonshire - Care,Residential Care
Cambridgeshire County Council,14-Jan-22,51301705940,"-2,792.21",ALDERWOOD LLA LTD,CARE ESTABLISHMENT,LD - Hunts Locality - Cost of Care,LD - Huntingdonshire - Care,Residential Care
Cambridgeshire County Council,14-Jan-22,51301705940,"-2,792.21",ALDERWOOD LLA LTD,CARE ESTABLISHMENT,LD - Hunts Locality - Cost of Care,LD - Huntingdonshire - Care,Residential Care
Cambridgeshire County Council,14-Jan-22,51301705940,"-2,792.21",ALDERWOOD LLA LTD,CARE ESTABLISHMENT,LD - Hunts Locality - Cost of Care,LD - Huntingdonshire - Care,Residential Care
Cambridgeshire County Council,14-Jan-22,51301705940,"-2,792.21",ALDERWOOD LLA LTD,CARE ESTABLISHMENT,LD - Hunts Locality - Cost of Care,LD - Huntingdonshire - Care,Residential Care
Cambridgeshire County Council,14-Jan-22,51301705940,"-2,792.21",ALDERWOOD LLA LTD,CARE ESTABLISHMENT,LD - Hunts Locality - Cost of Care,LD - Huntingdonshire - Care,Residential Care
Cambridgeshire County Council,14-Jan-22,51301705940,"-2,792.21",ALDERWOOD LLA LTD,CARE ESTABLISHMENT,LD - Hunts Locality - Cost of Care,LD - Huntingdonshire - Care,Residential Care
Cambridgeshire County Council,14-Jan-22,51301705940,"-2,792.21",ALDERWOOD LLA LTD,CARE ESTABLISHMENT,LD - Hunts Locality - Cost of Care,LD - Huntingdonshire - Care,Residential Care
Cambridgeshire County Council,14-Jan-22,51301705940,"-2,792.21",ALDERWOOD LLA LTD,CARE ESTABLISHMENT,LD - Hunts Locality - Cost of Care,LD - Huntingdonshire - Care,Residential Care
Cambridgeshire County Council,14-Jan-22,51301705940,"-2,792.21",ALDERWOOD LLA LTD,CARE ESTABLISHMENT,LD - Hunts Locality - Cost of Care,LD - Huntingdonshire - Care,Residential Care
Cambridgeshire County Council,14-Jan-22,51301705940,"-2,792.21",ALDERWOOD LLA LTD,CARE ESTABLISHMENT,LD - Hunts Locality - Cost of Care,LD - Huntingdonshire - Care,Residential Care
Cambridgeshire County Council,14-Jan-22,51301705940,"-2,792.21",ALDERWOOD LLA LTD,CARE ESTABLISHMENT,LD - Hunts Locality - Cost of Care,LD - Huntingdonshire - Care,Residential Care
Cambridgeshire County Council,14-Jan-22,51301705940,"-2,792.21",ALDERWOOD LLA LTD,CARE ESTABLISHMENT,LD - Hunts Locality - Cost of Care,LD - Huntingdonshire - Care,Residential Care
Cambridgeshire County Council,14-Jan-22,51301705940,"-2,792.21",ALDERWOOD LLA LTD,CARE ESTABLISHMENT,LD - Hunts Locality - Cost of Care,LD - Huntingdonshire - Care,Residential Care
Cambridgeshire County Council,13-Jan-22,51301705469,"-2,709.00",THE ADOLESCENT & CHILDRENS TRUST (TACT) UK LTD,TRUST (OTHER),LAC Placements,Placements - independent fostering,Agency Placements - Out of  County
Cambridgeshire County Council,14-Jan-22,51301706056,"-2,672.20",THE EDMUND TRUST,CARE ESTABLISHMENT,LD - East Locality - Cost of Care,LD - East Cambs - Special Needs,Day Care
Cambridgeshire County Council,14-Jan-22,51301706056,"-2,672.20",THE EDMUND TRUST,CARE ESTABLISHMENT,LD - East Locality - Cost of Care,LD - East Cambs - Special Needs,Day Care
Cambridgeshire County Council,14-Jan-22,51301706056,"-2,672.20",THE EDMUND TRUST,CARE ESTABLISHMENT,LD - East Locality - Cost of Care,LD - East Cambs - Special Needs,Day Care
Cambridgeshire County Council,14-Jan-22,51301706056,"-2,672.20",THE EDMUND TRUST,CARE ESTABLISHMENT,LD - East Locality - Cost of Care,LD - East Cambs - Special Needs,Day Care
Cambridgeshire County Council,14-Jan-22,51301706056,"-2,672.20",THE EDMUND TRUST,CARE ESTABLISHMENT,LD - East Locality - Cost of Care,LD - East Cambs - Special Needs,Day Care
Cambridgeshire County Council,14-Jan-22,51301706056,"-2,672.20",THE EDMUND TRUST,CARE ESTABLISHMENT,LD - East Locality - Cost of Care,LD - East Cambs - Special Needs,Day Care
Cambridgeshire County Council,14-Jan-22,51301706056,"-2,672.20",THE EDMUND TRUST,CARE ESTABLISHMENT,LD - East Locality - Cost of Care,LD - East Cambs - Special Needs,Day Care
Cambridgeshire County Council,14-Jan-22,51301706056,"-2,672.20",THE EDMUND TRUST,CARE ESTABLISHMENT,LD - East Locality - Cost of Care,LD - East Cambs - Special Needs,Day Care
Cambridgeshire County Council,14-Jan-22,51301706056,"-2,672.20",THE EDMUND TRUST,CARE ESTABLISHMENT,LD - East Locality - Cost of Care,LD - East Cambs - Special Needs,Day Care
Cambridgeshire County Council,14-Jan-22,51301706056,"-2,672.20",THE EDMUND TRUST,CARE ESTABLISHMENT,LD - East Locality - Cost of Care,LD - East Cambs - Special Needs,Day Care
Cambridgeshire County Council,14-Jan-22,51301706056,"-2,672.20",THE EDMUND TRUST,CARE ESTABLISHMENT,LD - East Locality - Cost of Care,LD - East Cambs - Special Needs,Day Care
Cambridgeshire County Council,14-Jan-22,51301706056,"-2,672.20",THE EDMUND TRUST,CARE ESTABLISHMENT,LD - East Locality - Cost of Care,LD - East Cambs - Special Needs,Day Care
Cambridgeshire County Council,14-Jan-22,51301706056,"-2,672.20",THE EDMUND TRUST,CARE ESTABLISHMENT,LD - East Locality - Cost of Care,LD - East Cambs - Special Needs,Day Care
Cambridgeshire County Council,14-Jan-22,51301706056,"-2,672.20",THE EDMUND TRUST,CARE ESTABLISHMENT,LD - East Locality - Cost of Care,LD - East Cambs - Special Needs,Day Care
Cambridgeshire County Council,14-Jan-22,51301706056,"-2,672.20",THE EDMUND TRUST,CARE ESTABLISHMENT,LD - East Locality - Cost of Care,LD - East Cambs - Special Needs,Day Care
Cambridgeshire County Council,14-Jan-22,51301706056,"-2,672.20",THE EDMUND TRUST,CARE ESTABLISHMENT,LD - East Locality - Cost of Care,LD - East Cambs - Special Needs,Day Care
Cambridgeshire County Council,14-Jan-22,51301706056,"-2,672.20",THE EDMUND TRUST,CARE ESTABLISHMENT,LD - East Locality - Cost of Care,LD - East Cambs - Special Needs,Day Care
Cambridgeshire County Council,14-Jan-22,51301706056,"-2,672.20",THE EDMUND TRUST,CARE ESTABLISHMENT,LD - East Locality - Cost of Care,LD - East Cambs - Special Needs,Day Care
Cambridgeshire County Council,14-Jan-22,51301706056,"-2,672.20",THE EDMUND TRUST,CARE ESTABLISHMENT,LD - East Locality - Cost of Care,LD - East Cambs - Special Needs,Day Care
Cambridgeshire County Council,14-Jan-22,51301706056,"-2,672.20",THE EDMUND TRUST,CARE ESTABLISHMENT,LD - East Locality - Cost of Care,LD - East Cambs - Special Needs,Day Care
Cambridgeshire County Council,14-Jan-22,51301706056,"-2,672.20",THE EDMUND TRUST,CARE ESTABLISHMENT,LD - East Locality - Cost of Care,LD - East Cambs - Special Needs,Day Care
Cambridgeshire County Council,14-Jan-22,51301706056,"-2,672.20",THE EDMUND TRUST,CARE ESTABLISHMENT,LD - East Locality - Cost of Care,LD - East Cambs - Special Needs,Day Care
Cambridgeshire County Council,14-Jan-22,51301706056,"-2,672.20",THE EDMUND TRUST,CARE ESTABLISHMENT,LD - East Locality - Cost of Care,LD - East Cambs - Special Needs,Day Care
Cambridgeshire County Council,14-Jan-22,51301706056,"-2,672.20",THE EDMUND TRUST,CARE ESTABLISHMENT,LD - East Locality - Cost of Care,LD - East Cambs - Special Needs,Day Care
Cambridgeshire County Council,14-Jan-22,51301706056,"-2,672.20",THE EDMUND TRUST,CARE ESTABLISHMENT,LD - East Locality - Cost of Care,LD - East Cambs - Special Needs,Day Care
Cambridgeshire County Council,14-Jan-22,51301706056,"-2,672.20",THE EDMUND TRUST,CARE ESTABLISHMENT,LD - East Locality - Cost of Care,LD - East Cambs - Special Needs,Day Care
Cambridgeshire County Council,14-Jan-22,51301706056,"-2,672.20",THE EDMUND TRUST,CARE ESTABLISHMENT,LD - East Locality - Cost of Care,LD - East Cambs - Special Needs,Day Care
Cambridgeshire County Council,14-Jan-22,51301706056,"-2,672.20",THE EDMUND TRUST,CARE ESTABLISHMENT,LD - East Locality - Cost of Care,LD - East Cambs - Special Needs,Day Care
Cambridgeshire County Council,14-Jan-22,51301706056,"-2,672.20",THE EDMUND TRUST,CARE ESTABLISHMENT,LD - East Locality - Cost of Care,LD - East Cambs - Special Needs,Day Care
Cambridgeshire County Council,14-Jan-22,51301706056,"-2,672.20",THE EDMUND TRUST,CARE ESTABLISHMENT,LD - East Locality - Cost of Care,LD - East Cambs - Special Needs,Day Care
Cambridgeshire County Council,14-Jan-22,51301706056,"-2,672.20",THE EDMUND TRUST,CARE ESTABLISHMENT,LD - East Locality - Cost of Care,LD - East Cambs - Special Needs,Day Care
Cambridgeshire County Council,14-Jan-22,51301706056,"-2,672.20",THE EDMUND TRUST,CARE ESTABLISHMENT,LD - East Locality - Cost of Care,LD - East Cambs - Special Needs,Day Care
Cambridgeshire County Council,14-Jan-22,51301706056,"-2,672.20",THE EDMUND TRUST,CARE ESTABLISHMENT,LD - East Locality - Cost of Care,LD - East Cambs - Special Needs,Day Care
Cambridgeshire County Council,14-Jan-22,51301706056,"-2,672.20",THE EDMUND TRUST,CARE ESTABLISHMENT,LD - East Locality - Cost of Care,LD - East Cambs - Special Needs,Day Care
Cambridgeshire County Council,14-Jan-22,51301706056,"-2,672.20",THE EDMUND TRUST,CARE ESTABLISHMENT,LD - East Locality - Cost of Care,LD - East Cambs - Special Needs,Day Care
Cambridgeshire County Council,14-Jan-22,51301706056,"-2,672.20",THE EDMUND TRUST,CARE ESTABLISHMENT,LD - East Locality - Cost of Care,LD - East Cambs - Special Needs,Day Care
Cambridgeshire County Council,14-Jan-22,51301706056,"-2,672.20",THE EDMUND TRUST,CARE ESTABLISHMENT,LD - East Locality - Cost of Care,LD - East Cambs - Special Needs,Day Care
Cambridgeshire County Council,14-Jan-22,51301706056,"-2,672.20",THE EDMUND TRUST,CARE ESTABLISHMENT,LD - East Locality - Cost of Care,LD - East Cambs - Special Needs,Day Care
Cambridgeshire County Council,14-Jan-22,51301706056,"-2,672.20",THE EDMUND TRUST,CARE ESTABLISHMENT,LD - East Locality - Cost of Care,LD - East Cambs - Special Needs,Day Care
Cambridgeshire County Council,21-Jan-22,51301714085,"-2,649.86",RHEOLA HEALTHCARE,CARE ESTABLISHMENT,OP - Hunts Blocks,Hunts - Long term blocks,Residential Care
Cambridgeshire County Council,04-Jan-22,65300016950,"-2,649.24",PARSON DROVE PRE SCHOOL,NURSERY,SEND High Needs Top Up,SEND Specialist Services-High needs top-up-Early Years,Independent School Placements
Cambridgeshire County Council,14-Jan-22,51301705937,"-2,637.13",SENSE (MIDLANDS),CARE ESTABLISHMENT,LD - Hunts Locality - Cost of Care,LD - Huntingdonshire - Care,Residential Care
Cambridgeshire County Council,14-Jan-22,51301705937,"-2,637.13",SENSE (MIDLANDS),CARE ESTABLISHMENT,LD - Hunts Locality - Cost of Care,LD - Huntingdonshire - Care,Residential Care
Cambridgeshire County Council,14-Jan-22,51301705937,"-2,637.13",SENSE (MIDLANDS),CARE ESTABLISHMENT,LD - Hunts Locality - Cost of Care,LD - Huntingdonshire - Care,Residential Care
Cambridgeshire County Council,14-Jan-22,51301705937,"-2,637.13",SENSE (MIDLANDS),CARE ESTABLISHMENT,LD - Hunts Locality - Cost of Care,LD - Huntingdonshire - Care,Residential Care
Cambridgeshire County Council,14-Jan-22,51301705937,"-2,637.13",SENSE (MIDLANDS),CARE ESTABLISHMENT,LD - Hunts Locality - Cost of Care,LD - Huntingdonshire - Care,Residential Care
Cambridgeshire County Council,14-Jan-22,51301705937,"-2,637.13",SENSE (MIDLANDS),CARE ESTABLISHMENT,LD - Hunts Locality - Cost of Care,LD - Huntingdonshire - Care,Residential Care
Cambridgeshire County Council,14-Jan-22,51301705937,"-2,637.13",SENSE (MIDLANDS),CARE ESTABLISHMENT,LD - Hunts Locality - Cost of Care,LD - Huntingdonshire - Care,Residential Care
Cambridgeshire County Council,14-Jan-22,51301705937,"-2,637.13",SENSE (MIDLANDS),CARE ESTABLISHMENT,LD - Hunts Locality - Cost of Care,LD - Huntingdonshire - Care,Residential Care
Cambridgeshire County Council,14-Jan-22,51301705937,"-2,637.13",SENSE (MIDLANDS),CARE ESTABLISHMENT,LD - Hunts Locality - Cost of Care,LD - Huntingdonshire - Care,Residential Care
Cambridgeshire County Council,14-Jan-22,51301705937,"-2,637.13",SENSE (MIDLANDS),CARE ESTABLISHMENT,LD - Hunts Locality - Cost of Care,LD - Huntingdonshire - Care,Residential Care
Cambridgeshire County Council,14-Jan-22,51301705937,"-2,637.13",SENSE (MIDLANDS),CARE ESTABLISHMENT,LD - Hunts Locality - Cost of Care,LD - Huntingdonshire - Care,Residential Care
Cambridgeshire County Council,14-Jan-22,51301705937,"-2,637.13",SENSE (MIDLANDS),CARE ESTABLISHMENT,LD - Hunts Locality - Cost of Care,LD - Huntingdonshire - Care,Residential Care
Cambridgeshire County Council,14-Jan-22,51301705937,"-2,637.13",SENSE (MIDLANDS),CARE ESTABLISHMENT,LD - Hunts Locality - Cost of Care,LD - Huntingdonshire - Care,Residential Care
Cambridgeshire County Council,14-Jan-22,51301705937,"-2,637.13",SENSE (MIDLANDS),CARE ESTABLISHMENT,LD - Hunts Locality - Cost of Care,LD - Huntingdonshire - Care,Residential Care
Cambridgeshire County Council,14-Jan-22,51301705937,"-2,637.13",SENSE (MIDLANDS),CARE ESTABLISHMENT,LD - Hunts Locality - Cost of Care,LD - Huntingdonshire - Care,Residential Care
Cambridgeshire County Council,14-Jan-22,51301705937,"-2,637.13",SENSE (MIDLANDS),CARE ESTABLISHMENT,LD - Hunts Locality - Cost of Care,LD - Huntingdonshire - Care,Residential Care
Cambridgeshire County Council,14-Jan-22,51301705937,"-2,637.13",SENSE (MIDLANDS),CARE ESTABLISHMENT,LD - Hunts Locality - Cost of Care,LD - Huntingdonshire - Care,Residential Care
Cambridgeshire County Council,14-Jan-22,51301705937,"-2,637.13",SENSE (MIDLANDS),CARE ESTABLISHMENT,LD - Hunts Locality - Cost of Care,LD - Huntingdonshire - Care,Residential Care
Cambridgeshire County Council,14-Jan-22,51301705937,"-2,637.13",SENSE (MIDLANDS),CARE ESTABLISHMENT,LD - Hunts Locality - Cost of Care,LD - Huntingdonshire - Care,Residential Care
Cambridgeshire County Council,14-Jan-22,51301705937,"-2,637.13",SENSE (MIDLANDS),CARE ESTABLISHMENT,LD - Hunts Locality - Cost of Care,LD - Huntingdonshire - Care,Residential Care
Cambridgeshire County Council,14-Jan-22,51301705937,"-2,637.13",SENSE (MIDLANDS),CARE ESTABLISHMENT,LD - Hunts Locality - Cost of Care,LD - Huntingdonshire - Care,Residential Care
Cambridgeshire County Council,14-Jan-22,51301705937,"-2,637.13",SENSE (MIDLANDS),CARE ESTABLISHMENT,LD - Hunts Locality - Cost of Care,LD - Huntingdonshire - Care,Residential Care
Cambridgeshire County Council,14-Jan-22,51301705937,"-2,637.13",SENSE (MIDLANDS),CARE ESTABLISHMENT,LD - Hunts Locality - Cost of Care,LD - Huntingdonshire - Care,Residential Care
Cambridgeshire County Council,14-Jan-22,51301705937,"-2,637.13",SENSE (MIDLANDS),CARE ESTABLISHMENT,LD - Hunts Locality - Cost of Care,LD - Huntingdonshire - Care,Residential Care
Cambridgeshire County Council,14-Jan-22,51301705937,"-2,637.13",SENSE (MIDLANDS),CARE ESTABLISHMENT,LD - Hunts Locality - Cost of Care,LD - Huntingdonshire - Care,Residential Care
Cambridgeshire County Council,14-Jan-22,51301705937,"-2,637.13",SENSE (MIDLANDS),CARE ESTABLISHMENT,LD - Hunts Locality - Cost of Care,LD - Huntingdonshire - Care,Residential Care
Cambridgeshire County Council,14-Jan-22,51301705937,"-2,637.13",SENSE (MIDLANDS),CARE ESTABLISHMENT,LD - Hunts Locality - Cost of Care,LD - Huntingdonshire - Care,Residential Care
Cambridgeshire County Council,14-Jan-22,51301705937,"-2,637.13",SENSE (MIDLANDS),CARE ESTABLISHMENT,LD - Hunts Locality - Cost of Care,LD - Huntingdonshire - Care,Residential Care
Cambridgeshire County Council,14-Jan-22,51301705937,"-2,637.13",SENSE (MIDLANDS),CARE ESTABLISHMENT,LD - Hunts Locality - Cost of Care,LD - Huntingdonshire - Care,Residential Care
Cambridgeshire County Council,14-Jan-22,51301705937,"-2,637.13",SENSE (MIDLANDS),CARE ESTABLISHMENT,LD - Hunts Locality - Cost of Care,LD - Huntingdonshire - Care,Residential Care
Cambridgeshire County Council,14-Jan-22,51301705937,"-2,637.13",SENSE (MIDLANDS),CARE ESTABLISHMENT,LD - Hunts Locality - Cost of Care,LD - Huntingdonshire - Care,Residential Care
Cambridgeshire County Council,14-Jan-22,51301705937,"-2,637.13",SENSE (MIDLANDS),CARE ESTABLISHMENT,LD - Hunts Locality - Cost of Care,LD - Huntingdonshire - Care,Residential Care
Cambridgeshire County Council,14-Jan-22,51301705937,"-2,637.13",SENSE (MIDLANDS),CARE ESTABLISHMENT,LD - Hunts Locality - Cost of Care,LD - Huntingdonshire - Care,Residential Care
Cambridgeshire County Council,14-Jan-22,51301705937,"-2,637.13",SENSE (MIDLANDS),CARE ESTABLISHMENT,LD - Hunts Locality - Cost of Care,LD - Huntingdonshire - Care,Residential Care
Cambridgeshire County Council,14-Jan-22,51301705937,"-2,637.13",SENSE (MIDLANDS),CARE ESTABLISHMENT,LD - Hunts Locality - Cost of Care,LD - Huntingdonshire - Care,Residential Care
Cambridgeshire County Council,14-Jan-22,51301705937,"-2,637.13",SENSE (MIDLANDS),CARE ESTABLISHMENT,LD - Hunts Locality - Cost of Care,LD - Huntingdonshire - Care,Residential Care
Cambridgeshire County Council,14-Jan-22,51301705937,"-2,637.13",SENSE (MIDLANDS),CARE ESTABLISHMENT,LD - Hunts Locality - Cost of Care,LD - Huntingdonshire - Care,Residential Care
Cambridgeshire County Council,14-Jan-22,51301705937,"-2,637.13",SENSE (MIDLANDS),CARE ESTABLISHMENT,LD - Hunts Locality - Cost of Care,LD - Huntingdonshire - Care,Residential Care
Cambridgeshire County Council,14-Jan-22,51301705937,"-2,637.13",SENSE (MIDLANDS),CARE ESTABLISHMENT,LD - Hunts Locality - Cost of Care,LD - Huntingdonshire - Care,Residential Care
Cambridgeshire County Council,14-Jan-22,51301705937,"-2,637.13",SENSE (MIDLANDS),CARE ESTABLISHMENT,LD - Hunts Locality - Cost of Care,LD - Huntingdonshire - Care,Residential Care
Cambridgeshire County Council,14-Jan-22,51301705937,"-2,637.13",SENSE (MIDLANDS),CARE ESTABLISHMENT,LD - Hunts Locality - Cost of Care,LD - Huntingdonshire - Care,Residential Care
Cambridgeshire County Council,14-Jan-22,51301705937,"-2,637.13",SENSE (MIDLANDS),CARE ESTABLISHMENT,LD - Hunts Locality - Cost of Care,LD - Huntingdonshire - Care,Residential Care
Cambridgeshire County Council,14-Jan-22,51301705937,"-2,637.13",SENSE (MIDLANDS),CARE ESTABLISHMENT,LD - Hunts Locality - Cost of Care,LD - Huntingdonshire - Care,Residential Care
Cambridgeshire County Council,14-Jan-22,51301705937,"-2,637.13",SENSE (MIDLANDS),CARE ESTABLISHMENT,LD - Hunts Locality - Cost of Care,LD - Huntingdonshire - Care,Residential Care
Cambridgeshire County Council,14-Jan-22,51301705937,"-2,637.13",SENSE (MIDLANDS),CARE ESTABLISHMENT,LD - Hunts Locality - Cost of Care,LD - Huntingdonshire - Care,Residential Care
Cambridgeshire County Council,14-Jan-22,51301705937,"-2,637.13",SENSE (MIDLANDS),CARE ESTABLISHMENT,LD - Hunts Locality - Cost of Care,LD - Huntingdonshire - Care,Residential Care
Cambridgeshire County Council,14-Jan-22,51301705937,"-2,637.13",SENSE (MIDLANDS),CARE ESTABLISHMENT,LD - Hunts Locality - Cost of Care,LD - Huntingdonshire - Care,Residential Care
Cambridgeshire County Council,14-Jan-22,51301705937,"-2,637.13",SENSE (MIDLANDS),CARE ESTABLISHMENT,LD - Hunts Locality - Cost of Care,LD - Huntingdonshire - Care,Residential Care
Cambridgeshire County Council,14-Jan-22,51301705937,"-2,637.13",SENSE (MIDLANDS),CARE ESTABLISHMENT,LD - Hunts Locality - Cost of Care,LD - Huntingdonshire - Care,Residential Care
Cambridgeshire County Council,14-Jan-22,51301705937,"-2,637.13",SENSE (MIDLANDS),CARE ESTABLISHMENT,LD - Hunts Locality - Cost of Care,LD - Huntingdonshire - Care,Residential Care
Cambridgeshire County Council,14-Jan-22,51301705937,"-2,637.13",SENSE (MIDLANDS),CARE ESTABLISHMENT,LD - Hunts Locality - Cost of Care,LD - Huntingdonshire - Care,Residential Care
Cambridgeshire County Council,14-Jan-22,51301705937,"-2,637.13",SENSE (MIDLANDS),CARE ESTABLISHMENT,LD - Hunts Locality - Cost of Care,LD - Huntingdonshire - Care,Residential Care
Cambridgeshire County Council,14-Jan-22,51301705937,"-2,637.13",SENSE (MIDLANDS),CARE ESTABLISHMENT,LD - Hunts Locality - Cost of Care,LD - Huntingdonshire - Care,Residential Care
Cambridgeshire County Council,14-Jan-22,51301705937,"-2,637.13",SENSE (MIDLANDS),CARE ESTABLISHMENT,LD - Hunts Locality - Cost of Care,LD - Huntingdonshire - Care,Residential Care
Cambridgeshire County Council,14-Jan-22,51301705937,"-2,637.13",SENSE (MIDLANDS),CARE ESTABLISHMENT,LD - Hunts Locality - Cost of Care,LD - Huntingdonshire - Care,Residential Care
Cambridgeshire County Council,14-Jan-22,51301705937,"-2,637.13",SENSE (MIDLANDS),CARE ESTABLISHMENT,LD - Hunts Locality - Cost of Care,LD - Huntingdonshire - Care,Residential Care
Cambridgeshire County Council,14-Jan-22,51301705937,"-2,637.13",SENSE (MIDLANDS),CARE ESTABLISHMENT,LD - Hunts Locality - Cost of Care,LD - Huntingdonshire - Care,Residential Care
Cambridgeshire County Council,14-Jan-22,51301705937,"-2,637.13",SENSE (MIDLANDS),CARE ESTABLISHMENT,LD - Hunts Locality - Cost of Care,LD - Huntingdonshire - Care,Residential Care
Cambridgeshire County Council,14-Jan-22,51301705937,"-2,637.13",SENSE (MIDLANDS),CARE ESTABLISHMENT,LD - Hunts Locality - Cost of Care,LD - Huntingdonshire - Care,Residential Care
Cambridgeshire County Council,14-Jan-22,51301705937,"-2,637.13",SENSE (MIDLANDS),CARE ESTABLISHMENT,LD - Hunts Locality - Cost of Care,LD - Huntingdonshire - Care,Residential Care
Cambridgeshire County Council,14-Jan-22,51301705937,"-2,637.13",SENSE (MIDLANDS),CARE ESTABLISHMENT,LD - Hunts Locality - Cost of Care,LD - Huntingdonshire - Care,Residential Care
Cambridgeshire County Council,14-Jan-22,51301705937,"-2,637.13",SENSE (MIDLANDS),CARE ESTABLISHMENT,LD - Hunts Locality - Cost of Care,LD - Huntingdonshire - Care,Residential Care
Cambridgeshire County Council,14-Jan-22,51301705937,"-2,637.13",SENSE (MIDLANDS),CARE ESTABLISHMENT,LD - Hunts Locality - Cost of Care,LD - Huntingdonshire - Care,Residential Care
Cambridgeshire County Council,14-Jan-22,51301705937,"-2,637.13",SENSE (MIDLANDS),CARE ESTABLISHMENT,LD - Hunts Locality - Cost of Care,LD - Huntingdonshire - Care,Residential Care
Cambridgeshire County Council,14-Jan-22,51301705937,"-2,637.13",SENSE (MIDLANDS),CARE ESTABLISHMENT,LD - Hunts Locality - Cost of Care,LD - Huntingdonshire - Care,Residential Care
Cambridgeshire County Council,14-Jan-22,51301705937,"-2,637.13",SENSE (MIDLANDS),CARE ESTABLISHMENT,LD - Hunts Locality - Cost of Care,LD - Huntingdonshire - Care,Residential Care
Cambridgeshire County Council,14-Jan-22,51301705937,"-2,637.13",SENSE (MIDLANDS),CARE ESTABLISHMENT,LD - Hunts Locality - Cost of Care,LD - Huntingdonshire - Care,Residential Care
Cambridgeshire County Council,14-Jan-22,51301705937,"-2,637.13",SENSE (MIDLANDS),CARE ESTABLISHMENT,LD - Hunts Locality - Cost of Care,LD - Huntingdonshire - Care,Residential Care
Cambridgeshire County Council,14-Jan-22,51301705937,"-2,637.13",SENSE (MIDLANDS),CARE ESTABLISHMENT,LD - Hunts Locality - Cost of Care,LD - Huntingdonshire - Care,Residential Care
Cambridgeshire County Council,14-Jan-22,51301705937,"-2,637.13",SENSE (MIDLANDS),CARE ESTABLISHMENT,LD - Hunts Locality - Cost of Care,LD - Huntingdonshire - Care,Residential Care
Cambridgeshire County Council,14-Jan-22,51301705937,"-2,637.13",SENSE (MIDLANDS),CARE ESTABLISHMENT,LD - Hunts Locality - Cost of Care,LD - Huntingdonshire - Care,Residential Care
Cambridgeshire County Council,14-Jan-22,51301705937,"-2,637.13",SENSE (MIDLANDS),CARE ESTABLISHMENT,LD - Hunts Locality - Cost of Care,LD - Huntingdonshire - Care,Residential Care
Cambridgeshire County Council,14-Jan-22,51301705937,"-2,637.13",SENSE (MIDLANDS),CARE ESTABLISHMENT,LD - Hunts Locality - Cost of Care,LD - Huntingdonshire - Care,Residential Care
Cambridgeshire County Council,14-Jan-22,51301705937,"-2,637.13",SENSE (MIDLANDS),CARE ESTABLISHMENT,LD - Hunts Locality - Cost of Care,LD - Huntingdonshire - Care,Residential Care
Cambridgeshire County Council,14-Jan-22,51301705937,"-2,637.13",SENSE (MIDLANDS),CARE ESTABLISHMENT,LD - Hunts Locality - Cost of Care,LD - Huntingdonshire - Care,Residential Care
Cambridgeshire County Council,14-Jan-22,51301705937,"-2,637.13",SENSE (MIDLANDS),CARE ESTABLISHMENT,LD - Hunts Locality - Cost of Care,LD - Huntingdonshire - Care,Residential Care
Cambridgeshire County Council,14-Jan-22,51301705937,"-2,637.13",SENSE (MIDLANDS),CARE ESTABLISHMENT,LD - Hunts Locality - Cost of Care,LD - Huntingdonshire - Care,Residential Care
Cambridgeshire County Council,14-Jan-22,51301705937,"-2,637.13",SENSE (MIDLANDS),CARE ESTABLISHMENT,LD - Hunts Locality - Cost of Care,LD - Huntingdonshire - Care,Residential Care
Cambridgeshire County Council,14-Jan-22,51301705937,"-2,637.13",SENSE (MIDLANDS),CARE ESTABLISHMENT,LD - Hunts Locality - Cost of Care,LD - Huntingdonshire - Care,Residential Care
Cambridgeshire County Council,14-Jan-22,51301705937,"-2,637.13",SENSE (MIDLANDS),CARE ESTABLISHMENT,LD - Hunts Locality - Cost of Care,LD - Huntingdonshire - Care,Residential Care
Cambridgeshire County Council,14-Jan-22,51301705937,"-2,637.13",SENSE (MIDLANDS),CARE ESTABLISHMENT,LD - Hunts Locality - Cost of Care,LD - Huntingdonshire - Care,Residential Care
Cambridgeshire County Council,14-Jan-22,51301705937,"-2,637.13",SENSE (MIDLANDS),CARE ESTABLISHMENT,LD - Hunts Locality - Cost of Care,LD - Huntingdonshire - Care,Residential Care
Cambridgeshire County Council,21-Jan-22,51301713634,"-2,629.02",Focus Care Agency,CARE ESTABLISHMENT,LD - Young Adults Team,LD - Young Adults - Care,Domiciliary Care
Cambridgeshire County Council,13-Jan-22,51301705439,"-2,544.00",FEVACA,CARE ESTABLISHMENT,LAC Placements,Placements - supported accommodation,Agency Placements - In County
Cambridgeshire County Council,07-Jan-22,51301703152,"-2,520.00",Keys PCE Ltd,CARE ESTABLISHMENT,LAC Placements,Placements - residential homes,Agency Placements - Out of  County
Cambridgeshire County Council,07-Jan-22,51301703114,"-2,451.43",To The Moon and Back Foster Care Limited,CARE ESTABLISHMENT,LAC Placements,Placements - independent fostering,Agency Placements - Out of  County
Cambridgeshire County Council,07-Jan-22,51301703105,"-2,451.43",To The Moon and Back Foster Care Limited,CARE ESTABLISHMENT,LAC Placements,Placements - independent fostering,Agency Placements - Out of  County
Cambridgeshire County Council,07-Jan-22,51301703126,"-2,451.43",To The Moon and Back Foster Care Limited,CARE ESTABLISHMENT,LAC Placements,Placements - independent fostering,Agency Placements - Out of  County
Cambridgeshire County Council,14-Jan-22,51301705934,"-2,316.58",SENSE EAST,CARE ESTABLISHMENT,LD - South Locality - Cost of Care,LD - South Cambs - Care,Residential Care
Cambridgeshire County Council,14-Jan-22,51301705934,"-2,316.58",SENSE EAST,CARE ESTABLISHMENT,LD - South Locality - Cost of Care,LD - South Cambs - Care,Residential Care
Cambridgeshire County Council,14-Jan-22,51301705934,"-2,316.58",SENSE EAST,CARE ESTABLISHMENT,LD - South Locality - Cost of Care,LD - South Cambs - Care,Residential Care
Cambridgeshire County Council,14-Jan-22,51301705934,"-2,316.58",SENSE EAST,CARE ESTABLISHMENT,LD - South Locality - Cost of Care,LD - South Cambs - Care,Residential Care
Cambridgeshire County Council,14-Jan-22,51301705934,"-2,316.58",SENSE EAST,CARE ESTABLISHMENT,LD - South Locality - Cost of Care,LD - South Cambs - Care,Residential Care
Cambridgeshire County Council,14-Jan-22,51301705934,"-2,316.58",SENSE EAST,CARE ESTABLISHMENT,LD - South Locality - Cost of Care,LD - South Cambs - Care,Residential Care
Cambridgeshire County Council,14-Jan-22,51301705934,"-2,316.58",SENSE EAST,CARE ESTABLISHMENT,LD - South Locality - Cost of Care,LD - South Cambs - Care,Residential Care
Cambridgeshire County Council,14-Jan-22,51301705934,"-2,316.58",SENSE EAST,CARE ESTABLISHMENT,LD - South Locality - Cost of Care,LD - South Cambs - Care,Residential Care
Cambridgeshire County Council,14-Jan-22,51301705934,"-2,316.58",SENSE EAST,CARE ESTABLISHMENT,LD - South Locality - Cost of Care,LD - South Cambs - Care,Residential Care
Cambridgeshire County Council,14-Jan-22,51301705934,"-2,316.58",SENSE EAST,CARE ESTABLISHMENT,LD - South Locality - Cost of Care,LD - South Cambs - Care,Residential Care
Cambridgeshire County Council,14-Jan-22,51301705934,"-2,316.58",SENSE EAST,CARE ESTABLISHMENT,LD - South Locality - Cost of Care,LD - South Cambs - Care,Residential Care
Cambridgeshire County Council,14-Jan-22,51301705934,"-2,316.58",SENSE EAST,CARE ESTABLISHMENT,LD - South Locality - Cost of Care,LD - South Cambs - Care,Residential Care
Cambridgeshire County Council,14-Jan-22,51301705934,"-2,316.58",SENSE EAST,CARE ESTABLISHMENT,LD - South Locality - Cost of Care,LD - South Cambs - Care,Residential Care
Cambridgeshire County Council,14-Jan-22,51301705934,"-2,316.58",SENSE EAST,CARE ESTABLISHMENT,LD - South Locality - Cost of Care,LD - South Cambs - Care,Residential Care
Cambridgeshire County Council,14-Jan-22,51301705934,"-2,316.58",SENSE EAST,CARE ESTABLISHMENT,LD - South Locality - Cost of Care,LD - South Cambs - Care,Residential Care
Cambridgeshire County Council,14-Jan-22,51301705934,"-2,316.58",SENSE EAST,CARE ESTABLISHMENT,LD - South Locality - Cost of Care,LD - South Cambs - Care,Residential Care
Cambridgeshire County Council,14-Jan-22,51301705934,"-2,316.58",SENSE EAST,CARE ESTABLISHMENT,LD - South Locality - Cost of Care,LD - South Cambs - Care,Residential Care
Cambridgeshire County Council,14-Jan-22,51301705934,"-2,316.58",SENSE EAST,CARE ESTABLISHMENT,LD - South Locality - Cost of Care,LD - South Cambs - Care,Residential Care
Cambridgeshire County Council,14-Jan-22,51301705934,"-2,316.58",SENSE EAST,CARE ESTABLISHMENT,LD - South Locality - Cost of Care,LD - South Cambs - Care,Residential Care
Cambridgeshire County Council,14-Jan-22,51301705934,"-2,316.58",SENSE EAST,CARE ESTABLISHMENT,LD - South Locality - Cost of Care,LD - South Cambs - Care,Residential Care
Cambridgeshire County Council,14-Jan-22,51301705934,"-2,316.58",SENSE EAST,CARE ESTABLISHMENT,LD - South Locality - Cost of Care,LD - South Cambs - Care,Residential Care
Cambridgeshire County Council,14-Jan-22,51301705934,"-2,316.58",SENSE EAST,CARE ESTABLISHMENT,LD - South Locality - Cost of Care,LD - South Cambs - Care,Residential Care
Cambridgeshire County Council,14-Jan-22,51301705934,"-2,316.58",SENSE EAST,CARE ESTABLISHMENT,LD - South Locality - Cost of Care,LD - South Cambs - Care,Residential Care
Cambridgeshire County Council,14-Jan-22,51301705934,"-2,316.58",SENSE EAST,CARE ESTABLISHMENT,LD - South Locality - Cost of Care,LD - South Cambs - Care,Residential Care
Cambridgeshire County Council,14-Jan-22,51301705934,"-2,316.58",SENSE EAST,CARE ESTABLISHMENT,LD - South Locality - Cost of Care,LD - South Cambs - Care,Residential Care
Cambridgeshire County Council,14-Jan-22,51301705934,"-2,316.58",SENSE EAST,CARE ESTABLISHMENT,LD - South Locality - Cost of Care,LD - South Cambs - Care,Residential Care
Cambridgeshire County Council,14-Jan-22,51301705934,"-2,316.58",SENSE EAST,CARE ESTABLISHMENT,LD - South Locality - Cost of Care,LD - South Cambs - Care,Residential Care
Cambridgeshire County Council,14-Jan-22,51301705934,"-2,316.58",SENSE EAST,CARE ESTABLISHMENT,LD - South Locality - Cost of Care,LD - South Cambs - Care,Residential Care
Cambridgeshire County Council,14-Jan-22,51301705934,"-2,316.58",SENSE EAST,CARE ESTABLISHMENT,LD - South Locality - Cost of Care,LD - South Cambs - Care,Residential Care
Cambridgeshire County Council,14-Jan-22,51301705934,"-2,316.58",SENSE EAST,CARE ESTABLISHMENT,LD - South Locality - Cost of Care,LD - South Cambs - Care,Residential Care
Cambridgeshire County Council,14-Jan-22,51301705934,"-2,316.58",SENSE EAST,CARE ESTABLISHMENT,LD - South Locality - Cost of Care,LD - South Cambs - Care,Residential Care
Cambridgeshire County Council,14-Jan-22,51301705934,"-2,316.58",SENSE EAST,CARE ESTABLISHMENT,LD - South Locality - Cost of Care,LD - South Cambs - Care,Residential Care
Cambridgeshire County Council,14-Jan-22,51301705934,"-2,316.58",SENSE EAST,CARE ESTABLISHMENT,LD - South Locality - Cost of Care,LD - South Cambs - Care,Residential Care
Cambridgeshire County Council,14-Jan-22,51301705934,"-2,316.58",SENSE EAST,CARE ESTABLISHMENT,LD - South Locality - Cost of Care,LD - South Cambs - Care,Residential Care
Cambridgeshire County Council,14-Jan-22,51301705934,"-2,316.58",SENSE EAST,CARE ESTABLISHMENT,LD - South Locality - Cost of Care,LD - South Cambs - Care,Residential Care
Cambridgeshire County Council,14-Jan-22,51301705934,"-2,316.58",SENSE EAST,CARE ESTABLISHMENT,LD - South Locality - Cost of Care,LD - South Cambs - Care,Residential Care
Cambridgeshire County Council,14-Jan-22,51301705934,"-2,316.58",SENSE EAST,CARE ESTABLISHMENT,LD - South Locality - Cost of Care,LD - South Cambs - Care,Residential Care
Cambridgeshire County Council,14-Jan-22,51301705934,"-2,316.58",SENSE EAST,CARE ESTABLISHMENT,LD - South Locality - Cost of Care,LD - South Cambs - Care,Residential Care
Cambridgeshire County Council,14-Jan-22,51301705934,"-2,316.58",SENSE EAST,CARE ESTABLISHMENT,LD - South Locality - Cost of Care,LD - South Cambs - Care,Residential Care
Cambridgeshire County Council,14-Jan-22,51301705934,"-2,316.58",SENSE EAST,CARE ESTABLISHMENT,LD - South Locality - Cost of Care,LD - South Cambs - Care,Residential Care
Cambridgeshire County Council,14-Jan-22,51301705934,"-2,316.58",SENSE EAST,CARE ESTABLISHMENT,LD - South Locality - Cost of Care,LD - South Cambs - Care,Residential Care
Cambridgeshire County Council,14-Jan-22,51301705934,"-2,316.58",SENSE EAST,CARE ESTABLISHMENT,LD - South Locality - Cost of Care,LD - South Cambs - Care,Residential Care
Cambridgeshire County Council,14-Jan-22,51301705934,"-2,316.58",SENSE EAST,CARE ESTABLISHMENT,LD - South Locality - Cost of Care,LD - South Cambs - Care,Residential Care
Cambridgeshire County Council,14-Jan-22,51301705934,"-2,316.58",SENSE EAST,CARE ESTABLISHMENT,LD - South Locality - Cost of Care,LD - South Cambs - Care,Residential Care
Cambridgeshire County Council,14-Jan-22,51301705934,"-2,316.58",SENSE EAST,CARE ESTABLISHMENT,LD - South Locality - Cost of Care,LD - South Cambs - Care,Residential Care
Cambridgeshire County Council,14-Jan-22,51301705934,"-2,316.58",SENSE EAST,CARE ESTABLISHMENT,LD - South Locality - Cost of Care,LD - South Cambs - Care,Residential Care
Cambridgeshire County Council,14-Jan-22,51301705934,"-2,316.58",SENSE EAST,CARE ESTABLISHMENT,LD - South Locality - Cost of Care,LD - South Cambs - Care,Residential Care
Cambridgeshire County Council,14-Jan-22,51301705934,"-2,316.58",SENSE EAST,CARE ESTABLISHMENT,LD - South Locality - Cost of Care,LD - South Cambs - Care,Residential Care
Cambridgeshire County Council,14-Jan-22,51301705934,"-2,316.58",SENSE EAST,CARE ESTABLISHMENT,LD - South Locality - Cost of Care,LD - South Cambs - Care,Residential Care
Cambridgeshire County Council,14-Jan-22,51301705934,"-2,316.58",SENSE EAST,CARE ESTABLISHMENT,LD - South Locality - Cost of Care,LD - South Cambs - Care,Residential Care
Cambridgeshire County Council,14-Jan-22,51301705934,"-2,316.58",SENSE EAST,CARE ESTABLISHMENT,LD - South Locality - Cost of Care,LD - South Cambs - Care,Residential Care
Cambridgeshire County Council,14-Jan-22,51301705934,"-2,316.58",SENSE EAST,CARE ESTABLISHMENT,LD - South Locality - Cost of Care,LD - South Cambs - Care,Residential Care
Cambridgeshire County Council,14-Jan-22,51301705934,"-2,316.58",SENSE EAST,CARE ESTABLISHMENT,LD - South Locality - Cost of Care,LD - South Cambs - Care,Residential Care
Cambridgeshire County Council,14-Jan-22,51301705934,"-2,316.58",SENSE EAST,CARE ESTABLISHMENT,LD - South Locality - Cost of Care,LD - South Cambs - Care,Residential Care
Cambridgeshire County Council,14-Jan-22,51301705934,"-2,316.58",SENSE EAST,CARE ESTABLISHMENT,LD - South Locality - Cost of Care,LD - South Cambs - Care,Residential Care
Cambridgeshire County Council,14-Jan-22,51301705934,"-2,316.58",SENSE EAST,CARE ESTABLISHMENT,LD - South Locality - Cost of Care,LD - South Cambs - Care,Residential Care
Cambridgeshire County Council,14-Jan-22,51301705934,"-2,316.58",SENSE EAST,CARE ESTABLISHMENT,LD - South Locality - Cost of Care,LD - South Cambs - Care,Residential Care
Cambridgeshire County Council,14-Jan-22,51301705934,"-2,316.58",SENSE EAST,CARE ESTABLISHMENT,LD - South Locality - Cost of Care,LD - South Cambs - Care,Residential Care
Cambridgeshire County Council,14-Jan-22,51301705934,"-2,316.58",SENSE EAST,CARE ESTABLISHMENT,LD - South Locality - Cost of Care,LD - South Cambs - Care,Residential Care
Cambridgeshire County Council,14-Jan-22,51301705934,"-2,316.58",SENSE EAST,CARE ESTABLISHMENT,LD - South Locality - Cost of Care,LD - South Cambs - Care,Residential Care
Cambridgeshire County Council,14-Jan-22,51301705934,"-2,316.58",SENSE EAST,CARE ESTABLISHMENT,LD - South Locality - Cost of Care,LD - South Cambs - Care,Residential Care
Cambridgeshire County Council,14-Jan-22,51301705934,"-2,316.58",SENSE EAST,CARE ESTABLISHMENT,LD - South Locality - Cost of Care,LD - South Cambs - Care,Residential Care
Cambridgeshire County Council,14-Jan-22,51301705934,"-2,316.58",SENSE EAST,CARE ESTABLISHMENT,LD - South Locality - Cost of Care,LD - South Cambs - Care,Residential Care
Cambridgeshire County Council,14-Jan-22,51301705934,"-2,316.58",SENSE EAST,CARE ESTABLISHMENT,LD - South Locality - Cost of Care,LD - South Cambs - Care,Residential Care
Cambridgeshire County Council,14-Jan-22,51301705934,"-2,316.58",SENSE EAST,CARE ESTABLISHMENT,LD - South Locality - Cost of Care,LD - South Cambs - Care,Residential Care
Cambridgeshire County Council,14-Jan-22,51301705934,"-2,316.58",SENSE EAST,CARE ESTABLISHMENT,LD - South Locality - Cost of Care,LD - South Cambs - Care,Residential Care
Cambridgeshire County Council,14-Jan-22,51301705934,"-2,316.58",SENSE EAST,CARE ESTABLISHMENT,LD - South Locality - Cost of Care,LD - South Cambs - Care,Residential Care
Cambridgeshire County Council,14-Jan-22,51301705934,"-2,316.58",SENSE EAST,CARE ESTABLISHMENT,LD - South Locality - Cost of Care,LD - South Cambs - Care,Residential Care
Cambridgeshire County Council,14-Jan-22,51301705934,"-2,316.58",SENSE EAST,CARE ESTABLISHMENT,LD - South Locality - Cost of Care,LD - South Cambs - Care,Residential Care
Cambridgeshire County Council,14-Jan-22,51301705934,"-2,316.58",SENSE EAST,CARE ESTABLISHMENT,LD - South Locality - Cost of Care,LD - South Cambs - Care,Residential Care
Cambridgeshire County Council,14-Jan-22,51301705934,"-2,316.58",SENSE EAST,CARE ESTABLISHMENT,LD - South Locality - Cost of Care,LD - South Cambs - Care,Residential Care
Cambridgeshire County Council,14-Jan-22,51301705934,"-2,316.58",SENSE EAST,CARE ESTABLISHMENT,LD - South Locality - Cost of Care,LD - South Cambs - Care,Residential Care
Cambridgeshire County Council,14-Jan-22,51301705934,"-2,316.58",SENSE EAST,CARE ESTABLISHMENT,LD - South Locality - Cost of Care,LD - South Cambs - Care,Residential Care
Cambridgeshire County Council,14-Jan-22,51301705934,"-2,316.58",SENSE EAST,CARE ESTABLISHMENT,LD - South Locality - Cost of Care,LD - South Cambs - Care,Residential Care
Cambridgeshire County Council,14-Jan-22,51301705934,"-2,316.58",SENSE EAST,CARE ESTABLISHMENT,LD - South Locality - Cost of Care,LD - South Cambs - Care,Residential Care
Cambridgeshire County Council,14-Jan-22,51301705934,"-2,316.58",SENSE EAST,CARE ESTABLISHMENT,LD - South Locality - Cost of Care,LD - South Cambs - Care,Residential Care
Cambridgeshire County Council,14-Jan-22,51301705934,"-2,316.58",SENSE EAST,CARE ESTABLISHMENT,LD - South Locality - Cost of Care,LD - South Cambs - Care,Residential Care
Cambridgeshire County Council,14-Jan-22,51301705934,"-2,316.58",SENSE EAST,CARE ESTABLISHMENT,LD - South Locality - Cost of Care,LD - South Cambs - Care,Residential Care
Cambridgeshire County Council,14-Jan-22,51301705934,"-2,316.58",SENSE EAST,CARE ESTABLISHMENT,LD - South Locality - Cost of Care,LD - South Cambs - Care,Residential Care
Cambridgeshire County Council,14-Jan-22,51301705934,"-2,316.58",SENSE EAST,CARE ESTABLISHMENT,LD - South Locality - Cost of Care,LD - South Cambs - Care,Residential Care
Cambridgeshire County Council,14-Jan-22,51301705934,"-2,316.58",SENSE EAST,CARE ESTABLISHMENT,LD - South Locality - Cost of Care,LD - South Cambs - Care,Residential Care
Cambridgeshire County Council,14-Jan-22,51301705934,"-2,316.58",SENSE EAST,CARE ESTABLISHMENT,LD - South Locality - Cost of Care,LD - South Cambs - Care,Residential Care
Cambridgeshire County Council,13-Jan-22,51301705438,"-2,120.00",FEVACA,CARE ESTABLISHMENT,LAC Placements,Placements - supported accommodation,Agency Placements - In County
Cambridgeshire County Council,21-Jan-22,51301714121,"-2,114.29",THE CAMBRIDGE NURSING CENTRE,CARE ESTABLISHMENT,OP - City & South Locality - Cost of Care,Older People - City & South - Care,Nursing Care
Cambridgeshire County Council,21-Jan-22,51301714091,"-2,005.71",SWAN HOUSE NURSING & RESIDENTIAL HOME,CARE ESTABLISHMENT,OP - Fenland Blocks,Fenland - Long term blocks,Nursing Care
Cambridgeshire County Council,07-Jan-22,51301703246,"-2,005.71",To The Moon and Back Foster Care Limited,CARE ESTABLISHMENT,LAC Placements,Placements - independent fostering,Agency Placements - In County
Cambridgeshire County Council,07-Jan-22,51301703220,"-2,005.71",To The Moon and Back Foster Care Limited,CARE ESTABLISHMENT,LAC Placements,Placements - independent fostering,Agency Placements - In County
Cambridgeshire County Council,07-Jan-22,51301702997,"-1,963.06",Redacted Personal Data,INDIVIDUAL,LD - Young Adults Team,LD - Young Adults - Special Needs,Direct Payments
Cambridgeshire County Council,07-Jan-22,51301702997,"-1,963.06",Redacted Personal Data,INDIVIDUAL,LD - Young Adults Team,LD - Young Adults - Special Needs,Direct Payments
Cambridgeshire County Council,07-Jan-22,51301702997,"-1,963.06",Redacted Personal Data,INDIVIDUAL,LD - Young Adults Team,LD - Young Adults - Special Needs,Direct Payments
Cambridgeshire County Council,07-Jan-22,51301702997,"-1,963.06",Redacted Personal Data,INDIVIDUAL,LD - Young Adults Team,LD - Young Adults - Special Needs,Direct Payments
Cambridgeshire County Council,07-Jan-22,51301702997,"-1,963.06",Redacted Personal Data,INDIVIDUAL,LD - Young Adults Team,LD - Young Adults - Special Needs,Direct Payments
Cambridgeshire County Council,07-Jan-22,51301702997,"-1,963.06",Redacted Personal Data,INDIVIDUAL,LD - Young Adults Team,LD - Young Adults - Special Needs,Direct Payments
Cambridgeshire County Council,07-Jan-22,51301702997,"-1,963.06",Redacted Personal Data,INDIVIDUAL,LD - Young Adults Team,LD - Young Adults - Special Needs,Direct Payments
Cambridgeshire County Council,14-Jan-22,51301705933,"-1,903.51",SENSE (MIDLANDS),CARE ESTABLISHMENT,LD - City Locality - Cost of Care,LD - City - Care,Residential Care
Cambridgeshire County Council,14-Jan-22,51301705933,"-1,903.51",SENSE (MIDLANDS),CARE ESTABLISHMENT,LD - City Locality - Cost of Care,LD - City - Care,Residential Care
Cambridgeshire County Council,14-Jan-22,51301705933,"-1,903.51",SENSE (MIDLANDS),CARE ESTABLISHMENT,LD - City Locality - Cost of Care,LD - City - Care,Residential Care
Cambridgeshire County Council,14-Jan-22,51301705933,"-1,903.51",SENSE (MIDLANDS),CARE ESTABLISHMENT,LD - City Locality - Cost of Care,LD - City - Care,Residential Care
Cambridgeshire County Council,14-Jan-22,51301705933,"-1,903.51",SENSE (MIDLANDS),CARE ESTABLISHMENT,LD - City Locality - Cost of Care,LD - City - Care,Residential Care
Cambridgeshire County Council,14-Jan-22,51301705933,"-1,903.51",SENSE (MIDLANDS),CARE ESTABLISHMENT,LD - City Locality - Cost of Care,LD - City - Care,Residential Care
Cambridgeshire County Council,14-Jan-22,51301705933,"-1,903.51",SENSE (MIDLANDS),CARE ESTABLISHMENT,LD - City Locality - Cost of Care,LD - City - Care,Residential Care
Cambridgeshire County Council,14-Jan-22,51301705933,"-1,903.51",SENSE (MIDLANDS),CARE ESTABLISHMENT,LD - City Locality - Cost of Care,LD - City - Care,Residential Care
Cambridgeshire County Council,14-Jan-22,51301705933,"-1,903.51",SENSE (MIDLANDS),CARE ESTABLISHMENT,LD - City Locality - Cost of Care,LD - City - Care,Residential Care
Cambridgeshire County Council,14-Jan-22,51301705933,"-1,903.51",SENSE (MIDLANDS),CARE ESTABLISHMENT,LD - City Locality - Cost of Care,LD - City - Care,Residential Care
Cambridgeshire County Council,14-Jan-22,51301705933,"-1,903.51",SENSE (MIDLANDS),CARE ESTABLISHMENT,LD - City Locality - Cost of Care,LD - City - Care,Residential Care
Cambridgeshire County Council,14-Jan-22,51301705933,"-1,903.51",SENSE (MIDLANDS),CARE ESTABLISHMENT,LD - City Locality - Cost of Care,LD - City - Care,Residential Care
Cambridgeshire County Council,14-Jan-22,51301705933,"-1,903.51",SENSE (MIDLANDS),CARE ESTABLISHMENT,LD - City Locality - Cost of Care,LD - City - Care,Residential Care
Cambridgeshire County Council,14-Jan-22,51301705933,"-1,903.51",SENSE (MIDLANDS),CARE ESTABLISHMENT,LD - City Locality - Cost of Care,LD - City - Care,Residential Care
Cambridgeshire County Council,14-Jan-22,51301705933,"-1,903.51",SENSE (MIDLANDS),CARE ESTABLISHMENT,LD - City Locality - Cost of Care,LD - City - Care,Residential Care
Cambridgeshire County Council,14-Jan-22,51301705933,"-1,903.51",SENSE (MIDLANDS),CARE ESTABLISHMENT,LD - City Locality - Cost of Care,LD - City - Care,Residential Care
Cambridgeshire County Council,14-Jan-22,51301705933,"-1,903.51",SENSE (MIDLANDS),CARE ESTABLISHMENT,LD - City Locality - Cost of Care,LD - City - Care,Residential Care
Cambridgeshire County Council,14-Jan-22,51301705933,"-1,903.51",SENSE (MIDLANDS),CARE ESTABLISHMENT,LD - City Locality - Cost of Care,LD - City - Care,Residential Care
Cambridgeshire County Council,14-Jan-22,51301705933,"-1,903.51",SENSE (MIDLANDS),CARE ESTABLISHMENT,LD - City Locality - Cost of Care,LD - City - Care,Residential Care
Cambridgeshire County Council,14-Jan-22,51301705933,"-1,903.51",SENSE (MIDLANDS),CARE ESTABLISHMENT,LD - City Locality - Cost of Care,LD - City - Care,Residential Care
Cambridgeshire County Council,14-Jan-22,51301705933,"-1,903.51",SENSE (MIDLANDS),CARE ESTABLISHMENT,LD - City Locality - Cost of Care,LD - City - Care,Residential Care
Cambridgeshire County Council,14-Jan-22,51301705933,"-1,903.51",SENSE (MIDLANDS),CARE ESTABLISHMENT,LD - City Locality - Cost of Care,LD - City - Care,Residential Care
Cambridgeshire County Council,14-Jan-22,51301705933,"-1,903.51",SENSE (MIDLANDS),CARE ESTABLISHMENT,LD - City Locality - Cost of Care,LD - City - Care,Residential Care
Cambridgeshire County Council,14-Jan-22,51301705933,"-1,903.51",SENSE (MIDLANDS),CARE ESTABLISHMENT,LD - City Locality - Cost of Care,LD - City - Care,Residential Care
Cambridgeshire County Council,14-Jan-22,51301705933,"-1,903.51",SENSE (MIDLANDS),CARE ESTABLISHMENT,LD - City Locality - Cost of Care,LD - City - Care,Residential Care
Cambridgeshire County Council,14-Jan-22,51301705933,"-1,903.51",SENSE (MIDLANDS),CARE ESTABLISHMENT,LD - City Locality - Cost of Care,LD - City - Care,Residential Care
Cambridgeshire County Council,14-Jan-22,51301705933,"-1,903.51",SENSE (MIDLANDS),CARE ESTABLISHMENT,LD - City Locality - Cost of Care,LD - City - Care,Residential Care
Cambridgeshire County Council,14-Jan-22,51301705933,"-1,903.51",SENSE (MIDLANDS),CARE ESTABLISHMENT,LD - City Locality - Cost of Care,LD - City - Care,Residential Care
Cambridgeshire County Council,14-Jan-22,51301705933,"-1,903.51",SENSE (MIDLANDS),CARE ESTABLISHMENT,LD - City Locality - Cost of Care,LD - City - Care,Residential Care
Cambridgeshire County Council,14-Jan-22,51301705933,"-1,903.51",SENSE (MIDLANDS),CARE ESTABLISHMENT,LD - City Locality - Cost of Care,LD - City - Care,Residential Care
Cambridgeshire County Council,14-Jan-22,51301705933,"-1,903.51",SENSE (MIDLANDS),CARE ESTABLISHMENT,LD - City Locality - Cost of Care,LD - City - Care,Residential Care
Cambridgeshire County Council,14-Jan-22,51301705933,"-1,903.51",SENSE (MIDLANDS),CARE ESTABLISHMENT,LD - City Locality - Cost of Care,LD - City - Care,Residential Care
Cambridgeshire County Council,14-Jan-22,51301705933,"-1,903.51",SENSE (MIDLANDS),CARE ESTABLISHMENT,LD - City Locality - Cost of Care,LD - City - Care,Residential Care
Cambridgeshire County Council,14-Jan-22,51301705933,"-1,903.51",SENSE (MIDLANDS),CARE ESTABLISHMENT,LD - City Locality - Cost of Care,LD - City - Care,Residential Care
Cambridgeshire County Council,14-Jan-22,51301705933,"-1,903.51",SENSE (MIDLANDS),CARE ESTABLISHMENT,LD - City Locality - Cost of Care,LD - City - Care,Residential Care
Cambridgeshire County Council,14-Jan-22,51301705933,"-1,903.51",SENSE (MIDLANDS),CARE ESTABLISHMENT,LD - City Locality - Cost of Care,LD - City - Care,Residential Care
Cambridgeshire County Council,14-Jan-22,51301705933,"-1,903.51",SENSE (MIDLANDS),CARE ESTABLISHMENT,LD - City Locality - Cost of Care,LD - City - Care,Residential Care
Cambridgeshire County Council,14-Jan-22,51301705933,"-1,903.51",SENSE (MIDLANDS),CARE ESTABLISHMENT,LD - City Locality - Cost of Care,LD - City - Care,Residential Care
Cambridgeshire County Council,14-Jan-22,51301705933,"-1,903.51",SENSE (MIDLANDS),CARE ESTABLISHMENT,LD - City Locality - Cost of Care,LD - City - Care,Residential Care
Cambridgeshire County Council,14-Jan-22,51301705933,"-1,903.51",SENSE (MIDLANDS),CARE ESTABLISHMENT,LD - City Locality - Cost of Care,LD - City - Care,Residential Care
Cambridgeshire County Council,14-Jan-22,51301705933,"-1,903.51",SENSE (MIDLANDS),CARE ESTABLISHMENT,LD - City Locality - Cost of Care,LD - City - Care,Residential Care
Cambridgeshire County Council,14-Jan-22,51301705933,"-1,903.51",SENSE (MIDLANDS),CARE ESTABLISHMENT,LD - City Locality - Cost of Care,LD - City - Care,Residential Care
Cambridgeshire County Council,14-Jan-22,51301705933,"-1,903.51",SENSE (MIDLANDS),CARE ESTABLISHMENT,LD - City Locality - Cost of Care,LD - City - Care,Residential Care
Cambridgeshire County Council,14-Jan-22,51301705933,"-1,903.51",SENSE (MIDLANDS),CARE ESTABLISHMENT,LD - City Locality - Cost of Care,LD - City - Care,Residential Care
Cambridgeshire County Council,14-Jan-22,51301705933,"-1,903.51",SENSE (MIDLANDS),CARE ESTABLISHMENT,LD - City Locality - Cost of Care,LD - City - Care,Residential Care
Cambridgeshire County Council,14-Jan-22,51301705933,"-1,903.51",SENSE (MIDLANDS),CARE ESTABLISHMENT,LD - City Locality - Cost of Care,LD - City - Care,Residential Care
Cambridgeshire County Council,14-Jan-22,51301705933,"-1,903.51",SENSE (MIDLANDS),CARE ESTABLISHMENT,LD - City Locality - Cost of Care,LD - City - Care,Residential Care
Cambridgeshire County Council,14-Jan-22,51301705933,"-1,903.51",SENSE (MIDLANDS),CARE ESTABLISHMENT,LD - City Locality - Cost of Care,LD - City - Care,Residential Care
Cambridgeshire County Council,14-Jan-22,51301705933,"-1,903.51",SENSE (MIDLANDS),CARE ESTABLISHMENT,LD - City Locality - Cost of Care,LD - City - Care,Residential Care
Cambridgeshire County Council,14-Jan-22,51301705933,"-1,903.51",SENSE (MIDLANDS),CARE ESTABLISHMENT,LD - City Locality - Cost of Care,LD - City - Care,Residential Care
Cambridgeshire County Council,14-Jan-22,51301705933,"-1,903.51",SENSE (MIDLANDS),CARE ESTABLISHMENT,LD - City Locality - Cost of Care,LD - City - Care,Residential Care
Cambridgeshire County Council,14-Jan-22,51301705933,"-1,903.51",SENSE (MIDLANDS),CARE ESTABLISHMENT,LD - City Locality - Cost of Care,LD - City - Care,Residential Care
Cambridgeshire County Council,14-Jan-22,51301705933,"-1,903.51",SENSE (MIDLANDS),CARE ESTABLISHMENT,LD - City Locality - Cost of Care,LD - City - Care,Residential Care
Cambridgeshire County Council,14-Jan-22,51301705933,"-1,903.51",SENSE (MIDLANDS),CARE ESTABLISHMENT,LD - City Locality - Cost of Care,LD - City - Care,Residential Care
Cambridgeshire County Council,14-Jan-22,51301705933,"-1,903.51",SENSE (MIDLANDS),CARE ESTABLISHMENT,LD - City Locality - Cost of Care,LD - City - Care,Residential Care
Cambridgeshire County Council,14-Jan-22,51301705933,"-1,903.51",SENSE (MIDLANDS),CARE ESTABLISHMENT,LD - City Locality - Cost of Care,LD - City - Care,Residential Care
Cambridgeshire County Council,14-Jan-22,51301705933,"-1,903.51",SENSE (MIDLANDS),CARE ESTABLISHMENT,LD - City Locality - Cost of Care,LD - City - Care,Residential Care
Cambridgeshire County Council,14-Jan-22,51301705933,"-1,903.51",SENSE (MIDLANDS),CARE ESTABLISHMENT,LD - City Locality - Cost of Care,LD - City - Care,Residential Care
Cambridgeshire County Council,14-Jan-22,51301705933,"-1,903.51",SENSE (MIDLANDS),CARE ESTABLISHMENT,LD - City Locality - Cost of Care,LD - City - Care,Residential Care
Cambridgeshire County Council,14-Jan-22,51301705933,"-1,903.51",SENSE (MIDLANDS),CARE ESTABLISHMENT,LD - City Locality - Cost of Care,LD - City - Care,Residential Care
Cambridgeshire County Council,14-Jan-22,51301705933,"-1,903.51",SENSE (MIDLANDS),CARE ESTABLISHMENT,LD - City Locality - Cost of Care,LD - City - Care,Residential Care
Cambridgeshire County Council,14-Jan-22,51301705933,"-1,903.51",SENSE (MIDLANDS),CARE ESTABLISHMENT,LD - City Locality - Cost of Care,LD - City - Care,Residential Care
Cambridgeshire County Council,14-Jan-22,51301705933,"-1,903.51",SENSE (MIDLANDS),CARE ESTABLISHMENT,LD - City Locality - Cost of Care,LD - City - Care,Residential Care
Cambridgeshire County Council,14-Jan-22,51301705933,"-1,903.51",SENSE (MIDLANDS),CARE ESTABLISHMENT,LD - City Locality - Cost of Care,LD - City - Care,Residential Care
Cambridgeshire County Council,14-Jan-22,51301705933,"-1,903.51",SENSE (MIDLANDS),CARE ESTABLISHMENT,LD - City Locality - Cost of Care,LD - City - Care,Residential Care
Cambridgeshire County Council,14-Jan-22,51301705933,"-1,903.51",SENSE (MIDLANDS),CARE ESTABLISHMENT,LD - City Locality - Cost of Care,LD - City - Care,Residential Care
Cambridgeshire County Council,14-Jan-22,51301705933,"-1,903.51",SENSE (MIDLANDS),CARE ESTABLISHMENT,LD - City Locality - Cost of Care,LD - City - Care,Residential Care
Cambridgeshire County Council,14-Jan-22,51301705933,"-1,903.51",SENSE (MIDLANDS),CARE ESTABLISHMENT,LD - City Locality - Cost of Care,LD - City - Care,Residential Care
Cambridgeshire County Council,14-Jan-22,51301705933,"-1,903.51",SENSE (MIDLANDS),CARE ESTABLISHMENT,LD - City Locality - Cost of Care,LD - City - Care,Residential Care
Cambridgeshire County Council,14-Jan-22,51301705933,"-1,903.51",SENSE (MIDLANDS),CARE ESTABLISHMENT,LD - City Locality - Cost of Care,LD - City - Care,Residential Care
Cambridgeshire County Council,14-Jan-22,51301705933,"-1,903.51",SENSE (MIDLANDS),CARE ESTABLISHMENT,LD - City Locality - Cost of Care,LD - City - Care,Residential Care
Cambridgeshire County Council,14-Jan-22,51301705933,"-1,903.51",SENSE (MIDLANDS),CARE ESTABLISHMENT,LD - City Locality - Cost of Care,LD - City - Care,Residential Care
Cambridgeshire County Council,14-Jan-22,51301705933,"-1,903.51",SENSE (MIDLANDS),CARE ESTABLISHMENT,LD - City Locality - Cost of Care,LD - City - Care,Residential Care
Cambridgeshire County Council,14-Jan-22,51301705933,"-1,903.51",SENSE (MIDLANDS),CARE ESTABLISHMENT,LD - City Locality - Cost of Care,LD - City - Care,Residential Care
Cambridgeshire County Council,14-Jan-22,51301705933,"-1,903.51",SENSE (MIDLANDS),CARE ESTABLISHMENT,LD - City Locality - Cost of Care,LD - City - Care,Residential Care
Cambridgeshire County Council,14-Jan-22,51301705933,"-1,903.51",SENSE (MIDLANDS),CARE ESTABLISHMENT,LD - City Locality - Cost of Care,LD - City - Care,Residential Care
Cambridgeshire County Council,14-Jan-22,51301705933,"-1,903.51",SENSE (MIDLANDS),CARE ESTABLISHMENT,LD - City Locality - Cost of Care,LD - City - Care,Residential Care
Cambridgeshire County Council,14-Jan-22,51301705933,"-1,903.51",SENSE (MIDLANDS),CARE ESTABLISHMENT,LD - City Locality - Cost of Care,LD - City - Care,Residential Care
Cambridgeshire County Council,14-Jan-22,51301705933,"-1,903.51",SENSE (MIDLANDS),CARE ESTABLISHMENT,LD - City Locality - Cost of Care,LD - City - Care,Residential Care
Cambridgeshire County Council,14-Jan-22,51301705933,"-1,903.51",SENSE (MIDLANDS),CARE ESTABLISHMENT,LD - City Locality - Cost of Care,LD - City - Care,Residential Care
Cambridgeshire County Council,14-Jan-22,51301705933,"-1,903.51",SENSE (MIDLANDS),CARE ESTABLISHMENT,LD - City Locality - Cost of Care,LD - City - Care,Residential Care
Cambridgeshire County Council,14-Jan-22,51301705933,"-1,903.51",SENSE (MIDLANDS),CARE ESTABLISHMENT,LD - City Locality - Cost of Care,LD - City - Care,Residential Care
Cambridgeshire County Council,21-Jan-22,51301714121,"-1,877.14",THE CAMBRIDGE NURSING CENTRE,CARE ESTABLISHMENT,OP - City & South Locality - Cost of Care,Older People - City & South - Care,Nursing Care
Cambridgeshire County Council,14-Jan-22,51301706109,"-1,831.38",CAERUS CARE LTD,CARE ESTABLISHMENT,LD - Young Adults Team,LD - Young Adults - Care,Supported Living
Cambridgeshire County Council,14-Jan-22,51301706109,"-1,831.38",CAERUS CARE LTD,CARE ESTABLISHMENT,LD - Young Adults Team,LD - Young Adults - Care,Supported Living
Cambridgeshire County Council,14-Jan-22,51301706109,"-1,831.38",CAERUS CARE LTD,CARE ESTABLISHMENT,LD - Young Adults Team,LD - Young Adults - Care,Supported Living
Cambridgeshire County Council,14-Jan-22,51301706109,"-1,831.38",CAERUS CARE LTD,CARE ESTABLISHMENT,LD - Young Adults Team,LD - Young Adults - Care,Supported Living
Cambridgeshire County Council,14-Jan-22,51301706109,"-1,831.38",CAERUS CARE LTD,CARE ESTABLISHMENT,LD - Young Adults Team,LD - Young Adults - Care,Supported Living
Cambridgeshire County Council,14-Jan-22,51301706109,"-1,831.38",CAERUS CARE LTD,CARE ESTABLISHMENT,LD - Young Adults Team,LD - Young Adults - Care,Supported Living
Cambridgeshire County Council,14-Jan-22,51301706109,"-1,831.38",CAERUS CARE LTD,CARE ESTABLISHMENT,LD - Young Adults Team,LD - Young Adults - Care,Supported Living
Cambridgeshire County Council,14-Jan-22,51301706109,"-1,831.38",CAERUS CARE LTD,CARE ESTABLISHMENT,LD - Young Adults Team,LD - Young Adults - Care,Supported Living
Cambridgeshire County Council,14-Jan-22,51301706109,"-1,831.38",CAERUS CARE LTD,CARE ESTABLISHMENT,LD - Young Adults Team,LD - Young Adults - Care,Supported Living
Cambridgeshire County Council,14-Jan-22,51301706109,"-1,831.38",CAERUS CARE LTD,CARE ESTABLISHMENT,LD - Young Adults Team,LD - Young Adults - Care,Supported Living
Cambridgeshire County Council,14-Jan-22,51301706109,"-1,831.38",CAERUS CARE LTD,CARE ESTABLISHMENT,LD - Young Adults Team,LD - Young Adults - Care,Supported Living
Cambridgeshire County Council,21-Jan-22,51301714126,"-1,800.00",FLORENCE HOUSE(RAMSEY) RESIDENTIAL HOME FOR THE ELDERLY,CARE ESTABLISHMENT,OP - Hunts Blocks,Hunts - Short term blocks,Rehabilitation And Respite Care
Cambridgeshire County Council,21-Jan-22,51301714126,"-1,800.00",FLORENCE HOUSE(RAMSEY) RESIDENTIAL HOME FOR THE ELDERLY,CARE ESTABLISHMENT,OP - Hunts Blocks,Hunts - Short term blocks,Rehabilitation And Respite Care
Cambridgeshire County Council,21-Jan-22,51301714126,"-1,800.00",FLORENCE HOUSE(RAMSEY) RESIDENTIAL HOME FOR THE ELDERLY,CARE ESTABLISHMENT,OP - Hunts Blocks,Hunts - Short term blocks,Rehabilitation And Respite Care
Cambridgeshire County Council,21-Jan-22,51301714126,"-1,800.00",FLORENCE HOUSE(RAMSEY) RESIDENTIAL HOME FOR THE ELDERLY,CARE ESTABLISHMENT,OP - Hunts Blocks,Hunts - Short term blocks,Rehabilitation And Respite Care
Cambridgeshire County Council,21-Jan-22,51301714094,"-1,787.14",HC-ONE,CARE ESTABLISHMENT,OP - Hunts Locality - Cost of Care,Hunts OP Team - Care,Nursing Care
Cambridgeshire County Council,21-Jan-22,51301713463,"-1,744.08",HUNTERS HEALTHCARE (HUNTERS DOWN),CARE ESTABLISHMENT,OP - Hunts Blocks,Hunts - Short term blocks,Nursing Care
Cambridgeshire County Council,21-Jan-22,51301713463,"-1,744.08",HUNTERS HEALTHCARE (HUNTERS DOWN),CARE ESTABLISHMENT,OP - Hunts Blocks,Hunts - Short term blocks,Nursing Care
Cambridgeshire County Council,21-Jan-22,51301713463,"-1,744.08",HUNTERS HEALTHCARE (HUNTERS DOWN),CARE ESTABLISHMENT,OP - Hunts Blocks,Hunts - Short term blocks,Nursing Care
Cambridgeshire County Council,21-Jan-22,51301713463,"-1,744.08",HUNTERS HEALTHCARE (HUNTERS DOWN),CARE ESTABLISHMENT,OP - Hunts Blocks,Hunts - Short term blocks,Nursing Care
Cambridgeshire County Council,21-Jan-22,51301713463,"-1,744.08",HUNTERS HEALTHCARE (HUNTERS DOWN),CARE ESTABLISHMENT,OP - Hunts Blocks,Hunts - Short term blocks,Nursing Care
Cambridgeshire County Council,20-Jan-22,51301699787,"-1,735.83",AURORA ORCHARD MANOR,CARE ESTABLISHMENT,LD - South Locality - Cost of Care,LD - South Cambs - Care,Day Care
Cambridgeshire County Council,20-Jan-22,51301699787,"-1,735.83",AURORA ORCHARD MANOR,CARE ESTABLISHMENT,LD - South Locality - Cost of Care,LD - South Cambs - Care,Day Care
Cambridgeshire County Council,20-Jan-22,51301699787,"-1,735.83",AURORA ORCHARD MANOR,CARE ESTABLISHMENT,LD - South Locality - Cost of Care,LD - South Cambs - Care,Day Care
Cambridgeshire County Council,20-Jan-22,51301699787,"-1,735.83",AURORA ORCHARD MANOR,CARE ESTABLISHMENT,LD - South Locality - Cost of Care,LD - South Cambs - Care,Day Care
Cambridgeshire County Council,20-Jan-22,51301699787,"-1,735.83",AURORA ORCHARD MANOR,CARE ESTABLISHMENT,LD - South Locality - Cost of Care,LD - South Cambs - Care,Day Care
Cambridgeshire County Council,20-Jan-22,51301699787,"-1,735.83",AURORA ORCHARD MANOR,CARE ESTABLISHMENT,LD - South Locality - Cost of Care,LD - South Cambs - Care,Day Care
Cambridgeshire County Council,20-Jan-22,51301699787,"-1,735.83",AURORA ORCHARD MANOR,CARE ESTABLISHMENT,LD - South Locality - Cost of Care,LD - South Cambs - Care,Day Care
Cambridgeshire County Council,20-Jan-22,51301699787,"-1,735.83",AURORA ORCHARD MANOR,CARE ESTABLISHMENT,LD - South Locality - Cost of Care,LD - South Cambs - Care,Day Care
Cambridgeshire County Council,20-Jan-22,51301699787,"-1,735.83",AURORA ORCHARD MANOR,CARE ESTABLISHMENT,LD - South Locality - Cost of Care,LD - South Cambs - Care,Day Care
Cambridgeshire County Council,20-Jan-22,51301699787,"-1,735.83",AURORA ORCHARD MANOR,CARE ESTABLISHMENT,LD - South Locality - Cost of Care,LD - South Cambs - Care,Day Care
Cambridgeshire County Council,20-Jan-22,51301699787,"-1,735.83",AURORA ORCHARD MANOR,CARE ESTABLISHMENT,LD - South Locality - Cost of Care,LD - South Cambs - Care,Day Care
Cambridgeshire County Council,20-Jan-22,51301699787,"-1,735.83",AURORA ORCHARD MANOR,CARE ESTABLISHMENT,LD - South Locality - Cost of Care,LD - South Cambs - Care,Day Care
Cambridgeshire County Council,20-Jan-22,51301699787,"-1,735.83",AURORA ORCHARD MANOR,CARE ESTABLISHMENT,LD - South Locality - Cost of Care,LD - South Cambs - Care,Day Care
Cambridgeshire County Council,20-Jan-22,51301699787,"-1,735.83",AURORA ORCHARD MANOR,CARE ESTABLISHMENT,LD - South Locality - Cost of Care,LD - South Cambs - Care,Day Care
Cambridgeshire County Council,20-Jan-22,51301699787,"-1,735.83",AURORA ORCHARD MANOR,CARE ESTABLISHMENT,LD - South Locality - Cost of Care,LD - South Cambs - Care,Day Care
Cambridgeshire County Council,20-Jan-22,51301699787,"-1,735.83",AURORA ORCHARD MANOR,CARE ESTABLISHMENT,LD - South Locality - Cost of Care,LD - South Cambs - Care,Day Care
Cambridgeshire County Council,20-Jan-22,51301699787,"-1,735.83",AURORA ORCHARD MANOR,CARE ESTABLISHMENT,LD - South Locality - Cost of Care,LD - South Cambs - Care,Day Care
Cambridgeshire County Council,20-Jan-22,51301699787,"-1,735.83",AURORA ORCHARD MANOR,CARE ESTABLISHMENT,LD - South Locality - Cost of Care,LD - South Cambs - Care,Day Care
Cambridgeshire County Council,20-Jan-22,51301699787,"-1,735.83",AURORA ORCHARD MANOR,CARE ESTABLISHMENT,LD - South Locality - Cost of Care,LD - South Cambs - Care,Day Care
Cambridgeshire County Council,26-Jan-22,51301715357,"-1,715.00",MLL Telecom Limited,TRADE SUPPLIER,ICT Service,ICT Service Eastnet,Network Support Contracts
Cambridgeshire County Council,14-Jan-22,51301706079,"-1,702.89",AUGUSTA CARE LTD,CARE ESTABLISHMENT,LD - Young Adults Team,LD - Young Adults - Care,Supported Living
Cambridgeshire County Council,14-Jan-22,51301706079,"-1,702.89",AUGUSTA CARE LTD,CARE ESTABLISHMENT,LD - Young Adults Team,LD - Young Adults - Care,Supported Living
Cambridgeshire County Council,14-Jan-22,51301706079,"-1,702.89",AUGUSTA CARE LTD,CARE ESTABLISHMENT,LD - Young Adults Team,LD - Young Adults - Care,Supported Living
Cambridgeshire County Council,14-Jan-22,51301706079,"-1,702.89",AUGUSTA CARE LTD,CARE ESTABLISHMENT,LD - Young Adults Team,LD - Young Adults - Care,Supported Living
Cambridgeshire County Council,14-Jan-22,51301706079,"-1,702.89",AUGUSTA CARE LTD,CARE ESTABLISHMENT,LD - Young Adults Team,LD - Young Adults - Care,Supported Living
Cambridgeshire County Council,14-Jan-22,51301706079,"-1,702.89",AUGUSTA CARE LTD,CARE ESTABLISHMENT,LD - Young Adults Team,LD - Young Adults - Care,Supported Living
Cambridgeshire County Council,14-Jan-22,51301706079,"-1,702.89",AUGUSTA CARE LTD,CARE ESTABLISHMENT,LD - Young Adults Team,LD - Young Adults - Care,Supported Living
Cambridgeshire County Council,14-Jan-22,51301706079,"-1,702.89",AUGUSTA CARE LTD,CARE ESTABLISHMENT,LD - Young Adults Team,LD - Young Adults - Care,Supported Living
Cambridgeshire County Council,14-Jan-22,51301705942,"-1,686.44",SENSE NATIONAL DEAF & BLIND,CARE ESTABLISHMENT,LD - Fenland Locality - Cost of Care,LD - Fenland  - Care,Residential Care
Cambridgeshire County Council,07-Jan-22,51301703155,"-1,680.00",Keys PCE Ltd,CARE ESTABLISHMENT,LAC Placements,Placements - residential homes,Agency Placements - Out of  County
Cambridgeshire County Council,14-Jan-22,51301705939,"-1,663.58",SENSE WEST,CARE ESTABLISHMENT,LD - City Locality - Cost of Care,LD - City - Care,Residential Care
Cambridgeshire County Council,14-Jan-22,51301705939,"-1,663.58",SENSE WEST,CARE ESTABLISHMENT,LD - City Locality - Cost of Care,LD - City - Care,Residential Care
Cambridgeshire County Council,14-Jan-22,51301705939,"-1,663.58",SENSE WEST,CARE ESTABLISHMENT,LD - City Locality - Cost of Care,LD - City - Care,Residential Care
Cambridgeshire County Council,14-Jan-22,51301705939,"-1,663.58",SENSE WEST,CARE ESTABLISHMENT,LD - City Locality - Cost of Care,LD - City - Care,Residential Care
Cambridgeshire County Council,14-Jan-22,51301705939,"-1,663.58",SENSE WEST,CARE ESTABLISHMENT,LD - City Locality - Cost of Care,LD - City - Care,Residential Care
Cambridgeshire County Council,14-Jan-22,51301705939,"-1,663.58",SENSE WEST,CARE ESTABLISHMENT,LD - City Locality - Cost of Care,LD - City - Care,Residential Care
Cambridgeshire County Council,14-Jan-22,51301705939,"-1,663.58",SENSE WEST,CARE ESTABLISHMENT,LD - City Locality - Cost of Care,LD - City - Care,Residential Care
Cambridgeshire County Council,14-Jan-22,51301705939,"-1,663.58",SENSE WEST,CARE ESTABLISHMENT,LD - City Locality - Cost of Care,LD - City - Care,Residential Care
Cambridgeshire County Council,14-Jan-22,51301705939,"-1,663.58",SENSE WEST,CARE ESTABLISHMENT,LD - City Locality - Cost of Care,LD - City - Care,Residential Care
Cambridgeshire County Council,14-Jan-22,51301705939,"-1,663.58",SENSE WEST,CARE ESTABLISHMENT,LD - City Locality - Cost of Care,LD - City - Care,Residential Care
Cambridgeshire County Council,14-Jan-22,51301705939,"-1,663.58",SENSE WEST,CARE ESTABLISHMENT,LD - City Locality - Cost of Care,LD - City - Care,Residential Care
Cambridgeshire County Council,14-Jan-22,51301705939,"-1,663.58",SENSE WEST,CARE ESTABLISHMENT,LD - City Locality - Cost of Care,LD - City - Care,Residential Care
Cambridgeshire County Council,14-Jan-22,51301705939,"-1,663.58",SENSE WEST,CARE ESTABLISHMENT,LD - City Locality - Cost of Care,LD - City - Care,Residential Care
Cambridgeshire County Council,14-Jan-22,51301705939,"-1,663.58",SENSE WEST,CARE ESTABLISHMENT,LD - City Locality - Cost of Care,LD - City - Care,Residential Care
Cambridgeshire County Council,14-Jan-22,51301705939,"-1,663.58",SENSE WEST,CARE ESTABLISHMENT,LD - City Locality - Cost of Care,LD - City - Care,Residential Care
Cambridgeshire County Council,14-Jan-22,51301705939,"-1,663.58",SENSE WEST,CARE ESTABLISHMENT,LD - City Locality - Cost of Care,LD - City - Care,Residential Care
Cambridgeshire County Council,14-Jan-22,51301705939,"-1,663.58",SENSE WEST,CARE ESTABLISHMENT,LD - City Locality - Cost of Care,LD - City - Care,Residential Care
Cambridgeshire County Council,14-Jan-22,51301705939,"-1,663.58",SENSE WEST,CARE ESTABLISHMENT,LD - City Locality - Cost of Care,LD - City - Care,Residential Care
Cambridgeshire County Council,14-Jan-22,51301705939,"-1,663.58",SENSE WEST,CARE ESTABLISHMENT,LD - City Locality - Cost of Care,LD - City - Care,Residential Care
Cambridgeshire County Council,14-Jan-22,51301705939,"-1,663.58",SENSE WEST,CARE ESTABLISHMENT,LD - City Locality - Cost of Care,LD - City - Care,Residential Care
Cambridgeshire County Council,14-Jan-22,51301705939,"-1,663.58",SENSE WEST,CARE ESTABLISHMENT,LD - City Locality - Cost of Care,LD - City - Care,Residential Care
Cambridgeshire County Council,14-Jan-22,51301705939,"-1,663.58",SENSE WEST,CARE ESTABLISHMENT,LD - City Locality - Cost of Care,LD - City - Care,Residential Care
Cambridgeshire County Council,14-Jan-22,51301705939,"-1,663.58",SENSE WEST,CARE ESTABLISHMENT,LD - City Locality - Cost of Care,LD - City - Care,Residential Care
Cambridgeshire County Council,14-Jan-22,51301705939,"-1,663.58",SENSE WEST,CARE ESTABLISHMENT,LD - City Locality - Cost of Care,LD - City - Care,Residential Care
Cambridgeshire County Council,14-Jan-22,51301705939,"-1,663.58",SENSE WEST,CARE ESTABLISHMENT,LD - City Locality - Cost of Care,LD - City - Care,Residential Care
Cambridgeshire County Council,14-Jan-22,51301705939,"-1,663.58",SENSE WEST,CARE ESTABLISHMENT,LD - City Locality - Cost of Care,LD - City - Care,Residential Care
Cambridgeshire County Council,14-Jan-22,51301705939,"-1,663.58",SENSE WEST,CARE ESTABLISHMENT,LD - City Locality - Cost of Care,LD - City - Care,Residential Care
Cambridgeshire County Council,14-Jan-22,51301705939,"-1,663.58",SENSE WEST,CARE ESTABLISHMENT,LD - City Locality - Cost of Care,LD - City - Care,Residential Care
Cambridgeshire County Council,14-Jan-22,51301705939,"-1,663.58",SENSE WEST,CARE ESTABLISHMENT,LD - City Locality - Cost of Care,LD - City - Care,Residential Care
Cambridgeshire County Council,14-Jan-22,51301705939,"-1,663.58",SENSE WEST,CARE ESTABLISHMENT,LD - City Locality - Cost of Care,LD - City - Care,Residential Care
Cambridgeshire County Council,14-Jan-22,51301705939,"-1,663.58",SENSE WEST,CARE ESTABLISHMENT,LD - City Locality - Cost of Care,LD - City - Care,Residential Care
Cambridgeshire County Council,14-Jan-22,51301705939,"-1,663.58",SENSE WEST,CARE ESTABLISHMENT,LD - City Locality - Cost of Care,LD - City - Care,Residential Care
Cambridgeshire County Council,14-Jan-22,51301705939,"-1,663.58",SENSE WEST,CARE ESTABLISHMENT,LD - City Locality - Cost of Care,LD - City - Care,Residential Care
Cambridgeshire County Council,14-Jan-22,51301705939,"-1,663.58",SENSE WEST,CARE ESTABLISHMENT,LD - City Locality - Cost of Care,LD - City - Care,Residential Care
Cambridgeshire County Council,14-Jan-22,51301705939,"-1,663.58",SENSE WEST,CARE ESTABLISHMENT,LD - City Locality - Cost of Care,LD - City - Care,Residential Care
Cambridgeshire County Council,14-Jan-22,51301705939,"-1,663.58",SENSE WEST,CARE ESTABLISHMENT,LD - City Locality - Cost of Care,LD - City - Care,Residential Care
Cambridgeshire County Council,14-Jan-22,51301705939,"-1,663.58",SENSE WEST,CARE ESTABLISHMENT,LD - City Locality - Cost of Care,LD - City - Care,Residential Care
Cambridgeshire County Council,14-Jan-22,51301705939,"-1,663.58",SENSE WEST,CARE ESTABLISHMENT,LD - City Locality - Cost of Care,LD - City - Care,Residential Care
Cambridgeshire County Council,14-Jan-22,51301705939,"-1,663.58",SENSE WEST,CARE ESTABLISHMENT,LD - City Locality - Cost of Care,LD - City - Care,Residential Care
Cambridgeshire County Council,14-Jan-22,51301705939,"-1,663.58",SENSE WEST,CARE ESTABLISHMENT,LD - City Locality - Cost of Care,LD - City - Care,Residential Care
Cambridgeshire County Council,14-Jan-22,51301705939,"-1,663.58",SENSE WEST,CARE ESTABLISHMENT,LD - City Locality - Cost of Care,LD - City - Care,Residential Care
Cambridgeshire County Council,14-Jan-22,51301705939,"-1,663.58",SENSE WEST,CARE ESTABLISHMENT,LD - City Locality - Cost of Care,LD - City - Care,Residential Care
Cambridgeshire County Council,14-Jan-22,51301705939,"-1,663.58",SENSE WEST,CARE ESTABLISHMENT,LD - City Locality - Cost of Care,LD - City - Care,Residential Care
Cambridgeshire County Council,14-Jan-22,51301705939,"-1,663.58",SENSE WEST,CARE ESTABLISHMENT,LD - City Locality - Cost of Care,LD - City - Care,Residential Care
Cambridgeshire County Council,14-Jan-22,51301705939,"-1,663.58",SENSE WEST,CARE ESTABLISHMENT,LD - City Locality - Cost of Care,LD - City - Care,Residential Care
Cambridgeshire County Council,14-Jan-22,51301705939,"-1,663.58",SENSE WEST,CARE ESTABLISHMENT,LD - City Locality - Cost of Care,LD - City - Care,Residential Care
Cambridgeshire County Council,14-Jan-22,51301705939,"-1,663.58",SENSE WEST,CARE ESTABLISHMENT,LD - City Locality - Cost of Care,LD - City - Care,Residential Care
Cambridgeshire County Council,14-Jan-22,51301705939,"-1,663.58",SENSE WEST,CARE ESTABLISHMENT,LD - City Locality - Cost of Care,LD - City - Care,Residential Care
Cambridgeshire County Council,14-Jan-22,51301705939,"-1,663.58",SENSE WEST,CARE ESTABLISHMENT,LD - City Locality - Cost of Care,LD - City - Care,Residential Care
Cambridgeshire County Council,14-Jan-22,51301705939,"-1,663.58",SENSE WEST,CARE ESTABLISHMENT,LD - City Locality - Cost of Care,LD - City - Care,Residential Care
Cambridgeshire County Council,14-Jan-22,51301705939,"-1,663.58",SENSE WEST,CARE ESTABLISHMENT,LD - City Locality - Cost of Care,LD - City - Care,Residential Care
Cambridgeshire County Council,14-Jan-22,51301705939,"-1,663.58",SENSE WEST,CARE ESTABLISHMENT,LD - City Locality - Cost of Care,LD - City - Care,Residential Care
Cambridgeshire County Council,14-Jan-22,51301705939,"-1,663.58",SENSE WEST,CARE ESTABLISHMENT,LD - City Locality - Cost of Care,LD - City - Care,Residential Care
Cambridgeshire County Council,14-Jan-22,51301705939,"-1,663.58",SENSE WEST,CARE ESTABLISHMENT,LD - City Locality - Cost of Care,LD - City - Care,Residential Care
Cambridgeshire County Council,14-Jan-22,51301705939,"-1,663.58",SENSE WEST,CARE ESTABLISHMENT,LD - City Locality - Cost of Care,LD - City - Care,Residential Care
Cambridgeshire County Council,14-Jan-22,51301705939,"-1,663.58",SENSE WEST,CARE ESTABLISHMENT,LD - City Locality - Cost of Care,LD - City - Care,Residential Care
Cambridgeshire County Council,14-Jan-22,51301705939,"-1,663.58",SENSE WEST,CARE ESTABLISHMENT,LD - City Locality - Cost of Care,LD - City - Care,Residential Care
Cambridgeshire County Council,14-Jan-22,51301705939,"-1,663.58",SENSE WEST,CARE ESTABLISHMENT,LD - City Locality - Cost of Care,LD - City - Care,Residential Care
Cambridgeshire County Council,14-Jan-22,51301705939,"-1,663.58",SENSE WEST,CARE ESTABLISHMENT,LD - City Locality - Cost of Care,LD - City - Care,Residential Care
Cambridgeshire County Council,14-Jan-22,51301705939,"-1,663.58",SENSE WEST,CARE ESTABLISHMENT,LD - City Locality - Cost of Care,LD - City - Care,Residential Care
Cambridgeshire County Council,14-Jan-22,51301705939,"-1,663.58",SENSE WEST,CARE ESTABLISHMENT,LD - City Locality - Cost of Care,LD - City - Care,Residential Care
Cambridgeshire County Council,14-Jan-22,51301705939,"-1,663.58",SENSE WEST,CARE ESTABLISHMENT,LD - City Locality - Cost of Care,LD - City - Care,Residential Care
Cambridgeshire County Council,14-Jan-22,51301705939,"-1,663.58",SENSE WEST,CARE ESTABLISHMENT,LD - City Locality - Cost of Care,LD - City - Care,Residential Care
Cambridgeshire County Council,14-Jan-22,51301705939,"-1,663.58",SENSE WEST,CARE ESTABLISHMENT,LD - City Locality - Cost of Care,LD - City - Care,Residential Care
Cambridgeshire County Council,14-Jan-22,51301705939,"-1,663.58",SENSE WEST,CARE ESTABLISHMENT,LD - City Locality - Cost of Care,LD - City - Care,Residential Care
Cambridgeshire County Council,14-Jan-22,51301705939,"-1,663.58",SENSE WEST,CARE ESTABLISHMENT,LD - City Locality - Cost of Care,LD - City - Care,Residential Care
Cambridgeshire County Council,14-Jan-22,51301705939,"-1,663.58",SENSE WEST,CARE ESTABLISHMENT,LD - City Locality - Cost of Care,LD - City - Care,Residential Care
Cambridgeshire County Council,14-Jan-22,51301705939,"-1,663.58",SENSE WEST,CARE ESTABLISHMENT,LD - City Locality - Cost of Care,LD - City - Care,Residential Care
Cambridgeshire County Council,14-Jan-22,51301705939,"-1,663.58",SENSE WEST,CARE ESTABLISHMENT,LD - City Locality - Cost of Care,LD - City - Care,Residential Care
Cambridgeshire County Council,14-Jan-22,51301705939,"-1,663.58",SENSE WEST,CARE ESTABLISHMENT,LD - City Locality - Cost of Care,LD - City - Care,Residential Care
Cambridgeshire County Council,14-Jan-22,51301705939,"-1,663.58",SENSE WEST,CARE ESTABLISHMENT,LD - City Locality - Cost of Care,LD - City - Care,Residential Care
Cambridgeshire County Council,14-Jan-22,51301705939,"-1,663.58",SENSE WEST,CARE ESTABLISHMENT,LD - City Locality - Cost of Care,LD - City - Care,Residential Care
Cambridgeshire County Council,14-Jan-22,51301705939,"-1,663.58",SENSE WEST,CARE ESTABLISHMENT,LD - City Locality - Cost of Care,LD - City - Care,Residential Care
Cambridgeshire County Council,14-Jan-22,51301705939,"-1,663.58",SENSE WEST,CARE ESTABLISHMENT,LD - City Locality - Cost of Care,LD - City - Care,Residential Care
Cambridgeshire County Council,14-Jan-22,51301705939,"-1,663.58",SENSE WEST,CARE ESTABLISHMENT,LD - City Locality - Cost of Care,LD - City - Care,Residential Care
Cambridgeshire County Council,14-Jan-22,51301705939,"-1,663.58",SENSE WEST,CARE ESTABLISHMENT,LD - City Locality - Cost of Care,LD - City - Care,Residential Care
Cambridgeshire County Council,14-Jan-22,51301705939,"-1,663.58",SENSE WEST,CARE ESTABLISHMENT,LD - City Locality - Cost of Care,LD - City - Care,Residential Care
Cambridgeshire County Council,14-Jan-22,51301705939,"-1,663.58",SENSE WEST,CARE ESTABLISHMENT,LD - City Locality - Cost of Care,LD - City - Care,Residential Care
Cambridgeshire County Council,14-Jan-22,51301705939,"-1,663.58",SENSE WEST,CARE ESTABLISHMENT,LD - City Locality - Cost of Care,LD - City - Care,Residential Care
Cambridgeshire County Council,14-Jan-22,51301705939,"-1,663.58",SENSE WEST,CARE ESTABLISHMENT,LD - City Locality - Cost of Care,LD - City - Care,Residential Care
Cambridgeshire County Council,14-Jan-22,51301705939,"-1,663.58",SENSE WEST,CARE ESTABLISHMENT,LD - City Locality - Cost of Care,LD - City - Care,Residential Care
Cambridgeshire County Council,14-Jan-22,51301705939,"-1,663.58",SENSE WEST,CARE ESTABLISHMENT,LD - City Locality - Cost of Care,LD - City - Care,Residential Care
Cambridgeshire County Council,14-Jan-22,51301706074,"-1,646.60",SENSE (MIDLANDS),CARE ESTABLISHMENT,LD - Hunts Locality - Cost of Care,LD - Huntingdonshire - Care,Supported Living
Cambridgeshire County Council,14-Jan-22,51301706074,"-1,646.60",SENSE (MIDLANDS),CARE ESTABLISHMENT,LD - Hunts Locality - Cost of Care,LD - Huntingdonshire - Care,Supported Living
Cambridgeshire County Council,14-Jan-22,51301706074,"-1,646.60",SENSE (MIDLANDS),CARE ESTABLISHMENT,LD - Hunts Locality - Cost of Care,LD - Huntingdonshire - Care,Supported Living
Cambridgeshire County Council,14-Jan-22,51301706074,"-1,646.60",SENSE (MIDLANDS),CARE ESTABLISHMENT,LD - Hunts Locality - Cost of Care,LD - Huntingdonshire - Care,Supported Living
Cambridgeshire County Council,14-Jan-22,51301706074,"-1,646.60",SENSE (MIDLANDS),CARE ESTABLISHMENT,LD - Hunts Locality - Cost of Care,LD - Huntingdonshire - Care,Supported Living
Cambridgeshire County Council,14-Jan-22,51301706074,"-1,646.60",SENSE (MIDLANDS),CARE ESTABLISHMENT,LD - Hunts Locality - Cost of Care,LD - Huntingdonshire - Care,Supported Living
Cambridgeshire County Council,14-Jan-22,51301706074,"-1,646.60",SENSE (MIDLANDS),CARE ESTABLISHMENT,LD - Hunts Locality - Cost of Care,LD - Huntingdonshire - Care,Supported Living
Cambridgeshire County Council,14-Jan-22,51301706074,"-1,646.60",SENSE (MIDLANDS),CARE ESTABLISHMENT,LD - Hunts Locality - Cost of Care,LD - Huntingdonshire - Care,Supported Living
Cambridgeshire County Council,14-Jan-22,51301706074,"-1,646.60",SENSE (MIDLANDS),CARE ESTABLISHMENT,LD - Hunts Locality - Cost of Care,LD - Huntingdonshire - Care,Supported Living
Cambridgeshire County Council,14-Jan-22,51301706074,"-1,646.60",SENSE (MIDLANDS),CARE ESTABLISHMENT,LD - Hunts Locality - Cost of Care,LD - Huntingdonshire - Care,Supported Living
Cambridgeshire County Council,14-Jan-22,51301706074,"-1,646.60",SENSE (MIDLANDS),CARE ESTABLISHMENT,LD - Hunts Locality - Cost of Care,LD - Huntingdonshire - Care,Supported Living
Cambridgeshire County Council,14-Jan-22,51301706074,"-1,646.60",SENSE (MIDLANDS),CARE ESTABLISHMENT,LD - Hunts Locality - Cost of Care,LD - Huntingdonshire - Care,Supported Living
Cambridgeshire County Council,14-Jan-22,51301706074,"-1,646.60",SENSE (MIDLANDS),CARE ESTABLISHMENT,LD - Hunts Locality - Cost of Care,LD - Huntingdonshire - Care,Supported Living
Cambridgeshire County Council,14-Jan-22,51301706074,"-1,646.60",SENSE (MIDLANDS),CARE ESTABLISHMENT,LD - Hunts Locality - Cost of Care,LD - Huntingdonshire - Care,Supported Living
Cambridgeshire County Council,14-Jan-22,51301706074,"-1,646.60",SENSE (MIDLANDS),CARE ESTABLISHMENT,LD - Hunts Locality - Cost of Care,LD - Huntingdonshire - Care,Supported Living
Cambridgeshire County Council,14-Jan-22,51301706074,"-1,646.60",SENSE (MIDLANDS),CARE ESTABLISHMENT,LD - Hunts Locality - Cost of Care,LD - Huntingdonshire - Care,Supported Living
Cambridgeshire County Council,14-Jan-22,51301706074,"-1,646.60",SENSE (MIDLANDS),CARE ESTABLISHMENT,LD - Hunts Locality - Cost of Care,LD - Huntingdonshire - Care,Supported Living
Cambridgeshire County Council,14-Jan-22,51301706074,"-1,646.60",SENSE (MIDLANDS),CARE ESTABLISHMENT,LD - Hunts Locality - Cost of Care,LD - Huntingdonshire - Care,Supported Living
Cambridgeshire County Council,14-Jan-22,51301706074,"-1,646.60",SENSE (MIDLANDS),CARE ESTABLISHMENT,LD - Hunts Locality - Cost of Care,LD - Huntingdonshire - Care,Supported Living
Cambridgeshire County Council,14-Jan-22,51301706074,"-1,646.60",SENSE (MIDLANDS),CARE ESTABLISHMENT,LD - Hunts Locality - Cost of Care,LD - Huntingdonshire - Care,Supported Living
Cambridgeshire County Council,14-Jan-22,51301706074,"-1,646.60",SENSE (MIDLANDS),CARE ESTABLISHMENT,LD - Hunts Locality - Cost of Care,LD - Huntingdonshire - Care,Supported Living
Cambridgeshire County Council,14-Jan-22,51301706074,"-1,646.60",SENSE (MIDLANDS),CARE ESTABLISHMENT,LD - Hunts Locality - Cost of Care,LD - Huntingdonshire - Care,Supported Living
Cambridgeshire County Council,14-Jan-22,51301706074,"-1,646.60",SENSE (MIDLANDS),CARE ESTABLISHMENT,LD - Hunts Locality - Cost of Care,LD - Huntingdonshire - Care,Supported Living
Cambridgeshire County Council,14-Jan-22,51301706074,"-1,646.60",SENSE (MIDLANDS),CARE ESTABLISHMENT,LD - Hunts Locality - Cost of Care,LD - Huntingdonshire - Care,Supported Living
Cambridgeshire County Council,14-Jan-22,51301706074,"-1,646.60",SENSE (MIDLANDS),CARE ESTABLISHMENT,LD - Hunts Locality - Cost of Care,LD - Huntingdonshire - Care,Supported Living
Cambridgeshire County Council,14-Jan-22,51301706074,"-1,646.60",SENSE (MIDLANDS),CARE ESTABLISHMENT,LD - Hunts Locality - Cost of Care,LD - Huntingdonshire - Care,Supported Living
Cambridgeshire County Council,14-Jan-22,51301706074,"-1,646.60",SENSE (MIDLANDS),CARE ESTABLISHMENT,LD - Hunts Locality - Cost of Care,LD - Huntingdonshire - Care,Supported Living
Cambridgeshire County Council,14-Jan-22,51301706074,"-1,646.60",SENSE (MIDLANDS),CARE ESTABLISHMENT,LD - Hunts Locality - Cost of Care,LD - Huntingdonshire - Care,Supported Living
Cambridgeshire County Council,14-Jan-22,51301706074,"-1,646.60",SENSE (MIDLANDS),CARE ESTABLISHMENT,LD - Hunts Locality - Cost of Care,LD - Huntingdonshire - Care,Supported Living
Cambridgeshire County Council,14-Jan-22,51301706074,"-1,646.60",SENSE (MIDLANDS),CARE ESTABLISHMENT,LD - Hunts Locality - Cost of Care,LD - Huntingdonshire - Care,Supported Living
Cambridgeshire County Council,14-Jan-22,51301706074,"-1,646.60",SENSE (MIDLANDS),CARE ESTABLISHMENT,LD - Hunts Locality - Cost of Care,LD - Huntingdonshire - Care,Supported Living
Cambridgeshire County Council,14-Jan-22,51301706074,"-1,646.60",SENSE (MIDLANDS),CARE ESTABLISHMENT,LD - Hunts Locality - Cost of Care,LD - Huntingdonshire - Care,Supported Living
Cambridgeshire County Council,14-Jan-22,51301706074,"-1,646.60",SENSE (MIDLANDS),CARE ESTABLISHMENT,LD - Hunts Locality - Cost of Care,LD - Huntingdonshire - Care,Supported Living
Cambridgeshire County Council,14-Jan-22,51301706074,"-1,646.60",SENSE (MIDLANDS),CARE ESTABLISHMENT,LD - Hunts Locality - Cost of Care,LD - Huntingdonshire - Care,Supported Living
Cambridgeshire County Council,14-Jan-22,51301706074,"-1,646.60",SENSE (MIDLANDS),CARE ESTABLISHMENT,LD - Hunts Locality - Cost of Care,LD - Huntingdonshire - Care,Supported Living
Cambridgeshire County Council,14-Jan-22,51301706074,"-1,646.60",SENSE (MIDLANDS),CARE ESTABLISHMENT,LD - Hunts Locality - Cost of Care,LD - Huntingdonshire - Care,Supported Living
Cambridgeshire County Council,14-Jan-22,51301706074,"-1,646.60",SENSE (MIDLANDS),CARE ESTABLISHMENT,LD - Hunts Locality - Cost of Care,LD - Huntingdonshire - Care,Supported Living
Cambridgeshire County Council,14-Jan-22,51301706074,"-1,646.60",SENSE (MIDLANDS),CARE ESTABLISHMENT,LD - Hunts Locality - Cost of Care,LD - Huntingdonshire - Care,Supported Living
Cambridgeshire County Council,14-Jan-22,51301706074,"-1,646.60",SENSE (MIDLANDS),CARE ESTABLISHMENT,LD - Hunts Locality - Cost of Care,LD - Huntingdonshire - Care,Supported Living
Cambridgeshire County Council,14-Jan-22,51301706074,"-1,646.60",SENSE (MIDLANDS),CARE ESTABLISHMENT,LD - Hunts Locality - Cost of Care,LD - Huntingdonshire - Care,Supported Living
Cambridgeshire County Council,14-Jan-22,51301706074,"-1,646.60",SENSE (MIDLANDS),CARE ESTABLISHMENT,LD - Hunts Locality - Cost of Care,LD - Huntingdonshire - Care,Supported Living
Cambridgeshire County Council,14-Jan-22,51301706074,"-1,646.60",SENSE (MIDLANDS),CARE ESTABLISHMENT,LD - Hunts Locality - Cost of Care,LD - Huntingdonshire - Care,Supported Living
Cambridgeshire County Council,14-Jan-22,51301706074,"-1,646.60",SENSE (MIDLANDS),CARE ESTABLISHMENT,LD - Hunts Locality - Cost of Care,LD - Huntingdonshire - Care,Supported Living
Cambridgeshire County Council,14-Jan-22,51301706074,"-1,646.60",SENSE (MIDLANDS),CARE ESTABLISHMENT,LD - Hunts Locality - Cost of Care,LD - Huntingdonshire - Care,Supported Living
Cambridgeshire County Council,14-Jan-22,51301706074,"-1,646.60",SENSE (MIDLANDS),CARE ESTABLISHMENT,LD - Hunts Locality - Cost of Care,LD - Huntingdonshire - Care,Supported Living
Cambridgeshire County Council,14-Jan-22,51301706074,"-1,646.60",SENSE (MIDLANDS),CARE ESTABLISHMENT,LD - Hunts Locality - Cost of Care,LD - Huntingdonshire - Care,Supported Living
Cambridgeshire County Council,14-Jan-22,51301706074,"-1,646.60",SENSE (MIDLANDS),CARE ESTABLISHMENT,LD - Hunts Locality - Cost of Care,LD - Huntingdonshire - Care,Supported Living
Cambridgeshire County Council,14-Jan-22,51301706074,"-1,646.60",SENSE (MIDLANDS),CARE ESTABLISHMENT,LD - Hunts Locality - Cost of Care,LD - Huntingdonshire - Care,Supported Living
Cambridgeshire County Council,14-Jan-22,51301706074,"-1,646.60",SENSE (MIDLANDS),CARE ESTABLISHMENT,LD - Hunts Locality - Cost of Care,LD - Huntingdonshire - Care,Supported Living
Cambridgeshire County Council,14-Jan-22,51301706074,"-1,646.60",SENSE (MIDLANDS),CARE ESTABLISHMENT,LD - Hunts Locality - Cost of Care,LD - Huntingdonshire - Care,Supported Living
Cambridgeshire County Council,14-Jan-22,51301706074,"-1,646.60",SENSE (MIDLANDS),CARE ESTABLISHMENT,LD - Hunts Locality - Cost of Care,LD - Huntingdonshire - Care,Supported Living
Cambridgeshire County Council,14-Jan-22,51301706074,"-1,646.60",SENSE (MIDLANDS),CARE ESTABLISHMENT,LD - Hunts Locality - Cost of Care,LD - Huntingdonshire - Care,Supported Living
Cambridgeshire County Council,14-Jan-22,51301706074,"-1,646.60",SENSE (MIDLANDS),CARE ESTABLISHMENT,LD - Hunts Locality - Cost of Care,LD - Huntingdonshire - Care,Supported Living
Cambridgeshire County Council,14-Jan-22,51301706074,"-1,646.60",SENSE (MIDLANDS),CARE ESTABLISHMENT,LD - Hunts Locality - Cost of Care,LD - Huntingdonshire - Care,Supported Living
Cambridgeshire County Council,14-Jan-22,51301706074,"-1,646.60",SENSE (MIDLANDS),CARE ESTABLISHMENT,LD - Hunts Locality - Cost of Care,LD - Huntingdonshire - Care,Supported Living
Cambridgeshire County Council,14-Jan-22,51301706074,"-1,646.60",SENSE (MIDLANDS),CARE ESTABLISHMENT,LD - Hunts Locality - Cost of Care,LD - Huntingdonshire - Care,Supported Living
Cambridgeshire County Council,14-Jan-22,51301706074,"-1,646.60",SENSE (MIDLANDS),CARE ESTABLISHMENT,LD - Hunts Locality - Cost of Care,LD - Huntingdonshire - Care,Supported Living
Cambridgeshire County Council,14-Jan-22,51301706074,"-1,646.60",SENSE (MIDLANDS),CARE ESTABLISHMENT,LD - Hunts Locality - Cost of Care,LD - Huntingdonshire - Care,Supported Living
Cambridgeshire County Council,14-Jan-22,51301706074,"-1,646.60",SENSE (MIDLANDS),CARE ESTABLISHMENT,LD - Hunts Locality - Cost of Care,LD - Huntingdonshire - Care,Supported Living
Cambridgeshire County Council,14-Jan-22,51301706074,"-1,646.60",SENSE (MIDLANDS),CARE ESTABLISHMENT,LD - Hunts Locality - Cost of Care,LD - Huntingdonshire - Care,Supported Living
Cambridgeshire County Council,14-Jan-22,51301706074,"-1,646.60",SENSE (MIDLANDS),CARE ESTABLISHMENT,LD - Hunts Locality - Cost of Care,LD - Huntingdonshire - Care,Supported Living
Cambridgeshire County Council,14-Jan-22,51301706074,"-1,646.60",SENSE (MIDLANDS),CARE ESTABLISHMENT,LD - Hunts Locality - Cost of Care,LD - Huntingdonshire - Care,Supported Living
Cambridgeshire County Council,14-Jan-22,51301706074,"-1,646.60",SENSE (MIDLANDS),CARE ESTABLISHMENT,LD - Hunts Locality - Cost of Care,LD - Huntingdonshire - Care,Supported Living
Cambridgeshire County Council,14-Jan-22,51301706074,"-1,646.60",SENSE (MIDLANDS),CARE ESTABLISHMENT,LD - Hunts Locality - Cost of Care,LD - Huntingdonshire - Care,Supported Living
Cambridgeshire County Council,14-Jan-22,51301706074,"-1,646.60",SENSE (MIDLANDS),CARE ESTABLISHMENT,LD - Hunts Locality - Cost of Care,LD - Huntingdonshire - Care,Supported Living
Cambridgeshire County Council,14-Jan-22,51301706074,"-1,646.60",SENSE (MIDLANDS),CARE ESTABLISHMENT,LD - Hunts Locality - Cost of Care,LD - Huntingdonshire - Care,Supported Living
Cambridgeshire County Council,14-Jan-22,51301706074,"-1,646.60",SENSE (MIDLANDS),CARE ESTABLISHMENT,LD - Hunts Locality - Cost of Care,LD - Huntingdonshire - Care,Supported Living
Cambridgeshire County Council,14-Jan-22,51301706074,"-1,646.60",SENSE (MIDLANDS),CARE ESTABLISHMENT,LD - Hunts Locality - Cost of Care,LD - Huntingdonshire - Care,Supported Living
Cambridgeshire County Council,14-Jan-22,51301706074,"-1,646.60",SENSE (MIDLANDS),CARE ESTABLISHMENT,LD - Hunts Locality - Cost of Care,LD - Huntingdonshire - Care,Supported Living
Cambridgeshire County Council,14-Jan-22,51301706074,"-1,646.60",SENSE (MIDLANDS),CARE ESTABLISHMENT,LD - Hunts Locality - Cost of Care,LD - Huntingdonshire - Care,Supported Living
Cambridgeshire County Council,14-Jan-22,51301706074,"-1,646.60",SENSE (MIDLANDS),CARE ESTABLISHMENT,LD - Hunts Locality - Cost of Care,LD - Huntingdonshire - Care,Supported Living
Cambridgeshire County Council,14-Jan-22,51301706074,"-1,646.60",SENSE (MIDLANDS),CARE ESTABLISHMENT,LD - Hunts Locality - Cost of Care,LD - Huntingdonshire - Care,Supported Living
Cambridgeshire County Council,14-Jan-22,51301706074,"-1,646.60",SENSE (MIDLANDS),CARE ESTABLISHMENT,LD - Hunts Locality - Cost of Care,LD - Huntingdonshire - Care,Supported Living
Cambridgeshire County Council,14-Jan-22,51301706074,"-1,646.60",SENSE (MIDLANDS),CARE ESTABLISHMENT,LD - Hunts Locality - Cost of Care,LD - Huntingdonshire - Care,Supported Living
Cambridgeshire County Council,14-Jan-22,51301706074,"-1,646.60",SENSE (MIDLANDS),CARE ESTABLISHMENT,LD - Hunts Locality - Cost of Care,LD - Huntingdonshire - Care,Supported Living
Cambridgeshire County Council,14-Jan-22,51301706074,"-1,646.60",SENSE (MIDLANDS),CARE ESTABLISHMENT,LD - Hunts Locality - Cost of Care,LD - Huntingdonshire - Care,Supported Living
Cambridgeshire County Council,14-Jan-22,51301706074,"-1,646.60",SENSE (MIDLANDS),CARE ESTABLISHMENT,LD - Hunts Locality - Cost of Care,LD - Huntingdonshire - Care,Supported Living
Cambridgeshire County Council,14-Jan-22,51301706074,"-1,646.60",SENSE (MIDLANDS),CARE ESTABLISHMENT,LD - Hunts Locality - Cost of Care,LD - Huntingdonshire - Care,Supported Living
Cambridgeshire County Council,14-Jan-22,51301706006,"-1,626.95",HAPPY FUTURES SUPPORT SPECIALISTS LTD,CARE ESTABLISHMENT,LD - Hunts Locality - Cost of Care,LD - Huntingdonshire - Care,Supported Living
Cambridgeshire County Council,14-Jan-22,51301706006,"-1,626.95",HAPPY FUTURES SUPPORT SPECIALISTS LTD,CARE ESTABLISHMENT,LD - Hunts Locality - Cost of Care,LD - Huntingdonshire - Care,Supported Living
Cambridgeshire County Council,14-Jan-22,51301706006,"-1,626.95",HAPPY FUTURES SUPPORT SPECIALISTS LTD,CARE ESTABLISHMENT,LD - Hunts Locality - Cost of Care,LD - Huntingdonshire - Care,Supported Living
Cambridgeshire County Council,14-Jan-22,51301706006,"-1,626.95",HAPPY FUTURES SUPPORT SPECIALISTS LTD,CARE ESTABLISHMENT,LD - Hunts Locality - Cost of Care,LD - Huntingdonshire - Care,Supported Living
Cambridgeshire County Council,14-Jan-22,51301706006,"-1,626.95",HAPPY FUTURES SUPPORT SPECIALISTS LTD,CARE ESTABLISHMENT,LD - Hunts Locality - Cost of Care,LD - Huntingdonshire - Care,Supported Living
Cambridgeshire County Council,14-Jan-22,51301706006,"-1,626.95",HAPPY FUTURES SUPPORT SPECIALISTS LTD,CARE ESTABLISHMENT,LD - Hunts Locality - Cost of Care,LD - Huntingdonshire - Care,Supported Living
Cambridgeshire County Council,14-Jan-22,51301706006,"-1,626.95",HAPPY FUTURES SUPPORT SPECIALISTS LTD,CARE ESTABLISHMENT,LD - Hunts Locality - Cost of Care,LD - Huntingdonshire - Care,Supported Living
Cambridgeshire County Council,14-Jan-22,51301706006,"-1,626.95",HAPPY FUTURES SUPPORT SPECIALISTS LTD,CARE ESTABLISHMENT,LD - Hunts Locality - Cost of Care,LD - Huntingdonshire - Care,Supported Living
Cambridgeshire County Council,14-Jan-22,51301706006,"-1,626.95",HAPPY FUTURES SUPPORT SPECIALISTS LTD,CARE ESTABLISHMENT,LD - Hunts Locality - Cost of Care,LD - Huntingdonshire - Care,Supported Living
Cambridgeshire County Council,14-Jan-22,51301706006,"-1,626.95",HAPPY FUTURES SUPPORT SPECIALISTS LTD,CARE ESTABLISHMENT,LD - Hunts Locality - Cost of Care,LD - Huntingdonshire - Care,Supported Living
Cambridgeshire County Council,14-Jan-22,51301706006,"-1,626.95",HAPPY FUTURES SUPPORT SPECIALISTS LTD,CARE ESTABLISHMENT,LD - Hunts Locality - Cost of Care,LD - Huntingdonshire - Care,Supported Living
Cambridgeshire County Council,14-Jan-22,51301706006,"-1,626.95",HAPPY FUTURES SUPPORT SPECIALISTS LTD,CARE ESTABLISHMENT,LD - Hunts Locality - Cost of Care,LD - Huntingdonshire - Care,Supported Living
Cambridgeshire County Council,14-Jan-22,51301706006,"-1,626.95",HAPPY FUTURES SUPPORT SPECIALISTS LTD,CARE ESTABLISHMENT,LD - Hunts Locality - Cost of Care,LD - Huntingdonshire - Care,Supported Living
Cambridgeshire County Council,14-Jan-22,51301706006,"-1,626.95",HAPPY FUTURES SUPPORT SPECIALISTS LTD,CARE ESTABLISHMENT,LD - Hunts Locality - Cost of Care,LD - Huntingdonshire - Care,Supported Living
Cambridgeshire County Council,14-Jan-22,51301706006,"-1,626.95",HAPPY FUTURES SUPPORT SPECIALISTS LTD,CARE ESTABLISHMENT,LD - Hunts Locality - Cost of Care,LD - Huntingdonshire - Care,Supported Living
Cambridgeshire County Council,14-Jan-22,51301706006,"-1,626.95",HAPPY FUTURES SUPPORT SPECIALISTS LTD,CARE ESTABLISHMENT,LD - Hunts Locality - Cost of Care,LD - Huntingdonshire - Care,Supported Living
Cambridgeshire County Council,14-Jan-22,51301706006,"-1,626.95",HAPPY FUTURES SUPPORT SPECIALISTS LTD,CARE ESTABLISHMENT,LD - Hunts Locality - Cost of Care,LD - Huntingdonshire - Care,Supported Living
Cambridgeshire County Council,14-Jan-22,51301706006,"-1,626.95",HAPPY FUTURES SUPPORT SPECIALISTS LTD,CARE ESTABLISHMENT,LD - Hunts Locality - Cost of Care,LD - Huntingdonshire - Care,Supported Living
Cambridgeshire County Council,14-Jan-22,51301706006,"-1,626.95",HAPPY FUTURES SUPPORT SPECIALISTS LTD,CARE ESTABLISHMENT,LD - Hunts Locality - Cost of Care,LD - Huntingdonshire - Care,Supported Living
Cambridgeshire County Council,14-Jan-22,51301706006,"-1,626.95",HAPPY FUTURES SUPPORT SPECIALISTS LTD,CARE ESTABLISHMENT,LD - Hunts Locality - Cost of Care,LD - Huntingdonshire - Care,Supported Living
Cambridgeshire County Council,14-Jan-22,51301706006,"-1,626.95",HAPPY FUTURES SUPPORT SPECIALISTS LTD,CARE ESTABLISHMENT,LD - Hunts Locality - Cost of Care,LD - Huntingdonshire - Care,Supported Living
Cambridgeshire County Council,14-Jan-22,51301706006,"-1,626.95",HAPPY FUTURES SUPPORT SPECIALISTS LTD,CARE ESTABLISHMENT,LD - Hunts Locality - Cost of Care,LD - Huntingdonshire - Care,Supported Living
Cambridgeshire County Council,14-Jan-22,51301706006,"-1,626.95",HAPPY FUTURES SUPPORT SPECIALISTS LTD,CARE ESTABLISHMENT,LD - Hunts Locality - Cost of Care,LD - Huntingdonshire - Care,Supported Living
Cambridgeshire County Council,14-Jan-22,51301706006,"-1,626.95",HAPPY FUTURES SUPPORT SPECIALISTS LTD,CARE ESTABLISHMENT,LD - Hunts Locality - Cost of Care,LD - Huntingdonshire - Care,Supported Living
Cambridgeshire County Council,14-Jan-22,51301706006,"-1,626.95",HAPPY FUTURES SUPPORT SPECIALISTS LTD,CARE ESTABLISHMENT,LD - Hunts Locality - Cost of Care,LD - Huntingdonshire - Care,Supported Living
Cambridgeshire County Council,14-Jan-22,51301706006,"-1,626.95",HAPPY FUTURES SUPPORT SPECIALISTS LTD,CARE ESTABLISHMENT,LD - Hunts Locality - Cost of Care,LD - Huntingdonshire - Care,Supported Living
Cambridgeshire County Council,14-Jan-22,51301706006,"-1,626.95",HAPPY FUTURES SUPPORT SPECIALISTS LTD,CARE ESTABLISHMENT,LD - Hunts Locality - Cost of Care,LD - Huntingdonshire - Care,Supported Living
Cambridgeshire County Council,14-Jan-22,51301706006,"-1,626.95",HAPPY FUTURES SUPPORT SPECIALISTS LTD,CARE ESTABLISHMENT,LD - Hunts Locality - Cost of Care,LD - Huntingdonshire - Care,Supported Living
Cambridgeshire County Council,14-Jan-22,51301706006,"-1,626.95",HAPPY FUTURES SUPPORT SPECIALISTS LTD,CARE ESTABLISHMENT,LD - Hunts Locality - Cost of Care,LD - Huntingdonshire - Care,Supported Living
Cambridgeshire County Council,14-Jan-22,51301706006,"-1,626.95",HAPPY FUTURES SUPPORT SPECIALISTS LTD,CARE ESTABLISHMENT,LD - Hunts Locality - Cost of Care,LD - Huntingdonshire - Care,Supported Living
Cambridgeshire County Council,14-Jan-22,51301706006,"-1,626.95",HAPPY FUTURES SUPPORT SPECIALISTS LTD,CARE ESTABLISHMENT,LD - Hunts Locality - Cost of Care,LD - Huntingdonshire - Care,Supported Living
Cambridgeshire County Council,14-Jan-22,51301706006,"-1,626.95",HAPPY FUTURES SUPPORT SPECIALISTS LTD,CARE ESTABLISHMENT,LD - Hunts Locality - Cost of Care,LD - Huntingdonshire - Care,Supported Living
Cambridgeshire County Council,14-Jan-22,51301706006,"-1,626.95",HAPPY FUTURES SUPPORT SPECIALISTS LTD,CARE ESTABLISHMENT,LD - Hunts Locality - Cost of Care,LD - Huntingdonshire - Care,Supported Living
Cambridgeshire County Council,14-Jan-22,51301706006,"-1,626.95",HAPPY FUTURES SUPPORT SPECIALISTS LTD,CARE ESTABLISHMENT,LD - Hunts Locality - Cost of Care,LD - Huntingdonshire - Care,Supported Living
Cambridgeshire County Council,14-Jan-22,51301706006,"-1,626.95",HAPPY FUTURES SUPPORT SPECIALISTS LTD,CARE ESTABLISHMENT,LD - Hunts Locality - Cost of Care,LD - Huntingdonshire - Care,Supported Living
Cambridgeshire County Council,14-Jan-22,51301706006,"-1,626.95",HAPPY FUTURES SUPPORT SPECIALISTS LTD,CARE ESTABLISHMENT,LD - Hunts Locality - Cost of Care,LD - Huntingdonshire - Care,Supported Living
Cambridgeshire County Council,14-Jan-22,51301706006,"-1,626.95",HAPPY FUTURES SUPPORT SPECIALISTS LTD,CARE ESTABLISHMENT,LD - Hunts Locality - Cost of Care,LD - Huntingdonshire - Care,Supported Living
Cambridgeshire County Council,14-Jan-22,51301706006,"-1,626.95",HAPPY FUTURES SUPPORT SPECIALISTS LTD,CARE ESTABLISHMENT,LD - Hunts Locality - Cost of Care,LD - Huntingdonshire - Care,Supported Living
Cambridgeshire County Council,14-Jan-22,51301706006,"-1,626.95",HAPPY FUTURES SUPPORT SPECIALISTS LTD,CARE ESTABLISHMENT,LD - Hunts Locality - Cost of Care,LD - Huntingdonshire - Care,Supported Living
Cambridgeshire County Council,14-Jan-22,51301705935,"-1,588.00",SENSE (MIDLANDS),CARE ESTABLISHMENT,Physical Disablity - Cost of Care,Countywide PD Service - Care,Residential Care
Cambridgeshire County Council,14-Jan-22,51301705935,"-1,588.00",SENSE (MIDLANDS),CARE ESTABLISHMENT,Physical Disablity - Cost of Care,Countywide PD Service - Care,Residential Care
Cambridgeshire County Council,14-Jan-22,51301705935,"-1,588.00",SENSE (MIDLANDS),CARE ESTABLISHMENT,Physical Disablity - Cost of Care,Countywide PD Service - Care,Residential Care
Cambridgeshire County Council,14-Jan-22,51301705935,"-1,588.00",SENSE (MIDLANDS),CARE ESTABLISHMENT,Physical Disablity - Cost of Care,Countywide PD Service - Care,Residential Care
Cambridgeshire County Council,14-Jan-22,51301705935,"-1,588.00",SENSE (MIDLANDS),CARE ESTABLISHMENT,Physical Disablity - Cost of Care,Countywide PD Service - Care,Residential Care
Cambridgeshire County Council,14-Jan-22,51301705935,"-1,588.00",SENSE (MIDLANDS),CARE ESTABLISHMENT,Physical Disablity - Cost of Care,Countywide PD Service - Care,Residential Care
Cambridgeshire County Council,14-Jan-22,51301705935,"-1,588.00",SENSE (MIDLANDS),CARE ESTABLISHMENT,Physical Disablity - Cost of Care,Countywide PD Service - Care,Residential Care
Cambridgeshire County Council,14-Jan-22,51301705935,"-1,588.00",SENSE (MIDLANDS),CARE ESTABLISHMENT,Physical Disablity - Cost of Care,Countywide PD Service - Care,Residential Care
Cambridgeshire County Council,14-Jan-22,51301705935,"-1,588.00",SENSE (MIDLANDS),CARE ESTABLISHMENT,Physical Disablity - Cost of Care,Countywide PD Service - Care,Residential Care
Cambridgeshire County Council,14-Jan-22,51301705935,"-1,588.00",SENSE (MIDLANDS),CARE ESTABLISHMENT,Physical Disablity - Cost of Care,Countywide PD Service - Care,Residential Care
Cambridgeshire County Council,14-Jan-22,51301705935,"-1,588.00",SENSE (MIDLANDS),CARE ESTABLISHMENT,Physical Disablity - Cost of Care,Countywide PD Service - Care,Residential Care
Cambridgeshire County Council,14-Jan-22,51301705935,"-1,588.00",SENSE (MIDLANDS),CARE ESTABLISHMENT,Physical Disablity - Cost of Care,Countywide PD Service - Care,Residential Care
Cambridgeshire County Council,14-Jan-22,51301705935,"-1,588.00",SENSE (MIDLANDS),CARE ESTABLISHMENT,Physical Disablity - Cost of Care,Countywide PD Service - Care,Residential Care
Cambridgeshire County Council,14-Jan-22,51301705935,"-1,588.00",SENSE (MIDLANDS),CARE ESTABLISHMENT,Physical Disablity - Cost of Care,Countywide PD Service - Care,Residential Care
Cambridgeshire County Council,14-Jan-22,51301705935,"-1,588.00",SENSE (MIDLANDS),CARE ESTABLISHMENT,Physical Disablity - Cost of Care,Countywide PD Service - Care,Residential Care
Cambridgeshire County Council,14-Jan-22,51301705935,"-1,588.00",SENSE (MIDLANDS),CARE ESTABLISHMENT,Physical Disablity - Cost of Care,Countywide PD Service - Care,Residential Care
Cambridgeshire County Council,14-Jan-22,51301705935,"-1,588.00",SENSE (MIDLANDS),CARE ESTABLISHMENT,Physical Disablity - Cost of Care,Countywide PD Service - Care,Residential Care
Cambridgeshire County Council,14-Jan-22,51301705935,"-1,588.00",SENSE (MIDLANDS),CARE ESTABLISHMENT,Physical Disablity - Cost of Care,Countywide PD Service - Care,Residential Care
Cambridgeshire County Council,14-Jan-22,51301705935,"-1,588.00",SENSE (MIDLANDS),CARE ESTABLISHMENT,Physical Disablity - Cost of Care,Countywide PD Service - Care,Residential Care
Cambridgeshire County Council,14-Jan-22,51301705935,"-1,588.00",SENSE (MIDLANDS),CARE ESTABLISHMENT,Physical Disablity - Cost of Care,Countywide PD Service - Care,Residential Care
Cambridgeshire County Council,14-Jan-22,51301705935,"-1,588.00",SENSE (MIDLANDS),CARE ESTABLISHMENT,Physical Disablity - Cost of Care,Countywide PD Service - Care,Residential Care
Cambridgeshire County Council,14-Jan-22,51301705935,"-1,588.00",SENSE (MIDLANDS),CARE ESTABLISHMENT,Physical Disablity - Cost of Care,Countywide PD Service - Care,Residential Care
Cambridgeshire County Council,14-Jan-22,51301705935,"-1,588.00",SENSE (MIDLANDS),CARE ESTABLISHMENT,Physical Disablity - Cost of Care,Countywide PD Service - Care,Residential Care
Cambridgeshire County Council,14-Jan-22,51301705935,"-1,588.00",SENSE (MIDLANDS),CARE ESTABLISHMENT,Physical Disablity - Cost of Care,Countywide PD Service - Care,Residential Care
Cambridgeshire County Council,14-Jan-22,51301705935,"-1,588.00",SENSE (MIDLANDS),CARE ESTABLISHMENT,Physical Disablity - Cost of Care,Countywide PD Service - Care,Residential Care
Cambridgeshire County Council,14-Jan-22,51301705935,"-1,588.00",SENSE (MIDLANDS),CARE ESTABLISHMENT,Physical Disablity - Cost of Care,Countywide PD Service - Care,Residential Care
Cambridgeshire County Council,14-Jan-22,51301705935,"-1,588.00",SENSE (MIDLANDS),CARE ESTABLISHMENT,Physical Disablity - Cost of Care,Countywide PD Service - Care,Residential Care
Cambridgeshire County Council,14-Jan-22,51301705935,"-1,588.00",SENSE (MIDLANDS),CARE ESTABLISHMENT,Physical Disablity - Cost of Care,Countywide PD Service - Care,Residential Care
Cambridgeshire County Council,14-Jan-22,51301705935,"-1,588.00",SENSE (MIDLANDS),CARE ESTABLISHMENT,Physical Disablity - Cost of Care,Countywide PD Service - Care,Residential Care
Cambridgeshire County Council,14-Jan-22,51301705935,"-1,588.00",SENSE (MIDLANDS),CARE ESTABLISHMENT,Physical Disablity - Cost of Care,Countywide PD Service - Care,Residential Care
Cambridgeshire County Council,14-Jan-22,51301705935,"-1,588.00",SENSE (MIDLANDS),CARE ESTABLISHMENT,Physical Disablity - Cost of Care,Countywide PD Service - Care,Residential Care
Cambridgeshire County Council,14-Jan-22,51301705935,"-1,588.00",SENSE (MIDLANDS),CARE ESTABLISHMENT,Physical Disablity - Cost of Care,Countywide PD Service - Care,Residential Care
Cambridgeshire County Council,14-Jan-22,51301705935,"-1,588.00",SENSE (MIDLANDS),CARE ESTABLISHMENT,Physical Disablity - Cost of Care,Countywide PD Service - Care,Residential Care
Cambridgeshire County Council,14-Jan-22,51301705935,"-1,588.00",SENSE (MIDLANDS),CARE ESTABLISHMENT,Physical Disablity - Cost of Care,Countywide PD Service - Care,Residential Care
Cambridgeshire County Council,14-Jan-22,51301705935,"-1,588.00",SENSE (MIDLANDS),CARE ESTABLISHMENT,Physical Disablity - Cost of Care,Countywide PD Service - Care,Residential Care
Cambridgeshire County Council,14-Jan-22,51301705935,"-1,588.00",SENSE (MIDLANDS),CARE ESTABLISHMENT,Physical Disablity - Cost of Care,Countywide PD Service - Care,Residential Care
Cambridgeshire County Council,14-Jan-22,51301705935,"-1,588.00",SENSE (MIDLANDS),CARE ESTABLISHMENT,Physical Disablity - Cost of Care,Countywide PD Service - Care,Residential Care
Cambridgeshire County Council,14-Jan-22,51301705935,"-1,588.00",SENSE (MIDLANDS),CARE ESTABLISHMENT,Physical Disablity - Cost of Care,Countywide PD Service - Care,Residential Care
Cambridgeshire County Council,14-Jan-22,51301705935,"-1,588.00",SENSE (MIDLANDS),CARE ESTABLISHMENT,Physical Disablity - Cost of Care,Countywide PD Service - Care,Residential Care
Cambridgeshire County Council,14-Jan-22,51301705935,"-1,588.00",SENSE (MIDLANDS),CARE ESTABLISHMENT,Physical Disablity - Cost of Care,Countywide PD Service - Care,Residential Care
Cambridgeshire County Council,14-Jan-22,51301705935,"-1,588.00",SENSE (MIDLANDS),CARE ESTABLISHMENT,Physical Disablity - Cost of Care,Countywide PD Service - Care,Residential Care
Cambridgeshire County Council,14-Jan-22,51301705935,"-1,588.00",SENSE (MIDLANDS),CARE ESTABLISHMENT,Physical Disablity - Cost of Care,Countywide PD Service - Care,Residential Care
Cambridgeshire County Council,14-Jan-22,51301705935,"-1,588.00",SENSE (MIDLANDS),CARE ESTABLISHMENT,Physical Disablity - Cost of Care,Countywide PD Service - Care,Residential Care
Cambridgeshire County Council,14-Jan-22,51301705935,"-1,588.00",SENSE (MIDLANDS),CARE ESTABLISHMENT,Physical Disablity - Cost of Care,Countywide PD Service - Care,Residential Care
Cambridgeshire County Council,14-Jan-22,51301705935,"-1,588.00",SENSE (MIDLANDS),CARE ESTABLISHMENT,Physical Disablity - Cost of Care,Countywide PD Service - Care,Residential Care
Cambridgeshire County Council,14-Jan-22,51301705935,"-1,588.00",SENSE (MIDLANDS),CARE ESTABLISHMENT,Physical Disablity - Cost of Care,Countywide PD Service - Care,Residential Care
Cambridgeshire County Council,14-Jan-22,51301705935,"-1,588.00",SENSE (MIDLANDS),CARE ESTABLISHMENT,Physical Disablity - Cost of Care,Countywide PD Service - Care,Residential Care
Cambridgeshire County Council,14-Jan-22,51301705935,"-1,588.00",SENSE (MIDLANDS),CARE ESTABLISHMENT,Physical Disablity - Cost of Care,Countywide PD Service - Care,Residential Care
Cambridgeshire County Council,14-Jan-22,51301705935,"-1,588.00",SENSE (MIDLANDS),CARE ESTABLISHMENT,Physical Disablity - Cost of Care,Countywide PD Service - Care,Residential Care
Cambridgeshire County Council,14-Jan-22,51301705935,"-1,588.00",SENSE (MIDLANDS),CARE ESTABLISHMENT,Physical Disablity - Cost of Care,Countywide PD Service - Care,Residential Care
Cambridgeshire County Council,14-Jan-22,51301705935,"-1,588.00",SENSE (MIDLANDS),CARE ESTABLISHMENT,Physical Disablity - Cost of Care,Countywide PD Service - Care,Residential Care
Cambridgeshire County Council,14-Jan-22,51301705935,"-1,588.00",SENSE (MIDLANDS),CARE ESTABLISHMENT,Physical Disablity - Cost of Care,Countywide PD Service - Care,Residential Care
Cambridgeshire County Council,14-Jan-22,51301705935,"-1,588.00",SENSE (MIDLANDS),CARE ESTABLISHMENT,Physical Disablity - Cost of Care,Countywide PD Service - Care,Residential Care
Cambridgeshire County Council,14-Jan-22,51301705935,"-1,588.00",SENSE (MIDLANDS),CARE ESTABLISHMENT,Physical Disablity - Cost of Care,Countywide PD Service - Care,Residential Care
Cambridgeshire County Council,14-Jan-22,51301705935,"-1,588.00",SENSE (MIDLANDS),CARE ESTABLISHMENT,Physical Disablity - Cost of Care,Countywide PD Service - Care,Residential Care
Cambridgeshire County Council,14-Jan-22,51301705935,"-1,588.00",SENSE (MIDLANDS),CARE ESTABLISHMENT,Physical Disablity - Cost of Care,Countywide PD Service - Care,Residential Care
Cambridgeshire County Council,14-Jan-22,51301705935,"-1,588.00",SENSE (MIDLANDS),CARE ESTABLISHMENT,Physical Disablity - Cost of Care,Countywide PD Service - Care,Residential Care
Cambridgeshire County Council,14-Jan-22,51301705935,"-1,588.00",SENSE (MIDLANDS),CARE ESTABLISHMENT,Physical Disablity - Cost of Care,Countywide PD Service - Care,Residential Care
Cambridgeshire County Council,14-Jan-22,51301705935,"-1,588.00",SENSE (MIDLANDS),CARE ESTABLISHMENT,Physical Disablity - Cost of Care,Countywide PD Service - Care,Residential Care
Cambridgeshire County Council,14-Jan-22,51301705935,"-1,588.00",SENSE (MIDLANDS),CARE ESTABLISHMENT,Physical Disablity - Cost of Care,Countywide PD Service - Care,Residential Care
Cambridgeshire County Council,14-Jan-22,51301705935,"-1,588.00",SENSE (MIDLANDS),CARE ESTABLISHMENT,Physical Disablity - Cost of Care,Countywide PD Service - Care,Residential Care
Cambridgeshire County Council,14-Jan-22,51301705935,"-1,588.00",SENSE (MIDLANDS),CARE ESTABLISHMENT,Physical Disablity - Cost of Care,Countywide PD Service - Care,Residential Care
Cambridgeshire County Council,14-Jan-22,51301705935,"-1,588.00",SENSE (MIDLANDS),CARE ESTABLISHMENT,Physical Disablity - Cost of Care,Countywide PD Service - Care,Residential Care
Cambridgeshire County Council,14-Jan-22,51301705935,"-1,588.00",SENSE (MIDLANDS),CARE ESTABLISHMENT,Physical Disablity - Cost of Care,Countywide PD Service - Care,Residential Care
Cambridgeshire County Council,14-Jan-22,51301705935,"-1,588.00",SENSE (MIDLANDS),CARE ESTABLISHMENT,Physical Disablity - Cost of Care,Countywide PD Service - Care,Residential Care
Cambridgeshire County Council,14-Jan-22,51301705935,"-1,588.00",SENSE (MIDLANDS),CARE ESTABLISHMENT,Physical Disablity - Cost of Care,Countywide PD Service - Care,Residential Care
Cambridgeshire County Council,14-Jan-22,51301705935,"-1,588.00",SENSE (MIDLANDS),CARE ESTABLISHMENT,Physical Disablity - Cost of Care,Countywide PD Service - Care,Residential Care
Cambridgeshire County Council,14-Jan-22,51301705935,"-1,588.00",SENSE (MIDLANDS),CARE ESTABLISHMENT,Physical Disablity - Cost of Care,Countywide PD Service - Care,Residential Care
Cambridgeshire County Council,14-Jan-22,51301705935,"-1,588.00",SENSE (MIDLANDS),CARE ESTABLISHMENT,Physical Disablity - Cost of Care,Countywide PD Service - Care,Residential Care
Cambridgeshire County Council,14-Jan-22,51301705935,"-1,588.00",SENSE (MIDLANDS),CARE ESTABLISHMENT,Physical Disablity - Cost of Care,Countywide PD Service - Care,Residential Care
Cambridgeshire County Council,14-Jan-22,51301705935,"-1,588.00",SENSE (MIDLANDS),CARE ESTABLISHMENT,Physical Disablity - Cost of Care,Countywide PD Service - Care,Residential Care
Cambridgeshire County Council,14-Jan-22,51301705935,"-1,588.00",SENSE (MIDLANDS),CARE ESTABLISHMENT,Physical Disablity - Cost of Care,Countywide PD Service - Care,Residential Care
Cambridgeshire County Council,14-Jan-22,51301705935,"-1,588.00",SENSE (MIDLANDS),CARE ESTABLISHMENT,Physical Disablity - Cost of Care,Countywide PD Service - Care,Residential Care
Cambridgeshire County Council,14-Jan-22,51301705935,"-1,588.00",SENSE (MIDLANDS),CARE ESTABLISHMENT,Physical Disablity - Cost of Care,Countywide PD Service - Care,Residential Care
Cambridgeshire County Council,14-Jan-22,51301705935,"-1,588.00",SENSE (MIDLANDS),CARE ESTABLISHMENT,Physical Disablity - Cost of Care,Countywide PD Service - Care,Residential Care
Cambridgeshire County Council,14-Jan-22,51301705935,"-1,588.00",SENSE (MIDLANDS),CARE ESTABLISHMENT,Physical Disablity - Cost of Care,Countywide PD Service - Care,Residential Care
Cambridgeshire County Council,14-Jan-22,51301705935,"-1,588.00",SENSE (MIDLANDS),CARE ESTABLISHMENT,Physical Disablity - Cost of Care,Countywide PD Service - Care,Residential Care
Cambridgeshire County Council,14-Jan-22,51301705935,"-1,588.00",SENSE (MIDLANDS),CARE ESTABLISHMENT,Physical Disablity - Cost of Care,Countywide PD Service - Care,Residential Care
Cambridgeshire County Council,14-Jan-22,51301705935,"-1,588.00",SENSE (MIDLANDS),CARE ESTABLISHMENT,Physical Disablity - Cost of Care,Countywide PD Service - Care,Residential Care
Cambridgeshire County Council,14-Jan-22,51301705935,"-1,588.00",SENSE (MIDLANDS),CARE ESTABLISHMENT,Physical Disablity - Cost of Care,Countywide PD Service - Care,Residential Care
Cambridgeshire County Council,14-Jan-22,51301705935,"-1,588.00",SENSE (MIDLANDS),CARE ESTABLISHMENT,Physical Disablity - Cost of Care,Countywide PD Service - Care,Residential Care
Cambridgeshire County Council,14-Jan-22,51301705935,"-1,588.00",SENSE (MIDLANDS),CARE ESTABLISHMENT,Physical Disablity - Cost of Care,Countywide PD Service - Care,Residential Care
Cambridgeshire County Council,14-Jan-22,51301706109,"-1,569.75",CAERUS CARE LTD,CARE ESTABLISHMENT,LD - Young Adults Team,LD - Young Adults - Care,Supported Living
Cambridgeshire County Council,14-Jan-22,51301705936,"-1,556.23",SENSE NATIONAL DEAF & BLIND,CARE ESTABLISHMENT,LD - East Locality - Cost of Care,LD - East Cambs - Care,Residential Care
Cambridgeshire County Council,14-Jan-22,51301705936,"-1,556.23",SENSE NATIONAL DEAF & BLIND,CARE ESTABLISHMENT,LD - East Locality - Cost of Care,LD - East Cambs - Care,Residential Care
Cambridgeshire County Council,14-Jan-22,51301705936,"-1,556.23",SENSE NATIONAL DEAF & BLIND,CARE ESTABLISHMENT,LD - East Locality - Cost of Care,LD - East Cambs - Care,Residential Care
Cambridgeshire County Council,14-Jan-22,51301705936,"-1,556.23",SENSE NATIONAL DEAF & BLIND,CARE ESTABLISHMENT,LD - East Locality - Cost of Care,LD - East Cambs - Care,Residential Care
Cambridgeshire County Council,14-Jan-22,51301705936,"-1,556.23",SENSE NATIONAL DEAF & BLIND,CARE ESTABLISHMENT,LD - East Locality - Cost of Care,LD - East Cambs - Care,Residential Care
Cambridgeshire County Council,14-Jan-22,51301705936,"-1,556.23",SENSE NATIONAL DEAF & BLIND,CARE ESTABLISHMENT,LD - East Locality - Cost of Care,LD - East Cambs - Care,Residential Care
Cambridgeshire County Council,14-Jan-22,51301705936,"-1,556.23",SENSE NATIONAL DEAF & BLIND,CARE ESTABLISHMENT,LD - East Locality - Cost of Care,LD - East Cambs - Care,Residential Care
Cambridgeshire County Council,14-Jan-22,51301705936,"-1,556.23",SENSE NATIONAL DEAF & BLIND,CARE ESTABLISHMENT,LD - East Locality - Cost of Care,LD - East Cambs - Care,Residential Care
Cambridgeshire County Council,14-Jan-22,51301705936,"-1,556.23",SENSE NATIONAL DEAF & BLIND,CARE ESTABLISHMENT,LD - East Locality - Cost of Care,LD - East Cambs - Care,Residential Care
Cambridgeshire County Council,14-Jan-22,51301705936,"-1,556.23",SENSE NATIONAL DEAF & BLIND,CARE ESTABLISHMENT,LD - East Locality - Cost of Care,LD - East Cambs - Care,Residential Care
Cambridgeshire County Council,14-Jan-22,51301705936,"-1,556.23",SENSE NATIONAL DEAF & BLIND,CARE ESTABLISHMENT,LD - East Locality - Cost of Care,LD - East Cambs - Care,Residential Care
Cambridgeshire County Council,14-Jan-22,51301705936,"-1,556.23",SENSE NATIONAL DEAF & BLIND,CARE ESTABLISHMENT,LD - East Locality - Cost of Care,LD - East Cambs - Care,Residential Care
Cambridgeshire County Council,14-Jan-22,51301705936,"-1,556.23",SENSE NATIONAL DEAF & BLIND,CARE ESTABLISHMENT,LD - East Locality - Cost of Care,LD - East Cambs - Care,Residential Care
Cambridgeshire County Council,14-Jan-22,51301705936,"-1,556.23",SENSE NATIONAL DEAF & BLIND,CARE ESTABLISHMENT,LD - East Locality - Cost of Care,LD - East Cambs - Care,Residential Care
Cambridgeshire County Council,14-Jan-22,51301705936,"-1,556.23",SENSE NATIONAL DEAF & BLIND,CARE ESTABLISHMENT,LD - East Locality - Cost of Care,LD - East Cambs - Care,Residential Care
Cambridgeshire County Council,14-Jan-22,51301705936,"-1,556.23",SENSE NATIONAL DEAF & BLIND,CARE ESTABLISHMENT,LD - East Locality - Cost of Care,LD - East Cambs - Care,Residential Care
Cambridgeshire County Council,14-Jan-22,51301705936,"-1,556.23",SENSE NATIONAL DEAF & BLIND,CARE ESTABLISHMENT,LD - East Locality - Cost of Care,LD - East Cambs - Care,Residential Care
Cambridgeshire County Council,14-Jan-22,51301705936,"-1,556.23",SENSE NATIONAL DEAF & BLIND,CARE ESTABLISHMENT,LD - East Locality - Cost of Care,LD - East Cambs - Care,Residential Care
Cambridgeshire County Council,14-Jan-22,51301705936,"-1,556.23",SENSE NATIONAL DEAF & BLIND,CARE ESTABLISHMENT,LD - East Locality - Cost of Care,LD - East Cambs - Care,Residential Care
Cambridgeshire County Council,14-Jan-22,51301705936,"-1,556.23",SENSE NATIONAL DEAF & BLIND,CARE ESTABLISHMENT,LD - East Locality - Cost of Care,LD - East Cambs - Care,Residential Care
Cambridgeshire County Council,14-Jan-22,51301705936,"-1,556.23",SENSE NATIONAL DEAF & BLIND,CARE ESTABLISHMENT,LD - East Locality - Cost of Care,LD - East Cambs - Care,Residential Care
Cambridgeshire County Council,14-Jan-22,51301705936,"-1,556.23",SENSE NATIONAL DEAF & BLIND,CARE ESTABLISHMENT,LD - East Locality - Cost of Care,LD - East Cambs - Care,Residential Care
Cambridgeshire County Council,14-Jan-22,51301705936,"-1,556.23",SENSE NATIONAL DEAF & BLIND,CARE ESTABLISHMENT,LD - East Locality - Cost of Care,LD - East Cambs - Care,Residential Care
Cambridgeshire County Council,14-Jan-22,51301705936,"-1,556.23",SENSE NATIONAL DEAF & BLIND,CARE ESTABLISHMENT,LD - East Locality - Cost of Care,LD - East Cambs - Care,Residential Care
Cambridgeshire County Council,14-Jan-22,51301705936,"-1,556.23",SENSE NATIONAL DEAF & BLIND,CARE ESTABLISHMENT,LD - East Locality - Cost of Care,LD - East Cambs - Care,Residential Care
Cambridgeshire County Council,14-Jan-22,51301705936,"-1,556.23",SENSE NATIONAL DEAF & BLIND,CARE ESTABLISHMENT,LD - East Locality - Cost of Care,LD - East Cambs - Care,Residential Care
Cambridgeshire County Council,14-Jan-22,51301705936,"-1,556.23",SENSE NATIONAL DEAF & BLIND,CARE ESTABLISHMENT,LD - East Locality - Cost of Care,LD - East Cambs - Care,Residential Care
Cambridgeshire County Council,14-Jan-22,51301705936,"-1,556.23",SENSE NATIONAL DEAF & BLIND,CARE ESTABLISHMENT,LD - East Locality - Cost of Care,LD - East Cambs - Care,Residential Care
Cambridgeshire County Council,14-Jan-22,51301705936,"-1,556.23",SENSE NATIONAL DEAF & BLIND,CARE ESTABLISHMENT,LD - East Locality - Cost of Care,LD - East Cambs - Care,Residential Care
Cambridgeshire County Council,14-Jan-22,51301705936,"-1,556.23",SENSE NATIONAL DEAF & BLIND,CARE ESTABLISHMENT,LD - East Locality - Cost of Care,LD - East Cambs - Care,Residential Care
Cambridgeshire County Council,14-Jan-22,51301705936,"-1,556.23",SENSE NATIONAL DEAF & BLIND,CARE ESTABLISHMENT,LD - East Locality - Cost of Care,LD - East Cambs - Care,Residential Care
Cambridgeshire County Council,14-Jan-22,51301705936,"-1,556.23",SENSE NATIONAL DEAF & BLIND,CARE ESTABLISHMENT,LD - East Locality - Cost of Care,LD - East Cambs - Care,Residential Care
Cambridgeshire County Council,14-Jan-22,51301705936,"-1,556.23",SENSE NATIONAL DEAF & BLIND,CARE ESTABLISHMENT,LD - East Locality - Cost of Care,LD - East Cambs - Care,Residential Care
Cambridgeshire County Council,14-Jan-22,51301705936,"-1,556.23",SENSE NATIONAL DEAF & BLIND,CARE ESTABLISHMENT,LD - East Locality - Cost of Care,LD - East Cambs - Care,Residential Care
Cambridgeshire County Council,14-Jan-22,51301705936,"-1,556.23",SENSE NATIONAL DEAF & BLIND,CARE ESTABLISHMENT,LD - East Locality - Cost of Care,LD - East Cambs - Care,Residential Care
Cambridgeshire County Council,14-Jan-22,51301705936,"-1,556.23",SENSE NATIONAL DEAF & BLIND,CARE ESTABLISHMENT,LD - East Locality - Cost of Care,LD - East Cambs - Care,Residential Care
Cambridgeshire County Council,14-Jan-22,51301705936,"-1,556.23",SENSE NATIONAL DEAF & BLIND,CARE ESTABLISHMENT,LD - East Locality - Cost of Care,LD - East Cambs - Care,Residential Care
Cambridgeshire County Council,14-Jan-22,51301705936,"-1,556.23",SENSE NATIONAL DEAF & BLIND,CARE ESTABLISHMENT,LD - East Locality - Cost of Care,LD - East Cambs - Care,Residential Care
Cambridgeshire County Council,14-Jan-22,51301705936,"-1,556.23",SENSE NATIONAL DEAF & BLIND,CARE ESTABLISHMENT,LD - East Locality - Cost of Care,LD - East Cambs - Care,Residential Care
Cambridgeshire County Council,14-Jan-22,51301705936,"-1,556.23",SENSE NATIONAL DEAF & BLIND,CARE ESTABLISHMENT,LD - East Locality - Cost of Care,LD - East Cambs - Care,Residential Care
Cambridgeshire County Council,14-Jan-22,51301705936,"-1,556.23",SENSE NATIONAL DEAF & BLIND,CARE ESTABLISHMENT,LD - East Locality - Cost of Care,LD - East Cambs - Care,Residential Care
Cambridgeshire County Council,14-Jan-22,51301705936,"-1,556.23",SENSE NATIONAL DEAF & BLIND,CARE ESTABLISHMENT,LD - East Locality - Cost of Care,LD - East Cambs - Care,Residential Care
Cambridgeshire County Council,14-Jan-22,51301705936,"-1,556.23",SENSE NATIONAL DEAF & BLIND,CARE ESTABLISHMENT,LD - East Locality - Cost of Care,LD - East Cambs - Care,Residential Care
Cambridgeshire County Council,14-Jan-22,51301705936,"-1,556.23",SENSE NATIONAL DEAF & BLIND,CARE ESTABLISHMENT,LD - East Locality - Cost of Care,LD - East Cambs - Care,Residential Care
Cambridgeshire County Council,14-Jan-22,51301705936,"-1,556.23",SENSE NATIONAL DEAF & BLIND,CARE ESTABLISHMENT,LD - East Locality - Cost of Care,LD - East Cambs - Care,Residential Care
Cambridgeshire County Council,14-Jan-22,51301705936,"-1,556.23",SENSE NATIONAL DEAF & BLIND,CARE ESTABLISHMENT,LD - East Locality - Cost of Care,LD - East Cambs - Care,Residential Care
Cambridgeshire County Council,14-Jan-22,51301705936,"-1,556.23",SENSE NATIONAL DEAF & BLIND,CARE ESTABLISHMENT,LD - East Locality - Cost of Care,LD - East Cambs - Care,Residential Care
Cambridgeshire County Council,14-Jan-22,51301705936,"-1,556.23",SENSE NATIONAL DEAF & BLIND,CARE ESTABLISHMENT,LD - East Locality - Cost of Care,LD - East Cambs - Care,Residential Care
Cambridgeshire County Council,14-Jan-22,51301705936,"-1,556.23",SENSE NATIONAL DEAF & BLIND,CARE ESTABLISHMENT,LD - East Locality - Cost of Care,LD - East Cambs - Care,Residential Care
Cambridgeshire County Council,14-Jan-22,51301705936,"-1,556.23",SENSE NATIONAL DEAF & BLIND,CARE ESTABLISHMENT,LD - East Locality - Cost of Care,LD - East Cambs - Care,Residential Care
Cambridgeshire County Council,14-Jan-22,51301705936,"-1,556.23",SENSE NATIONAL DEAF & BLIND,CARE ESTABLISHMENT,LD - East Locality - Cost of Care,LD - East Cambs - Care,Residential Care
Cambridgeshire County Council,14-Jan-22,51301705936,"-1,556.23",SENSE NATIONAL DEAF & BLIND,CARE ESTABLISHMENT,LD - East Locality - Cost of Care,LD - East Cambs - Care,Residential Care
Cambridgeshire County Council,14-Jan-22,51301705936,"-1,556.23",SENSE NATIONAL DEAF & BLIND,CARE ESTABLISHMENT,LD - East Locality - Cost of Care,LD - East Cambs - Care,Residential Care
Cambridgeshire County Council,14-Jan-22,51301705936,"-1,556.23",SENSE NATIONAL DEAF & BLIND,CARE ESTABLISHMENT,LD - East Locality - Cost of Care,LD - East Cambs - Care,Residential Care
Cambridgeshire County Council,14-Jan-22,51301705936,"-1,556.23",SENSE NATIONAL DEAF & BLIND,CARE ESTABLISHMENT,LD - East Locality - Cost of Care,LD - East Cambs - Care,Residential Care
Cambridgeshire County Council,14-Jan-22,51301705936,"-1,556.23",SENSE NATIONAL DEAF & BLIND,CARE ESTABLISHMENT,LD - East Locality - Cost of Care,LD - East Cambs - Care,Residential Care
Cambridgeshire County Council,14-Jan-22,51301705936,"-1,556.23",SENSE NATIONAL DEAF & BLIND,CARE ESTABLISHMENT,LD - East Locality - Cost of Care,LD - East Cambs - Care,Residential Care
Cambridgeshire County Council,14-Jan-22,51301705936,"-1,556.23",SENSE NATIONAL DEAF & BLIND,CARE ESTABLISHMENT,LD - East Locality - Cost of Care,LD - East Cambs - Care,Residential Care
Cambridgeshire County Council,14-Jan-22,51301705936,"-1,556.23",SENSE NATIONAL DEAF & BLIND,CARE ESTABLISHMENT,LD - East Locality - Cost of Care,LD - East Cambs - Care,Residential Care
Cambridgeshire County Council,14-Jan-22,51301705936,"-1,556.23",SENSE NATIONAL DEAF & BLIND,CARE ESTABLISHMENT,LD - East Locality - Cost of Care,LD - East Cambs - Care,Residential Care
Cambridgeshire County Council,14-Jan-22,51301705936,"-1,556.23",SENSE NATIONAL DEAF & BLIND,CARE ESTABLISHMENT,LD - East Locality - Cost of Care,LD - East Cambs - Care,Residential Care
Cambridgeshire County Council,14-Jan-22,51301705936,"-1,556.23",SENSE NATIONAL DEAF & BLIND,CARE ESTABLISHMENT,LD - East Locality - Cost of Care,LD - East Cambs - Care,Residential Care
Cambridgeshire County Council,14-Jan-22,51301705936,"-1,556.23",SENSE NATIONAL DEAF & BLIND,CARE ESTABLISHMENT,LD - East Locality - Cost of Care,LD - East Cambs - Care,Residential Care
Cambridgeshire County Council,14-Jan-22,51301705936,"-1,556.23",SENSE NATIONAL DEAF & BLIND,CARE ESTABLISHMENT,LD - East Locality - Cost of Care,LD - East Cambs - Care,Residential Care
Cambridgeshire County Council,14-Jan-22,51301705936,"-1,556.23",SENSE NATIONAL DEAF & BLIND,CARE ESTABLISHMENT,LD - East Locality - Cost of Care,LD - East Cambs - Care,Residential Care
Cambridgeshire County Council,14-Jan-22,51301705936,"-1,556.23",SENSE NATIONAL DEAF & BLIND,CARE ESTABLISHMENT,LD - East Locality - Cost of Care,LD - East Cambs - Care,Residential Care
Cambridgeshire County Council,14-Jan-22,51301705936,"-1,556.23",SENSE NATIONAL DEAF & BLIND,CARE ESTABLISHMENT,LD - East Locality - Cost of Care,LD - East Cambs - Care,Residential Care
Cambridgeshire County Council,14-Jan-22,51301705936,"-1,556.23",SENSE NATIONAL DEAF & BLIND,CARE ESTABLISHMENT,LD - East Locality - Cost of Care,LD - East Cambs - Care,Residential Care
Cambridgeshire County Council,14-Jan-22,51301705936,"-1,556.23",SENSE NATIONAL DEAF & BLIND,CARE ESTABLISHMENT,LD - East Locality - Cost of Care,LD - East Cambs - Care,Residential Care
Cambridgeshire County Council,14-Jan-22,51301705936,"-1,556.23",SENSE NATIONAL DEAF & BLIND,CARE ESTABLISHMENT,LD - East Locality - Cost of Care,LD - East Cambs - Care,Residential Care
Cambridgeshire County Council,14-Jan-22,51301705936,"-1,556.23",SENSE NATIONAL DEAF & BLIND,CARE ESTABLISHMENT,LD - East Locality - Cost of Care,LD - East Cambs - Care,Residential Care
Cambridgeshire County Council,14-Jan-22,51301705936,"-1,556.23",SENSE NATIONAL DEAF & BLIND,CARE ESTABLISHMENT,LD - East Locality - Cost of Care,LD - East Cambs - Care,Residential Care
Cambridgeshire County Council,14-Jan-22,51301705936,"-1,556.23",SENSE NATIONAL DEAF & BLIND,CARE ESTABLISHMENT,LD - East Locality - Cost of Care,LD - East Cambs - Care,Residential Care
Cambridgeshire County Council,14-Jan-22,51301705936,"-1,556.23",SENSE NATIONAL DEAF & BLIND,CARE ESTABLISHMENT,LD - East Locality - Cost of Care,LD - East Cambs - Care,Residential Care
Cambridgeshire County Council,14-Jan-22,51301705936,"-1,556.23",SENSE NATIONAL DEAF & BLIND,CARE ESTABLISHMENT,LD - East Locality - Cost of Care,LD - East Cambs - Care,Residential Care
Cambridgeshire County Council,14-Jan-22,51301705936,"-1,556.23",SENSE NATIONAL DEAF & BLIND,CARE ESTABLISHMENT,LD - East Locality - Cost of Care,LD - East Cambs - Care,Residential Care
Cambridgeshire County Council,14-Jan-22,51301705936,"-1,556.23",SENSE NATIONAL DEAF & BLIND,CARE ESTABLISHMENT,LD - East Locality - Cost of Care,LD - East Cambs - Care,Residential Care
Cambridgeshire County Council,14-Jan-22,51301705936,"-1,556.23",SENSE NATIONAL DEAF & BLIND,CARE ESTABLISHMENT,LD - East Locality - Cost of Care,LD - East Cambs - Care,Residential Care
Cambridgeshire County Council,14-Jan-22,51301705936,"-1,556.23",SENSE NATIONAL DEAF & BLIND,CARE ESTABLISHMENT,LD - East Locality - Cost of Care,LD - East Cambs - Care,Residential Care
Cambridgeshire County Council,14-Jan-22,51301705936,"-1,556.23",SENSE NATIONAL DEAF & BLIND,CARE ESTABLISHMENT,LD - East Locality - Cost of Care,LD - East Cambs - Care,Residential Care
Cambridgeshire County Council,14-Jan-22,51301705936,"-1,556.23",SENSE NATIONAL DEAF & BLIND,CARE ESTABLISHMENT,LD - East Locality - Cost of Care,LD - East Cambs - Care,Residential Care
Cambridgeshire County Council,14-Jan-22,51301705936,"-1,556.23",SENSE NATIONAL DEAF & BLIND,CARE ESTABLISHMENT,LD - East Locality - Cost of Care,LD - East Cambs - Care,Residential Care
Cambridgeshire County Council,14-Jan-22,51301706079,"-1,531.25",AUGUSTA CARE LTD,CARE ESTABLISHMENT,LD - Young Adults Team,LD - Young Adults - Care,Supported Living
Cambridgeshire County Council,14-Jan-22,51301706079,"-1,531.25",AUGUSTA CARE LTD,CARE ESTABLISHMENT,LD - Young Adults Team,LD - Young Adults - Care,Supported Living
Cambridgeshire County Council,14-Jan-22,51301706079,"-1,531.25",AUGUSTA CARE LTD,CARE ESTABLISHMENT,LD - Young Adults Team,LD - Young Adults - Care,Supported Living
Cambridgeshire County Council,14-Jan-22,51301706079,"-1,531.25",AUGUSTA CARE LTD,CARE ESTABLISHMENT,LD - Young Adults Team,LD - Young Adults - Care,Supported Living
Cambridgeshire County Council,14-Jan-22,51301706079,"-1,531.25",AUGUSTA CARE LTD,CARE ESTABLISHMENT,LD - Young Adults Team,LD - Young Adults - Care,Supported Living
Cambridgeshire County Council,14-Jan-22,51301706079,"-1,531.25",AUGUSTA CARE LTD,CARE ESTABLISHMENT,LD - Young Adults Team,LD - Young Adults - Care,Supported Living
Cambridgeshire County Council,14-Jan-22,51301706079,"-1,531.25",AUGUSTA CARE LTD,CARE ESTABLISHMENT,LD - Young Adults Team,LD - Young Adults - Care,Supported Living
Cambridgeshire County Council,14-Jan-22,51301705937,"-1,506.93",SENSE (MIDLANDS),CARE ESTABLISHMENT,LD - Hunts Locality - Cost of Care,LD - Huntingdonshire - Care,Residential Care
Cambridgeshire County Council,20-Jan-22,51301712168,"-1,500.00",WOODLANDS CARE CENTRE,CARE ESTABLISHMENT,OP - Hunts Locality - Cost of Care,Hunts OP Team - Care,Residential Care
Cambridgeshire County Council,20-Jan-22,51301712168,"-1,500.00",WOODLANDS CARE CENTRE,CARE ESTABLISHMENT,OP - Hunts Locality - Cost of Care,Hunts OP Team - Care,Residential Care
Cambridgeshire County Council,20-Jan-22,51301712168,"-1,500.00",WOODLANDS CARE CENTRE,CARE ESTABLISHMENT,OP - Hunts Locality - Cost of Care,Hunts OP Team - Care,Residential Care
Cambridgeshire County Council,20-Jan-22,51301712168,"-1,500.00",WOODLANDS CARE CENTRE,CARE ESTABLISHMENT,OP - Hunts Locality - Cost of Care,Hunts OP Team - Care,Residential Care
Cambridgeshire County Council,14-Jan-22,51301706079,"-1,459.62",AUGUSTA CARE LTD,CARE ESTABLISHMENT,LD - Young Adults Team,LD - Young Adults - Care,Supported Living
Cambridgeshire County Council,14-Jan-22,51301705938,"-1,438.41",ALDERWOOD LLA LTD,CARE ESTABLISHMENT,LD - Hunts Locality - Cost of Care,LD - Huntingdonshire - Special Needs,Residential Care
Cambridgeshire County Council,14-Jan-22,51301705938,"-1,438.41",ALDERWOOD LLA LTD,CARE ESTABLISHMENT,LD - Hunts Locality - Cost of Care,LD - Huntingdonshire - Special Needs,Residential Care
Cambridgeshire County Council,14-Jan-22,51301705938,"-1,438.41",ALDERWOOD LLA LTD,CARE ESTABLISHMENT,LD - Hunts Locality - Cost of Care,LD - Huntingdonshire - Special Needs,Residential Care
Cambridgeshire County Council,14-Jan-22,51301705938,"-1,438.41",ALDERWOOD LLA LTD,CARE ESTABLISHMENT,LD - Hunts Locality - Cost of Care,LD - Huntingdonshire - Special Needs,Residential Care
Cambridgeshire County Council,14-Jan-22,51301705938,"-1,438.41",ALDERWOOD LLA LTD,CARE ESTABLISHMENT,LD - Hunts Locality - Cost of Care,LD - Huntingdonshire - Special Needs,Residential Care
Cambridgeshire County Council,14-Jan-22,51301705938,"-1,438.41",ALDERWOOD LLA LTD,CARE ESTABLISHMENT,LD - Hunts Locality - Cost of Care,LD - Huntingdonshire - Special Needs,Residential Care
Cambridgeshire County Council,14-Jan-22,51301705938,"-1,438.41",ALDERWOOD LLA LTD,CARE ESTABLISHMENT,LD - Hunts Locality - Cost of Care,LD - Huntingdonshire - Special Needs,Residential Care
Cambridgeshire County Council,14-Jan-22,51301705938,"-1,438.41",ALDERWOOD LLA LTD,CARE ESTABLISHMENT,LD - Hunts Locality - Cost of Care,LD - Huntingdonshire - Special Needs,Residential Care
Cambridgeshire County Council,14-Jan-22,51301705938,"-1,438.41",ALDERWOOD LLA LTD,CARE ESTABLISHMENT,LD - Hunts Locality - Cost of Care,LD - Huntingdonshire - Special Needs,Residential Care
Cambridgeshire County Council,14-Jan-22,51301705938,"-1,438.41",ALDERWOOD LLA LTD,CARE ESTABLISHMENT,LD - Hunts Locality - Cost of Care,LD - Huntingdonshire - Special Needs,Residential Care
Cambridgeshire County Council,14-Jan-22,51301705938,"-1,438.41",ALDERWOOD LLA LTD,CARE ESTABLISHMENT,LD - Hunts Locality - Cost of Care,LD - Huntingdonshire - Special Needs,Residential Care
Cambridgeshire County Council,14-Jan-22,51301705938,"-1,438.41",ALDERWOOD LLA LTD,CARE ESTABLISHMENT,LD - Hunts Locality - Cost of Care,LD - Huntingdonshire - Special Needs,Residential Care
Cambridgeshire County Council,14-Jan-22,51301705938,"-1,438.41",ALDERWOOD LLA LTD,CARE ESTABLISHMENT,LD - Hunts Locality - Cost of Care,LD - Huntingdonshire - Special Needs,Residential Care
Cambridgeshire County Council,14-Jan-22,51301705938,"-1,438.41",ALDERWOOD LLA LTD,CARE ESTABLISHMENT,LD - Hunts Locality - Cost of Care,LD - Huntingdonshire - Special Needs,Residential Care
Cambridgeshire County Council,14-Jan-22,51301705938,"-1,438.41",ALDERWOOD LLA LTD,CARE ESTABLISHMENT,LD - Hunts Locality - Cost of Care,LD - Huntingdonshire - Special Needs,Residential Care
Cambridgeshire County Council,14-Jan-22,51301705938,"-1,438.41",ALDERWOOD LLA LTD,CARE ESTABLISHMENT,LD - Hunts Locality - Cost of Care,LD - Huntingdonshire - Special Needs,Residential Care
Cambridgeshire County Council,14-Jan-22,51301705938,"-1,438.41",ALDERWOOD LLA LTD,CARE ESTABLISHMENT,LD - Hunts Locality - Cost of Care,LD - Huntingdonshire - Special Needs,Residential Care
Cambridgeshire County Council,14-Jan-22,51301705938,"-1,438.41",ALDERWOOD LLA LTD,CARE ESTABLISHMENT,LD - Hunts Locality - Cost of Care,LD - Huntingdonshire - Special Needs,Residential Care
Cambridgeshire County Council,14-Jan-22,51301705938,"-1,438.41",ALDERWOOD LLA LTD,CARE ESTABLISHMENT,LD - Hunts Locality - Cost of Care,LD - Huntingdonshire - Special Needs,Residential Care
Cambridgeshire County Council,14-Jan-22,51301705938,"-1,438.41",ALDERWOOD LLA LTD,CARE ESTABLISHMENT,LD - Hunts Locality - Cost of Care,LD - Huntingdonshire - Special Needs,Residential Care
Cambridgeshire County Council,14-Jan-22,51301705938,"-1,438.41",ALDERWOOD LLA LTD,CARE ESTABLISHMENT,LD - Hunts Locality - Cost of Care,LD - Huntingdonshire - Special Needs,Residential Care
Cambridgeshire County Council,14-Jan-22,51301705938,"-1,438.41",ALDERWOOD LLA LTD,CARE ESTABLISHMENT,LD - Hunts Locality - Cost of Care,LD - Huntingdonshire - Special Needs,Residential Care
Cambridgeshire County Council,14-Jan-22,51301705938,"-1,438.41",ALDERWOOD LLA LTD,CARE ESTABLISHMENT,LD - Hunts Locality - Cost of Care,LD - Huntingdonshire - Special Needs,Residential Care
Cambridgeshire County Council,14-Jan-22,51301705938,"-1,438.41",ALDERWOOD LLA LTD,CARE ESTABLISHMENT,LD - Hunts Locality - Cost of Care,LD - Huntingdonshire - Special Needs,Residential Care
Cambridgeshire County Council,14-Jan-22,51301705938,"-1,438.41",ALDERWOOD LLA LTD,CARE ESTABLISHMENT,LD - Hunts Locality - Cost of Care,LD - Huntingdonshire - Special Needs,Residential Care
Cambridgeshire County Council,14-Jan-22,51301705938,"-1,438.41",ALDERWOOD LLA LTD,CARE ESTABLISHMENT,LD - Hunts Locality - Cost of Care,LD - Huntingdonshire - Special Needs,Residential Care
Cambridgeshire County Council,14-Jan-22,51301705938,"-1,438.41",ALDERWOOD LLA LTD,CARE ESTABLISHMENT,LD - Hunts Locality - Cost of Care,LD - Huntingdonshire - Special Needs,Residential Care
Cambridgeshire County Council,14-Jan-22,51301705938,"-1,438.41",ALDERWOOD LLA LTD,CARE ESTABLISHMENT,LD - Hunts Locality - Cost of Care,LD - Huntingdonshire - Special Needs,Residential Care
Cambridgeshire County Council,14-Jan-22,51301705938,"-1,438.41",ALDERWOOD LLA LTD,CARE ESTABLISHMENT,LD - Hunts Locality - Cost of Care,LD - Huntingdonshire - Special Needs,Residential Care
Cambridgeshire County Council,14-Jan-22,51301705938,"-1,438.41",ALDERWOOD LLA LTD,CARE ESTABLISHMENT,LD - Hunts Locality - Cost of Care,LD - Huntingdonshire - Special Needs,Residential Care
Cambridgeshire County Council,14-Jan-22,51301705938,"-1,438.41",ALDERWOOD LLA LTD,CARE ESTABLISHMENT,LD - Hunts Locality - Cost of Care,LD - Huntingdonshire - Special Needs,Residential Care
Cambridgeshire County Council,14-Jan-22,51301705938,"-1,438.41",ALDERWOOD LLA LTD,CARE ESTABLISHMENT,LD - Hunts Locality - Cost of Care,LD - Huntingdonshire - Special Needs,Residential Care
Cambridgeshire County Council,14-Jan-22,51301705938,"-1,438.41",ALDERWOOD LLA LTD,CARE ESTABLISHMENT,LD - Hunts Locality - Cost of Care,LD - Huntingdonshire - Special Needs,Residential Care
Cambridgeshire County Council,14-Jan-22,51301705938,"-1,438.41",ALDERWOOD LLA LTD,CARE ESTABLISHMENT,LD - Hunts Locality - Cost of Care,LD - Huntingdonshire - Special Needs,Residential Care
Cambridgeshire County Council,14-Jan-22,51301705938,"-1,438.41",ALDERWOOD LLA LTD,CARE ESTABLISHMENT,LD - Hunts Locality - Cost of Care,LD - Huntingdonshire - Special Needs,Residential Care
Cambridgeshire County Council,14-Jan-22,51301705938,"-1,438.41",ALDERWOOD LLA LTD,CARE ESTABLISHMENT,LD - Hunts Locality - Cost of Care,LD - Huntingdonshire - Special Needs,Residential Care
Cambridgeshire County Council,14-Jan-22,51301705938,"-1,438.41",ALDERWOOD LLA LTD,CARE ESTABLISHMENT,LD - Hunts Locality - Cost of Care,LD - Huntingdonshire - Special Needs,Residential Care
Cambridgeshire County Council,14-Jan-22,51301705938,"-1,438.41",ALDERWOOD LLA LTD,CARE ESTABLISHMENT,LD - Hunts Locality - Cost of Care,LD - Huntingdonshire - Special Needs,Residential Care
Cambridgeshire County Council,14-Jan-22,51301705938,"-1,438.41",ALDERWOOD LLA LTD,CARE ESTABLISHMENT,LD - Hunts Locality - Cost of Care,LD - Huntingdonshire - Special Needs,Residential Care
Cambridgeshire County Council,14-Jan-22,51301705938,"-1,438.41",ALDERWOOD LLA LTD,CARE ESTABLISHMENT,LD - Hunts Locality - Cost of Care,LD - Huntingdonshire - Special Needs,Residential Care
Cambridgeshire County Council,14-Jan-22,51301705938,"-1,438.41",ALDERWOOD LLA LTD,CARE ESTABLISHMENT,LD - Hunts Locality - Cost of Care,LD - Huntingdonshire - Special Needs,Residential Care
Cambridgeshire County Council,14-Jan-22,51301705938,"-1,438.41",ALDERWOOD LLA LTD,CARE ESTABLISHMENT,LD - Hunts Locality - Cost of Care,LD - Huntingdonshire - Special Needs,Residential Care
Cambridgeshire County Council,14-Jan-22,51301705938,"-1,438.41",ALDERWOOD LLA LTD,CARE ESTABLISHMENT,LD - Hunts Locality - Cost of Care,LD - Huntingdonshire - Special Needs,Residential Care
Cambridgeshire County Council,14-Jan-22,51301705941,"-1,388.17",LANSDOWNE CARE SERVICES,CARE ESTABLISHMENT,LD - Hunts Locality - Cost of Care,LD - Huntingdonshire - Care,Residential Care
Cambridgeshire County Council,14-Jan-22,51301705941,"-1,388.17",LANSDOWNE CARE SERVICES,CARE ESTABLISHMENT,LD - Hunts Locality - Cost of Care,LD - Huntingdonshire - Care,Residential Care
Cambridgeshire County Council,14-Jan-22,51301705941,"-1,388.17",LANSDOWNE CARE SERVICES,CARE ESTABLISHMENT,LD - Hunts Locality - Cost of Care,LD - Huntingdonshire - Care,Residential Care
Cambridgeshire County Council,14-Jan-22,51301705941,"-1,388.17",LANSDOWNE CARE SERVICES,CARE ESTABLISHMENT,LD - Hunts Locality - Cost of Care,LD - Huntingdonshire - Care,Residential Care
Cambridgeshire County Council,14-Jan-22,51301705941,"-1,388.17",LANSDOWNE CARE SERVICES,CARE ESTABLISHMENT,LD - Hunts Locality - Cost of Care,LD - Huntingdonshire - Care,Residential Care
Cambridgeshire County Council,14-Jan-22,51301705941,"-1,388.17",LANSDOWNE CARE SERVICES,CARE ESTABLISHMENT,LD - Hunts Locality - Cost of Care,LD - Huntingdonshire - Care,Residential Care
Cambridgeshire County Council,14-Jan-22,51301705941,"-1,388.17",LANSDOWNE CARE SERVICES,CARE ESTABLISHMENT,LD - Hunts Locality - Cost of Care,LD - Huntingdonshire - Care,Residential Care
Cambridgeshire County Council,14-Jan-22,51301705941,"-1,388.17",LANSDOWNE CARE SERVICES,CARE ESTABLISHMENT,LD - Hunts Locality - Cost of Care,LD - Huntingdonshire - Care,Residential Care
Cambridgeshire County Council,14-Jan-22,51301705941,"-1,388.17",LANSDOWNE CARE SERVICES,CARE ESTABLISHMENT,LD - Hunts Locality - Cost of Care,LD - Huntingdonshire - Care,Residential Care
Cambridgeshire County Council,14-Jan-22,51301705941,"-1,388.17",LANSDOWNE CARE SERVICES,CARE ESTABLISHMENT,LD - Hunts Locality - Cost of Care,LD - Huntingdonshire - Care,Residential Care
Cambridgeshire County Council,14-Jan-22,51301705941,"-1,388.17",LANSDOWNE CARE SERVICES,CARE ESTABLISHMENT,LD - Hunts Locality - Cost of Care,LD - Huntingdonshire - Care,Residential Care
Cambridgeshire County Council,14-Jan-22,51301705941,"-1,388.17",LANSDOWNE CARE SERVICES,CARE ESTABLISHMENT,LD - Hunts Locality - Cost of Care,LD - Huntingdonshire - Care,Residential Care
Cambridgeshire County Council,14-Jan-22,51301705941,"-1,388.17",LANSDOWNE CARE SERVICES,CARE ESTABLISHMENT,LD - Hunts Locality - Cost of Care,LD - Huntingdonshire - Care,Residential Care
Cambridgeshire County Council,14-Jan-22,51301705941,"-1,388.17",LANSDOWNE CARE SERVICES,CARE ESTABLISHMENT,LD - Hunts Locality - Cost of Care,LD - Huntingdonshire - Care,Residential Care
Cambridgeshire County Council,14-Jan-22,51301705941,"-1,388.17",LANSDOWNE CARE SERVICES,CARE ESTABLISHMENT,LD - Hunts Locality - Cost of Care,LD - Huntingdonshire - Care,Residential Care
Cambridgeshire County Council,14-Jan-22,51301705941,"-1,388.17",LANSDOWNE CARE SERVICES,CARE ESTABLISHMENT,LD - Hunts Locality - Cost of Care,LD - Huntingdonshire - Care,Residential Care
Cambridgeshire County Council,14-Jan-22,51301705941,"-1,388.17",LANSDOWNE CARE SERVICES,CARE ESTABLISHMENT,LD - Hunts Locality - Cost of Care,LD - Huntingdonshire - Care,Residential Care
Cambridgeshire County Council,14-Jan-22,51301705941,"-1,388.17",LANSDOWNE CARE SERVICES,CARE ESTABLISHMENT,LD - Hunts Locality - Cost of Care,LD - Huntingdonshire - Care,Residential Care
Cambridgeshire County Council,14-Jan-22,51301705941,"-1,388.17",LANSDOWNE CARE SERVICES,CARE ESTABLISHMENT,LD - Hunts Locality - Cost of Care,LD - Huntingdonshire - Care,Residential Care
Cambridgeshire County Council,14-Jan-22,51301705941,"-1,388.17",LANSDOWNE CARE SERVICES,CARE ESTABLISHMENT,LD - Hunts Locality - Cost of Care,LD - Huntingdonshire - Care,Residential Care
Cambridgeshire County Council,14-Jan-22,51301705941,"-1,388.17",LANSDOWNE CARE SERVICES,CARE ESTABLISHMENT,LD - Hunts Locality - Cost of Care,LD - Huntingdonshire - Care,Residential Care
Cambridgeshire County Council,14-Jan-22,51301705941,"-1,388.17",LANSDOWNE CARE SERVICES,CARE ESTABLISHMENT,LD - Hunts Locality - Cost of Care,LD - Huntingdonshire - Care,Residential Care
Cambridgeshire County Council,14-Jan-22,51301705941,"-1,388.17",LANSDOWNE CARE SERVICES,CARE ESTABLISHMENT,LD - Hunts Locality - Cost of Care,LD - Huntingdonshire - Care,Residential Care
Cambridgeshire County Council,14-Jan-22,51301705941,"-1,388.17",LANSDOWNE CARE SERVICES,CARE ESTABLISHMENT,LD - Hunts Locality - Cost of Care,LD - Huntingdonshire - Care,Residential Care
Cambridgeshire County Council,14-Jan-22,51301705941,"-1,388.17",LANSDOWNE CARE SERVICES,CARE ESTABLISHMENT,LD - Hunts Locality - Cost of Care,LD - Huntingdonshire - Care,Residential Care
Cambridgeshire County Council,14-Jan-22,51301705941,"-1,388.17",LANSDOWNE CARE SERVICES,CARE ESTABLISHMENT,LD - Hunts Locality - Cost of Care,LD - Huntingdonshire - Care,Residential Care
Cambridgeshire County Council,14-Jan-22,51301705941,"-1,388.17",LANSDOWNE CARE SERVICES,CARE ESTABLISHMENT,LD - Hunts Locality - Cost of Care,LD - Huntingdonshire - Care,Residential Care
Cambridgeshire County Council,14-Jan-22,51301705941,"-1,388.17",LANSDOWNE CARE SERVICES,CARE ESTABLISHMENT,LD - Hunts Locality - Cost of Care,LD - Huntingdonshire - Care,Residential Care
Cambridgeshire County Council,14-Jan-22,51301705941,"-1,388.17",LANSDOWNE CARE SERVICES,CARE ESTABLISHMENT,LD - Hunts Locality - Cost of Care,LD - Huntingdonshire - Care,Residential Care
Cambridgeshire County Council,14-Jan-22,51301705941,"-1,388.17",LANSDOWNE CARE SERVICES,CARE ESTABLISHMENT,LD - Hunts Locality - Cost of Care,LD - Huntingdonshire - Care,Residential Care
Cambridgeshire County Council,14-Jan-22,51301705941,"-1,388.17",LANSDOWNE CARE SERVICES,CARE ESTABLISHMENT,LD - Hunts Locality - Cost of Care,LD - Huntingdonshire - Care,Residential Care
Cambridgeshire County Council,14-Jan-22,51301705941,"-1,388.17",LANSDOWNE CARE SERVICES,CARE ESTABLISHMENT,LD - Hunts Locality - Cost of Care,LD - Huntingdonshire - Care,Residential Care
Cambridgeshire County Council,14-Jan-22,51301705941,"-1,388.17",LANSDOWNE CARE SERVICES,CARE ESTABLISHMENT,LD - Hunts Locality - Cost of Care,LD - Huntingdonshire - Care,Residential Care
Cambridgeshire County Council,14-Jan-22,51301705941,"-1,388.17",LANSDOWNE CARE SERVICES,CARE ESTABLISHMENT,LD - Hunts Locality - Cost of Care,LD - Huntingdonshire - Care,Residential Care
Cambridgeshire County Council,14-Jan-22,51301705941,"-1,388.17",LANSDOWNE CARE SERVICES,CARE ESTABLISHMENT,LD - Hunts Locality - Cost of Care,LD - Huntingdonshire - Care,Residential Care
Cambridgeshire County Council,14-Jan-22,51301705941,"-1,388.17",LANSDOWNE CARE SERVICES,CARE ESTABLISHMENT,LD - Hunts Locality - Cost of Care,LD - Huntingdonshire - Care,Residential Care
Cambridgeshire County Council,14-Jan-22,51301705941,"-1,388.17",LANSDOWNE CARE SERVICES,CARE ESTABLISHMENT,LD - Hunts Locality - Cost of Care,LD - Huntingdonshire - Care,Residential Care
Cambridgeshire County Council,14-Jan-22,51301705941,"-1,388.17",LANSDOWNE CARE SERVICES,CARE ESTABLISHMENT,LD - Hunts Locality - Cost of Care,LD - Huntingdonshire - Care,Residential Care
Cambridgeshire County Council,14-Jan-22,51301705941,"-1,388.17",LANSDOWNE CARE SERVICES,CARE ESTABLISHMENT,LD - Hunts Locality - Cost of Care,LD - Huntingdonshire - Care,Residential Care
Cambridgeshire County Council,14-Jan-22,51301705941,"-1,388.17",LANSDOWNE CARE SERVICES,CARE ESTABLISHMENT,LD - Hunts Locality - Cost of Care,LD - Huntingdonshire - Care,Residential Care
Cambridgeshire County Council,14-Jan-22,51301705941,"-1,388.17",LANSDOWNE CARE SERVICES,CARE ESTABLISHMENT,LD - Hunts Locality - Cost of Care,LD - Huntingdonshire - Care,Residential Care
Cambridgeshire County Council,14-Jan-22,51301705941,"-1,388.17",LANSDOWNE CARE SERVICES,CARE ESTABLISHMENT,LD - Hunts Locality - Cost of Care,LD - Huntingdonshire - Care,Residential Care
Cambridgeshire County Council,14-Jan-22,51301705941,"-1,388.17",LANSDOWNE CARE SERVICES,CARE ESTABLISHMENT,LD - Hunts Locality - Cost of Care,LD - Huntingdonshire - Care,Residential Care
Cambridgeshire County Council,14-Jan-22,51301706002,"-1,381.38",THE EDMUND TRUST,CARE ESTABLISHMENT,LD - East Locality - Cost of Care,LD - East Cambs - Care,Day Care
Cambridgeshire County Council,14-Jan-22,51301706002,"-1,381.38",THE EDMUND TRUST,CARE ESTABLISHMENT,LD - East Locality - Cost of Care,LD - East Cambs - Care,Day Care
Cambridgeshire County Council,14-Jan-22,51301706002,"-1,381.38",THE EDMUND TRUST,CARE ESTABLISHMENT,LD - East Locality - Cost of Care,LD - East Cambs - Care,Day Care
Cambridgeshire County Council,14-Jan-22,51301706002,"-1,381.38",THE EDMUND TRUST,CARE ESTABLISHMENT,LD - East Locality - Cost of Care,LD - East Cambs - Care,Day Care
Cambridgeshire County Council,14-Jan-22,51301706002,"-1,381.38",THE EDMUND TRUST,CARE ESTABLISHMENT,LD - East Locality - Cost of Care,LD - East Cambs - Care,Day Care
Cambridgeshire County Council,14-Jan-22,51301706002,"-1,381.38",THE EDMUND TRUST,CARE ESTABLISHMENT,LD - East Locality - Cost of Care,LD - East Cambs - Care,Day Care
Cambridgeshire County Council,14-Jan-22,51301706002,"-1,381.38",THE EDMUND TRUST,CARE ESTABLISHMENT,LD - East Locality - Cost of Care,LD - East Cambs - Care,Day Care
Cambridgeshire County Council,14-Jan-22,51301706002,"-1,381.38",THE EDMUND TRUST,CARE ESTABLISHMENT,LD - East Locality - Cost of Care,LD - East Cambs - Care,Day Care
Cambridgeshire County Council,14-Jan-22,51301706002,"-1,381.38",THE EDMUND TRUST,CARE ESTABLISHMENT,LD - East Locality - Cost of Care,LD - East Cambs - Care,Day Care
Cambridgeshire County Council,14-Jan-22,51301706002,"-1,381.38",THE EDMUND TRUST,CARE ESTABLISHMENT,LD - East Locality - Cost of Care,LD - East Cambs - Care,Day Care
Cambridgeshire County Council,14-Jan-22,51301706002,"-1,381.38",THE EDMUND TRUST,CARE ESTABLISHMENT,LD - East Locality - Cost of Care,LD - East Cambs - Care,Day Care
Cambridgeshire County Council,14-Jan-22,51301706002,"-1,381.38",THE EDMUND TRUST,CARE ESTABLISHMENT,LD - East Locality - Cost of Care,LD - East Cambs - Care,Day Care
Cambridgeshire County Council,14-Jan-22,51301706002,"-1,381.38",THE EDMUND TRUST,CARE ESTABLISHMENT,LD - East Locality - Cost of Care,LD - East Cambs - Care,Day Care
Cambridgeshire County Council,14-Jan-22,51301706002,"-1,381.38",THE EDMUND TRUST,CARE ESTABLISHMENT,LD - East Locality - Cost of Care,LD - East Cambs - Care,Day Care
Cambridgeshire County Council,14-Jan-22,51301706002,"-1,381.38",THE EDMUND TRUST,CARE ESTABLISHMENT,LD - East Locality - Cost of Care,LD - East Cambs - Care,Day Care
Cambridgeshire County Council,14-Jan-22,51301706002,"-1,381.38",THE EDMUND TRUST,CARE ESTABLISHMENT,LD - East Locality - Cost of Care,LD - East Cambs - Care,Day Care
Cambridgeshire County Council,14-Jan-22,51301706002,"-1,381.38",THE EDMUND TRUST,CARE ESTABLISHMENT,LD - East Locality - Cost of Care,LD - East Cambs - Care,Day Care
Cambridgeshire County Council,14-Jan-22,51301706002,"-1,381.38",THE EDMUND TRUST,CARE ESTABLISHMENT,LD - East Locality - Cost of Care,LD - East Cambs - Care,Day Care
Cambridgeshire County Council,14-Jan-22,51301706002,"-1,381.38",THE EDMUND TRUST,CARE ESTABLISHMENT,LD - East Locality - Cost of Care,LD - East Cambs - Care,Day Care
Cambridgeshire County Council,14-Jan-22,51301706002,"-1,381.38",THE EDMUND TRUST,CARE ESTABLISHMENT,LD - East Locality - Cost of Care,LD - East Cambs - Care,Day Care
Cambridgeshire County Council,14-Jan-22,51301706002,"-1,381.38",THE EDMUND TRUST,CARE ESTABLISHMENT,LD - East Locality - Cost of Care,LD - East Cambs - Care,Day Care
Cambridgeshire County Council,14-Jan-22,51301706002,"-1,381.38",THE EDMUND TRUST,CARE ESTABLISHMENT,LD - East Locality - Cost of Care,LD - East Cambs - Care,Day Care
Cambridgeshire County Council,14-Jan-22,51301706002,"-1,381.38",THE EDMUND TRUST,CARE ESTABLISHMENT,LD - East Locality - Cost of Care,LD - East Cambs - Care,Day Care
Cambridgeshire County Council,14-Jan-22,51301706002,"-1,381.38",THE EDMUND TRUST,CARE ESTABLISHMENT,LD - East Locality - Cost of Care,LD - East Cambs - Care,Day Care
Cambridgeshire County Council,14-Jan-22,51301706002,"-1,381.38",THE EDMUND TRUST,CARE ESTABLISHMENT,LD - East Locality - Cost of Care,LD - East Cambs - Care,Day Care
Cambridgeshire County Council,14-Jan-22,51301706002,"-1,381.38",THE EDMUND TRUST,CARE ESTABLISHMENT,LD - East Locality - Cost of Care,LD - East Cambs - Care,Day Care
Cambridgeshire County Council,14-Jan-22,51301706002,"-1,381.38",THE EDMUND TRUST,CARE ESTABLISHMENT,LD - East Locality - Cost of Care,LD - East Cambs - Care,Day Care
Cambridgeshire County Council,14-Jan-22,51301706002,"-1,381.38",THE EDMUND TRUST,CARE ESTABLISHMENT,LD - East Locality - Cost of Care,LD - East Cambs - Care,Day Care
Cambridgeshire County Council,14-Jan-22,51301706002,"-1,381.38",THE EDMUND TRUST,CARE ESTABLISHMENT,LD - East Locality - Cost of Care,LD - East Cambs - Care,Day Care
Cambridgeshire County Council,14-Jan-22,51301706002,"-1,381.38",THE EDMUND TRUST,CARE ESTABLISHMENT,LD - East Locality - Cost of Care,LD - East Cambs - Care,Day Care
Cambridgeshire County Council,14-Jan-22,51301706002,"-1,381.38",THE EDMUND TRUST,CARE ESTABLISHMENT,LD - East Locality - Cost of Care,LD - East Cambs - Care,Day Care
Cambridgeshire County Council,14-Jan-22,51301706002,"-1,381.38",THE EDMUND TRUST,CARE ESTABLISHMENT,LD - East Locality - Cost of Care,LD - East Cambs - Care,Day Care
Cambridgeshire County Council,14-Jan-22,51301706002,"-1,381.38",THE EDMUND TRUST,CARE ESTABLISHMENT,LD - East Locality - Cost of Care,LD - East Cambs - Care,Day Care
Cambridgeshire County Council,14-Jan-22,51301706002,"-1,381.38",THE EDMUND TRUST,CARE ESTABLISHMENT,LD - East Locality - Cost of Care,LD - East Cambs - Care,Day Care
Cambridgeshire County Council,14-Jan-22,51301706002,"-1,381.38",THE EDMUND TRUST,CARE ESTABLISHMENT,LD - East Locality - Cost of Care,LD - East Cambs - Care,Day Care
Cambridgeshire County Council,14-Jan-22,51301706002,"-1,381.38",THE EDMUND TRUST,CARE ESTABLISHMENT,LD - East Locality - Cost of Care,LD - East Cambs - Care,Day Care
Cambridgeshire County Council,14-Jan-22,51301706002,"-1,381.38",THE EDMUND TRUST,CARE ESTABLISHMENT,LD - East Locality - Cost of Care,LD - East Cambs - Care,Day Care
Cambridgeshire County Council,14-Jan-22,51301706002,"-1,381.38",THE EDMUND TRUST,CARE ESTABLISHMENT,LD - East Locality - Cost of Care,LD - East Cambs - Care,Day Care
Cambridgeshire County Council,14-Jan-22,51301706002,"-1,381.38",THE EDMUND TRUST,CARE ESTABLISHMENT,LD - East Locality - Cost of Care,LD - East Cambs - Care,Day Care
Cambridgeshire County Council,21-Jan-22,51301713197,"-1,378.28",KEY2 FUTURES LTD,TRADE SUPPLIER,Unaccompanied Asylum Seeking Children,Unaccompanied Asylum Seeking Children >18 Leaving Care,Living Spport Grants - Financial Assistance 18+
Cambridgeshire County Council,19-Jan-22,51301710613,"-1,378.21",Redacted Personal Data,INDIVIDUAL,Physical Disablity - Cost of Care,Countywide PD Service - Care,Direct Payments
Cambridgeshire County Council,19-Jan-22,51301710613,"-1,378.21",Redacted Personal Data,INDIVIDUAL,Physical Disablity - Cost of Care,Countywide PD Service - Care,Direct Payments
Cambridgeshire County Council,19-Jan-22,51301710613,"-1,378.21",Redacted Personal Data,INDIVIDUAL,Physical Disablity - Cost of Care,Countywide PD Service - Care,Direct Payments
Cambridgeshire County Council,19-Jan-22,51301710613,"-1,378.21",Redacted Personal Data,INDIVIDUAL,Physical Disablity - Cost of Care,Countywide PD Service - Care,Direct Payments
Cambridgeshire County Council,19-Jan-22,51301710613,"-1,378.21",Redacted Personal Data,INDIVIDUAL,Physical Disablity - Cost of Care,Countywide PD Service - Care,Direct Payments
Cambridgeshire County Council,19-Jan-22,51301710613,"-1,378.21",Redacted Personal Data,INDIVIDUAL,Physical Disablity - Cost of Care,Countywide PD Service - Care,Direct Payments
Cambridgeshire County Council,19-Jan-22,51301710613,"-1,378.21",Redacted Personal Data,INDIVIDUAL,Physical Disablity - Cost of Care,Countywide PD Service - Care,Direct Payments
Cambridgeshire County Council,19-Jan-22,51301710613,"-1,378.21",Redacted Personal Data,INDIVIDUAL,Physical Disablity - Cost of Care,Countywide PD Service - Care,Direct Payments
Cambridgeshire County Council,19-Jan-22,51301710613,"-1,378.21",Redacted Personal Data,INDIVIDUAL,Physical Disablity - Cost of Care,Countywide PD Service - Care,Direct Payments
Cambridgeshire County Council,20-Jan-22,51301712266,"-1,350.00",ETHELDRED HOUSE,CARE ESTABLISHMENT,OPMH - City & South,Older People Mental Health City & South,Residential Care
Cambridgeshire County Council,20-Jan-22,51301712266,"-1,350.00",ETHELDRED HOUSE,CARE ESTABLISHMENT,OPMH - City & South,Older People Mental Health City & South,Residential Care
Cambridgeshire County Council,20-Jan-22,51301712266,"-1,350.00",ETHELDRED HOUSE,CARE ESTABLISHMENT,OPMH - City & South,Older People Mental Health City & South,Residential Care
Cambridgeshire County Council,20-Jan-22,51301712266,"-1,350.00",ETHELDRED HOUSE,CARE ESTABLISHMENT,OPMH - City & South,Older People Mental Health City & South,Residential Care
Cambridgeshire County Council,20-Jan-22,51301712266,"-1,350.00",ETHELDRED HOUSE,CARE ESTABLISHMENT,OPMH - City & South,Older People Mental Health City & South,Residential Care
Cambridgeshire County Council,20-Jan-22,51301712266,"-1,350.00",ETHELDRED HOUSE,CARE ESTABLISHMENT,OPMH - City & South,Older People Mental Health City & South,Residential Care
Cambridgeshire County Council,20-Jan-22,51301712266,"-1,350.00",ETHELDRED HOUSE,CARE ESTABLISHMENT,OPMH - City & South,Older People Mental Health City & South,Residential Care
Cambridgeshire County Council,20-Jan-22,51301712266,"-1,350.00",ETHELDRED HOUSE,CARE ESTABLISHMENT,OPMH - City & South,Older People Mental Health City & South,Residential Care
Cambridgeshire County Council,20-Jan-22,51301712266,"-1,350.00",ETHELDRED HOUSE,CARE ESTABLISHMENT,OPMH - City & South,Older People Mental Health City & South,Residential Care
Cambridgeshire County Council,20-Jan-22,51301712266,"-1,350.00",ETHELDRED HOUSE,CARE ESTABLISHMENT,OPMH - City & South,Older People Mental Health City & South,Residential Care
Cambridgeshire County Council,20-Jan-22,51301712266,"-1,350.00",ETHELDRED HOUSE,CARE ESTABLISHMENT,OPMH - City & South,Older People Mental Health City & South,Residential Care
Cambridgeshire County Council,20-Jan-22,51301712266,"-1,350.00",ETHELDRED HOUSE,CARE ESTABLISHMENT,OPMH - City & South,Older People Mental Health City & South,Residential Care
Cambridgeshire County Council,20-Jan-22,51301712266,"-1,350.00",ETHELDRED HOUSE,CARE ESTABLISHMENT,OPMH - City & South,Older People Mental Health City & South,Residential Care
Cambridgeshire County Council,20-Jan-22,51301712266,"-1,350.00",ETHELDRED HOUSE,CARE ESTABLISHMENT,OPMH - City & South,Older People Mental Health City & South,Residential Care
Cambridgeshire County Council,20-Jan-22,51301712266,"-1,350.00",ETHELDRED HOUSE,CARE ESTABLISHMENT,OPMH - City & South,Older People Mental Health City & South,Residential Care
Cambridgeshire County Council,20-Jan-22,51301712266,"-1,350.00",ETHELDRED HOUSE,CARE ESTABLISHMENT,OPMH - City & South,Older People Mental Health City & South,Residential Care
Cambridgeshire County Council,20-Jan-22,51301712266,"-1,350.00",ETHELDRED HOUSE,CARE ESTABLISHMENT,OPMH - City & South,Older People Mental Health City & South,Residential Care
Cambridgeshire County Council,20-Jan-22,51301712266,"-1,350.00",ETHELDRED HOUSE,CARE ESTABLISHMENT,OPMH - City & South,Older People Mental Health City & South,Residential Care
Cambridgeshire County Council,20-Jan-22,51301712266,"-1,350.00",ETHELDRED HOUSE,CARE ESTABLISHMENT,OPMH - City & South,Older People Mental Health City & South,Residential Care
Cambridgeshire County Council,20-Jan-22,51301712266,"-1,350.00",ETHELDRED HOUSE,CARE ESTABLISHMENT,OPMH - City & South,Older People Mental Health City & South,Residential Care
Cambridgeshire County Council,20-Jan-22,51301712266,"-1,350.00",ETHELDRED HOUSE,CARE ESTABLISHMENT,OPMH - City & South,Older People Mental Health City & South,Residential Care
Cambridgeshire County Council,20-Jan-22,51301712266,"-1,350.00",ETHELDRED HOUSE,CARE ESTABLISHMENT,OPMH - City & South,Older People Mental Health City & South,Residential Care
Cambridgeshire County Council,20-Jan-22,51301712266,"-1,350.00",ETHELDRED HOUSE,CARE ESTABLISHMENT,OPMH - City & South,Older People Mental Health City & South,Residential Care
Cambridgeshire County Council,20-Jan-22,51301712266,"-1,350.00",ETHELDRED HOUSE,CARE ESTABLISHMENT,OPMH - City & South,Older People Mental Health City & South,Residential Care
Cambridgeshire County Council,20-Jan-22,51301712266,"-1,350.00",ETHELDRED HOUSE,CARE ESTABLISHMENT,OPMH - City & South,Older People Mental Health City & South,Residential Care
Cambridgeshire County Council,20-Jan-22,51301712266,"-1,350.00",ETHELDRED HOUSE,CARE ESTABLISHMENT,OPMH - City & South,Older People Mental Health City & South,Residential Care
Cambridgeshire County Council,20-Jan-22,51301712266,"-1,350.00",ETHELDRED HOUSE,CARE ESTABLISHMENT,OPMH - City & South,Older People Mental Health City & South,Residential Care
Cambridgeshire County Council,20-Jan-22,51301712266,"-1,350.00",ETHELDRED HOUSE,CARE ESTABLISHMENT,OPMH - City & South,Older People Mental Health City & South,Residential Care
Cambridgeshire County Council,20-Jan-22,51301712266,"-1,350.00",ETHELDRED HOUSE,CARE ESTABLISHMENT,OPMH - City & South,Older People Mental Health City & South,Residential Care
Cambridgeshire County Council,20-Jan-22,51301712266,"-1,350.00",ETHELDRED HOUSE,CARE ESTABLISHMENT,OPMH - City & South,Older People Mental Health City & South,Residential Care
Cambridgeshire County Council,20-Jan-22,51301712266,"-1,350.00",ETHELDRED HOUSE,CARE ESTABLISHMENT,OPMH - City & South,Older People Mental Health City & South,Residential Care
Cambridgeshire County Council,20-Jan-22,51301712266,"-1,350.00",ETHELDRED HOUSE,CARE ESTABLISHMENT,OPMH - City & South,Older People Mental Health City & South,Residential Care
Cambridgeshire County Council,20-Jan-22,51301712266,"-1,350.00",ETHELDRED HOUSE,CARE ESTABLISHMENT,OPMH - City & South,Older People Mental Health City & South,Residential Care
Cambridgeshire County Council,20-Jan-22,51301712266,"-1,350.00",ETHELDRED HOUSE,CARE ESTABLISHMENT,OPMH - City & South,Older People Mental Health City & South,Residential Care
Cambridgeshire County Council,20-Jan-22,51301712266,"-1,350.00",ETHELDRED HOUSE,CARE ESTABLISHMENT,OPMH - City & South,Older People Mental Health City & South,Residential Care
Cambridgeshire County Council,20-Jan-22,51301712266,"-1,350.00",ETHELDRED HOUSE,CARE ESTABLISHMENT,OPMH - City & South,Older People Mental Health City & South,Residential Care
Cambridgeshire County Council,20-Jan-22,51301712266,"-1,350.00",ETHELDRED HOUSE,CARE ESTABLISHMENT,OPMH - City & South,Older People Mental Health City & South,Residential Care
Cambridgeshire County Council,20-Jan-22,51301712266,"-1,350.00",ETHELDRED HOUSE,CARE ESTABLISHMENT,OPMH - City & South,Older People Mental Health City & South,Residential Care
Cambridgeshire County Council,20-Jan-22,51301712266,"-1,350.00",ETHELDRED HOUSE,CARE ESTABLISHMENT,OPMH - City & South,Older People Mental Health City & South,Residential Care
Cambridgeshire County Council,20-Jan-22,51301712266,"-1,350.00",ETHELDRED HOUSE,CARE ESTABLISHMENT,OPMH - City & South,Older People Mental Health City & South,Residential Care
Cambridgeshire County Council,20-Jan-22,51301712266,"-1,350.00",ETHELDRED HOUSE,CARE ESTABLISHMENT,OPMH - City & South,Older People Mental Health City & South,Residential Care
Cambridgeshire County Council,20-Jan-22,51301712266,"-1,350.00",ETHELDRED HOUSE,CARE ESTABLISHMENT,OPMH - City & South,Older People Mental Health City & South,Residential Care
Cambridgeshire County Council,20-Jan-22,51301712266,"-1,350.00",ETHELDRED HOUSE,CARE ESTABLISHMENT,OPMH - City & South,Older People Mental Health City & South,Residential Care
Cambridgeshire County Council,20-Jan-22,51301712266,"-1,350.00",ETHELDRED HOUSE,CARE ESTABLISHMENT,OPMH - City & South,Older People Mental Health City & South,Residential Care
Cambridgeshire County Council,20-Jan-22,51301712266,"-1,350.00",ETHELDRED HOUSE,CARE ESTABLISHMENT,OPMH - City & South,Older People Mental Health City & South,Residential Care
Cambridgeshire County Council,20-Jan-22,51301712266,"-1,350.00",ETHELDRED HOUSE,CARE ESTABLISHMENT,OPMH - City & South,Older People Mental Health City & South,Residential Care
Cambridgeshire County Council,20-Jan-22,51301712266,"-1,350.00",ETHELDRED HOUSE,CARE ESTABLISHMENT,OPMH - City & South,Older People Mental Health City & South,Residential Care
Cambridgeshire County Council,20-Jan-22,51301712266,"-1,350.00",ETHELDRED HOUSE,CARE ESTABLISHMENT,OPMH - City & South,Older People Mental Health City & South,Residential Care
Cambridgeshire County Council,20-Jan-22,51301712266,"-1,350.00",ETHELDRED HOUSE,CARE ESTABLISHMENT,OPMH - City & South,Older People Mental Health City & South,Residential Care
Cambridgeshire County Council,20-Jan-22,51301712266,"-1,350.00",ETHELDRED HOUSE,CARE ESTABLISHMENT,OPMH - City & South,Older People Mental Health City & South,Residential Care
Cambridgeshire County Council,20-Jan-22,51301712266,"-1,350.00",ETHELDRED HOUSE,CARE ESTABLISHMENT,OPMH - City & South,Older People Mental Health City & South,Residential Care
Cambridgeshire County Council,20-Jan-22,51301712266,"-1,350.00",ETHELDRED HOUSE,CARE ESTABLISHMENT,OPMH - City & South,Older People Mental Health City & South,Residential Care
Cambridgeshire County Council,20-Jan-22,51301712266,"-1,350.00",ETHELDRED HOUSE,CARE ESTABLISHMENT,OPMH - City & South,Older People Mental Health City & South,Residential Care
Cambridgeshire County Council,20-Jan-22,51301712266,"-1,350.00",ETHELDRED HOUSE,CARE ESTABLISHMENT,OPMH - City & South,Older People Mental Health City & South,Residential Care
Cambridgeshire County Council,20-Jan-22,51301712266,"-1,350.00",ETHELDRED HOUSE,CARE ESTABLISHMENT,OPMH - City & South,Older People Mental Health City & South,Residential Care
Cambridgeshire County Council,20-Jan-22,51301712266,"-1,350.00",ETHELDRED HOUSE,CARE ESTABLISHMENT,OPMH - City & South,Older People Mental Health City & South,Residential Care
Cambridgeshire County Council,20-Jan-22,51301712266,"-1,350.00",ETHELDRED HOUSE,CARE ESTABLISHMENT,OPMH - City & South,Older People Mental Health City & South,Residential Care
Cambridgeshire County Council,20-Jan-22,51301712266,"-1,350.00",ETHELDRED HOUSE,CARE ESTABLISHMENT,OPMH - City & South,Older People Mental Health City & South,Residential Care
Cambridgeshire County Council,20-Jan-22,51301712266,"-1,350.00",ETHELDRED HOUSE,CARE ESTABLISHMENT,OPMH - City & South,Older People Mental Health City & South,Residential Care
Cambridgeshire County Council,20-Jan-22,51301712266,"-1,350.00",ETHELDRED HOUSE,CARE ESTABLISHMENT,OPMH - City & South,Older People Mental Health City & South,Residential Care
Cambridgeshire County Council,20-Jan-22,51301712266,"-1,350.00",ETHELDRED HOUSE,CARE ESTABLISHMENT,OPMH - City & South,Older People Mental Health City & South,Residential Care
Cambridgeshire County Council,20-Jan-22,51301712266,"-1,350.00",ETHELDRED HOUSE,CARE ESTABLISHMENT,OPMH - City & South,Older People Mental Health City & South,Residential Care
Cambridgeshire County Council,20-Jan-22,51301712266,"-1,350.00",ETHELDRED HOUSE,CARE ESTABLISHMENT,OPMH - City & South,Older People Mental Health City & South,Residential Care
Cambridgeshire County Council,20-Jan-22,51301712266,"-1,350.00",ETHELDRED HOUSE,CARE ESTABLISHMENT,OPMH - City & South,Older People Mental Health City & South,Residential Care
Cambridgeshire County Council,20-Jan-22,51301712266,"-1,350.00",ETHELDRED HOUSE,CARE ESTABLISHMENT,OPMH - City & South,Older People Mental Health City & South,Residential Care
